,Directorate,Supplier Name,Supplier Invoice No,Payment Date,Gross Invoice Value,Vat Amount,Vendor Id,Purpose of Expenditure,Description,Redact flag,Year,Period
1,Community and Housing,SOUTHPARK RESIDENTIAL HOME,1062427,17-Nov-23,2307.14,0,19,Older People Placements - East,321017              Nursing & Residential Care Homes,A,2023,8
2,Community and Housing,SOUTHPARK RESIDENTIAL HOME,1065163,22-Nov-23,3400,0,19,Older People Placements - East,321017              Nursing & Residential Care Homes,A,2023,8
3,Community and Housing,SOUTHPARK RESIDENTIAL HOME,1065324,22-Nov-23,1214.29,0,19,Older People Placements - East,321017              Nursing & Residential Care Homes,A,2023,8
4,Community and Housing,SOUTHPARK RESIDENTIAL HOME,1065529,22-Nov-23,3400,0,19,Older People Placements - East,321017              Nursing & Residential Care Homes,A,2023,8
5,Community and Housing,ST TERESA`S HOME FOR THE ELDERLY,1065097,22-Nov-23,3764.24,0,362,Older People Placements - East,321017              Nursing & Residential Care Homes,A,2023,8
6,Community and Housing,THE WHITE HOUSE NURSING HOME,1065503,22-Nov-23,3396,0,611,Older People Placements - East,321000              Social Community Care Supplies & Services - Adult,A,2023,8
7,"Children, Schools and Family",BLOSSOM HOUSE SCHOOL,P2 23 HEADCOUNT,24-Nov-23,1911.6,0,777,EARLY YEARS NURSERY GRANTS,170000              Education,A,2023,8
8,"Children, Schools and Family",BLOSSOM HOUSE SCHOOL,9943,30-Nov-23,7166.67,0,777,Non-Delegated Statements,170000              Education,A,2023,8
9,"Children, Schools and Family",BLOSSOM HOUSE SCHOOL,9950,30-Nov-23,1920,0,777,Non-Delegated Statements,170000              Education,A,2023,8
10,Corporate Services,Quadient,807646144,21-Nov-23,1000,0,793,Legal Shared Service,300000              Mail Services,A,2023,8
11,Corporate Services,Quadient,840499107,21-Nov-23,8102.65,16,793,Post services,300000              Mail Services,A,2023,8
12,Unassigned,PERSEID SCHOOL,SCHOOLS 2324/8 A,08-Nov-23,437463.34,0,983,Schools,170000              Education,A,2023,8
13,Community and Housing,MOUNT CARMEL HOSTEL,1065333,22-Nov-23,3840,0,1053,ASC - Substance Misuse - Drugs,321017              Nursing & Residential Care Homes,A,2023,8
14,Community and Housing,SUTTON NURSING HOMES LTD,1065135,22-Nov-23,3381.16,0,1208,Older People Placements - East,321017              Nursing & Residential Care Homes,A,2023,8
15,Community and Housing,SUTTON NURSING HOMES LTD,1065486,22-Nov-23,3381.16,0,1208,Older People Placements - East,321017              Nursing & Residential Care Homes,A,2023,8
16,Corporate Services,L.B OF RICHMOND UPON THAMES,RC376792128M07E,15-Nov-23,7200,0,1353,SLLP Client Income,OLA,A,2023,8
17,"Children, Schools and Family",MELROSE SPECIAL SCHOOL,GETTING BETTER,07-Nov-23,1500,0,1393,PupilPremium- Virtual School,170000              Education,A,2023,8
18,Unassigned,MELROSE SPECIAL SCHOOL,SCHOOLS 2324/8 A,08-Nov-23,204650.22,0,1393,Schools,170000              Education,A,2023,8
19,"Children, Schools and Family",REDACTED PERSONAL DATA,1068543,27-Nov-23,916.79,0,1402,Fostering Recruit/Assessment,321000              Social Community Care Supplies & Services - Adult,R,2023,8
20,"Children, Schools and Family",REDACTED PERSONAL DATA,1068638,27-Nov-23,738.16,0,1402,Fostering Recruit/Assessment,321000              Social Community Care Supplies & Services - Adult,R,2023,8
21,Unassigned,WILLIAM MORRIS PRIMARY SCHOOL,SCHOOLS 2324/8 A,08-Nov-23,181456.03,0,1416,Schools,170000              Education,A,2023,8
22,Unassigned,ST THOMAS OF CANTERBURY PRIMARY,SCHOOLS 2324/8 A,08-Nov-23,258402.78,0,1418,Schools,170000              Education,A,2023,8
23,Unassigned,PRIORY C OF E MIDDLE SCHOOL,SCHOOLS 2324/8 A,08-Nov-23,116748,0,1420,Schools,170000              Education,A,2023,8
24,Unassigned,LIBERTY PRIMARY SCHOOL,SCHOOLS 2324/8 A,08-Nov-23,230494.65,0,1424,Schools,170000              Education,A,2023,8
25,"Children, Schools and Family",HILLCROSS PRIMARY SCHOOL,OWEN TYSON 06/11,07-Nov-23,631.5,0,1425,PupilPremium- Virtual School,170000              Education,A,2023,8
26,Unassigned,HILLCROSS PRIMARY SCHOOL,SCHOOLS 2324/8 A,08-Nov-23,246276.17,0,1425,Schools,170000              Education,A,2023,8
27,Unassigned,CRANMER PRIMARY SCHOOL,SCHOOLS 2324/8 A,08-Nov-23,404060.67,0,1426,Schools,170000              Education,A,2023,8
28,Unassigned,WIMBLEDON COLLEGE SCHOOL,SCHOOLS 2324/8 A,08-Nov-23,843542.33,0,1428,Schools,170000              Education,A,2023,8
29,Unassigned,URSULINE HIGH SCHOOL,SCHOOLS 2324/8 A,08-Nov-23,962089.66,0,1429,Schools,170000              Education,A,2023,8
30,Unassigned,RUTLISH SCHOOL,SCHOOLS 2324/8 A,08-Nov-23,991523.19,0,1431,Schools,170000              Education,A,2023,8
31,Unassigned,RICARDS LODGE SECONDARY SCHOOL,SCHOOLS 2324/8 A,08-Nov-23,889084.56,0,1433,Schools,170000              Education,A,2023,8
32,Unassigned,WIMBLEDON PARK PRIMARY SCHOOL,SCHOOLS 2324/8 A,08-Nov-23,299431.55,0,1436,Schools,170000              Education,A,2023,8
33,Unassigned,ST TERESA'S R C PRIMARY SCHOOL,SCHOOLS 2324/8 A,08-Nov-23,250120.11,0,1438,Schools,170000              Education,A,2023,8
34,Unassigned,ST MARYS CATHOLIC PRIMARY SCHOOL,SCHOOLS 2324/8 A,08-Nov-23,209743,0,1439,Schools,170000              Education,A,2023,8
35,Unassigned,ST MARKS PRIMARY SCHOOL,SCHOOLS 2324/8 A,08-Nov-23,147077.66,0,1440,Schools,170000              Education,A,2023,8
36,Unassigned,ST JOHN FISHER RC PRIMARY SCH.,SCHOOLS 2324/8 A,08-Nov-23,226310.58,0,1441,Schools,170000              Education,A,2023,8
37,Unassigned,SINGLEGATE PRIMARY SCHOOL,SCHOOLS 2324/8 A,08-Nov-23,319519.67,0,1442,Schools,170000              Education,A,2023,8
38,Unassigned,SHERWOOD PRIMARY SCHOOL,SCHOOLS 2324/8 A,08-Nov-23,197667,0,1443,Schools,170000              Education,A,2023,8
39,Unassigned,POPLAR PRIMARY SCHOOL,SCHOOLS 2324/8 A,08-Nov-23,321033.36,0,1444,Schools,170000              Education,A,2023,8
40,Unassigned,PELHAM PRIMARY SCHOOL,SCHOOLS 2324/8 A,08-Nov-23,234571.79,0,1445,Schools,170000              Education,A,2023,8
41,Unassigned,MORDEN PRIMARY SCHOOL,SCHOOLS 2324/8 A,08-Nov-23,145371.64,0,1446,Schools,170000              Education,A,2023,8
42,Unassigned,MERTON PARK PRIMARY SCHOOL,SCHOOLS 2324/8 A,08-Nov-23,126241.72,0,1447,Schools,170000              Education,A,2023,8
43,"Children, Schools and Family",MERTON ABBEY PRIMARY SCHOOL,GETTING BETTER,07-Nov-23,1500,0,1448,PupilPremium- Virtual School,170000              Education,A,2023,8
44,Unassigned,MERTON ABBEY PRIMARY SCHOOL,SCHOOLS 2324/8 A,08-Nov-23,142628.23,0,1448,Schools,170000              Education,A,2023,8
45,Unassigned,LONESOME PRIMARY SCHOOL,SCHOOLS 2324/8 A,08-Nov-23,218828.68,0,1450,Schools,170000              Education,A,2023,8
46,Unassigned,LINKS PRIMARY SCHOOL,SCHOOLS 2324/8 A,08-Nov-23,209770.27,0,1451,Schools,170000              Education,A,2023,8
47,"Children, Schools and Family",LINKS PRIMARY SCHOOL,HAFAUT23-P1,13-Nov-23,1700,0,1451,Holiday Act Food Prog grntfnd,170000              Education,A,2023,8
48,Unassigned,JOSEPH HOOD PRIMARY SCHOOL,SCHOOLS 2324/8 A,08-Nov-23,202899.27,0,1452,Schools,170000              Education,A,2023,8
49,Unassigned,HOLY TRINITY C OF E PRIMARY SCHOOL,SCHOOLS 2324/8 A,08-Nov-23,227297.76,0,1453,Schools,170000              Education,A,2023,8
50,Unassigned,HOLLYMOUNT PRIMARY SCHOOL,SCHOOLS 2324/8 A,08-Nov-23,239854.87,0,1454,Schools,170000              Education,A,2023,8
51,Unassigned,HATFEILD PRIMARY SCHOOL,SCHOOLS 2324/8 A,08-Nov-23,261390.32,0,1455,Schools,170000              Education,A,2023,8
52,Unassigned,HASLEMERE PRIMARY SCHOOL,SCHOOLS 2324/8 A,08-Nov-23,226692.98,0,1456,Schools,170000              Education,A,2023,8
53,"Children, Schools and Family",HASLEMERE PRIMARY SCHOOL,110723,14-Nov-23,1050,0,1456,School Improvement Dedelegated,170000              Education,A,2023,8
54,Unassigned,GARFIELD PRIMARY SCHOOL,SCHOOLS 2324/8 A,08-Nov-23,174744.17,0,1460,Schools,170000              Education,A,2023,8
55,"Children, Schools and Family",GARFIELD PRIMARY SCHOOL,174,15-Nov-23,1428.8,0,1460,School Improvement GeneralFund,170000              Education,A,2023,8
56,"Children, Schools and Family",GARFIELD PRIMARY SCHOOL,175,15-Nov-23,1428.8,0,1460,School Improvement GeneralFund,170000              Education,A,2023,8
57,Unassigned,BOND PRIMARY SCHOOL,SCHOOLS 2324/8 A,08-Nov-23,219670.49,0,1462,Schools,170000              Education,A,2023,8
58,Unassigned,BISHOP GILPIN C OF E PRIMARY,SCHOOLS 2324/8 A,08-Nov-23,230124.42,0,1463,Schools,170000              Education,A,2023,8
59,Unassigned,ABBOTSBURY PRIMARY SCHOOL,SCHOOLS 2324/8 A,08-Nov-23,239444.98,0,1467,Schools,170000              Education,A,2023,8
60,"Children, Schools and Family",ABBOTSBURY PRIMARY SCHOOL,LBROOKSTEACH,28-Nov-23,3060,0,1467,PupilPremium- Virtual School,170000              Education,A,2023,8
61,Unassigned,WIMBLEDON CHASE PRIMARY SCHOOL,SCHOOLS 2324/8 A,08-Nov-23,372023.84,0,1469,Schools,170000              Education,A,2023,8
62,Unassigned,WIMBLEDON CHASE PRIMARY SCHOOL,23LMPE000009,23-Nov-23,1500,0,1469,Corporate Services,170000              Education,A,2023,8
63,Unassigned,GORRINGE PARK PRIMARY SCHOOL,SCHOOLS 2324/8 A,08-Nov-23,234661.54,0,1470,Schools,170000              Education,A,2023,8
64,Unassigned,RAYNES PARK SECONDARY SCHOOL,SCHOOLS 2324/8 A,08-Nov-23,935487.44,0,1471,Schools,170000              Education,A,2023,8
65,Unassigned,SS PETER AND PAUL RC PRIMARY SCH,SCHOOLS 2324/8 A,08-Nov-23,178543.54,0,1472,Schools,170000              Education,A,2023,8
66,Unassigned,DUNDONALD PRIMARY SCHOOL,SCHOOLS 2324/8 A,08-Nov-23,216803.55,0,1473,Schools,170000              Education,A,2023,8
67,"Children, Schools and Family",MERTON MENCAP,4586,16-Nov-23,46500,0,1519, Centralised Commiss Services,200000              Financial Services,A,2023,8
68,Community and Housing,MERTON MENCAP,4575,16-Nov-23,720,0,1519,Learning Disabilities Placemnt,200000              Financial Services,A,2023,8
69,Community and Housing,MERTON MENCAP,4600,16-Nov-23,960,0,1519,Learning Disabilities Placemnt,200000              Financial Services,A,2023,8
70,Community and Housing,MERTON MENCAP,4606,16-Nov-23,960,0,1519,Learning Disabilities Placemnt,200000              Financial Services,A,2023,8
71,Community and Housing,MERTON MENCAP,4578,20-Nov-23,720,0,1519,Learning Disabilities Placemnt,200000              Financial Services,A,2023,8
72,Community and Housing,MERTON MENCAP,4591,20-Nov-23,880,0,1519,Learning Disabilities Placemnt,200000              Financial Services,A,2023,8
73,Community and Housing,MERTON MENCAP,4462,20-Nov-23,720,0,1519,Learning Disabilities Placemnt,200000              Financial Services,A,2023,8
74,Community and Housing,MERTON MENCAP,4569,20-Nov-23,640,0,1519,Learning Disabilities Placemnt,200000              Financial Services,A,2023,8
75,Unassigned,ALL SAINTS C OF E PRIMARY SCH,SCHOOLS 2324/8 A,08-Nov-23,204765.5,0,1680,Schools,170000              Education,A,2023,8
76,"Children, Schools and Family",REDACTED PERSONAL DATA,1052811,03-Nov-23,548.09,0,1801,Placements Under 18,321100              Social Community Care Supplies & Services - Children,R,2023,8
77,"Children, Schools and Family",REDACTED PERSONAL DATA,1052817,03-Nov-23,548.09,0,1801,Placements Under 18,321100              Social Community Care Supplies & Services - Children,R,2023,8
78,"Children, Schools and Family",REDACTED PERSONAL DATA,1058883,10-Nov-23,548.09,0,1801,Placements Under 18,321100              Social Community Care Supplies & Services - Children,R,2023,8
79,"Children, Schools and Family",REDACTED PERSONAL DATA,1058889,10-Nov-23,548.09,0,1801,Placements Under 18,321100              Social Community Care Supplies & Services - Children,R,2023,8
80,"Children, Schools and Family",REDACTED PERSONAL DATA,1063592,17-Nov-23,548.09,0,1801,Placements Under 18,321100              Social Community Care Supplies & Services - Children,R,2023,8
81,"Children, Schools and Family",REDACTED PERSONAL DATA,1063598,17-Nov-23,548.09,0,1801,Placements Under 18,321100              Social Community Care Supplies & Services - Children,R,2023,8
82,"Children, Schools and Family",REDACTED PERSONAL DATA,1068241,24-Nov-23,548.09,0,1801,Placements Under 18,321100              Social Community Care Supplies & Services - Children,R,2023,8
83,"Children, Schools and Family",REDACTED PERSONAL DATA,1068247,24-Nov-23,548.09,0,1801,Placements Under 18,321100              Social Community Care Supplies & Services - Children,R,2023,8
84,"Children, Schools and Family",REDACTED PERSONAL DATA,1072432,30-Nov-23,597.12,0,1801,Placements Under 18,321100              Social Community Care Supplies & Services - Children,R,2023,8
85,"Children, Schools and Family",REDACTED PERSONAL DATA,1072443,30-Nov-23,648.09,0,1801,Placements Under 18,321100              Social Community Care Supplies & Services - Children,R,2023,8
86,"Children, Schools and Family",REDACTED PERSONAL DATA,1072448,30-Nov-23,648.09,0,1801,Placements Under 18,321100              Social Community Care Supplies & Services - Children,R,2023,8
87,Community and Housing,CIVICA UK LIMITED,C/BN288552,17-Nov-23,1782,297,1873,Financial Assessment Team (FA),270000              Information Communication Technology,A,2023,8
88,Corporate Services,CIVICA UK LIMITED,C/BN289530,30-Nov-23,13348.5,2224.75,1873,Local Taxation Services,270000              Information Communication Technology,A,2023,8
89,Community and Housing,CIVICA UK LIMITED,C/BN288141,15-Nov-23,3754.8,625.8,1873,Financial Assessment Team (FA),270000              Information Communication Technology,A,2023,8
90,"Children, Schools and Family",THE CHILDRENS TRUST,7022,01-Nov-23,10000,0,1980,Non-Delegated Statements,170000              Education,A,2023,8
91,"Children, Schools and Family",THE CHILDRENS TRUST,7141,14-Nov-23,9261.6,0,1980,Non-Delegated Statements,170000              Education,A,2023,8
92,"Children, Schools and Family",THE CHILDRENS TRUST,7136,14-Nov-23,5736.6,0,1980,Non-Delegated Statements,170000              Education,A,2023,8
93,Community and Housing,THE FRANCES TAYLOR FOUNDATION,1065192,22-Nov-23,3812.04,0,2011,Learning Disabilities Placemnt,321017              Nursing & Residential Care Homes,A,2023,8
94,Community and Housing,THE FRANCES TAYLOR FOUNDATION,1065506,22-Nov-23,8113.92,0,2011,Learning Disabilities Placemnt,321017              Nursing & Residential Care Homes,A,2023,8
95,Unassigned,SACRED HEART R C PRIMARY SCH.,SCHOOLS 2324/8 A,08-Nov-23,187724.55,0,2076,Schools,170000              Education,A,2023,8
96,Community and Housing,GENEVA ROAD LIMITED,311023JW,20-Nov-23,841.18,140.2,2198,Older People Placements - East,321000              Social Community Care Supplies & Services - Adult,A,2023,8
97,Corporate Services,LONDON BOROUGH OF SUTTON,SLLPINCOMEM0723/,09-Nov-23,4850,0,2313,SLLP Client Income,OLA,A,2023,8
98,"Children, Schools and Family",LONDON BOROUGH OF SUTTON,3190752006,13-Nov-23,34320.05,0,2313,Head - Help & Family Assessmnt,OLA,A,2023,8
99,Capital,PJ HARVEY AND CO LTD,SI-71110,24-Nov-23,21114,3519,2439,Mitcham Area Regeneration,190000              Facilities & Management Services,A,2023,8
100,Community and Housing,FREEWAYS TRUST LTD,1065092,22-Nov-23,2911.6,0,2474,Learning Disabilities Placemnt,321017              Nursing & Residential Care Homes,A,2023,8
101,Unassigned,WIMBLEDON AND PUTNEY COMMON,2.02311E+11,07-Nov-23,42294.8,0,10566,WPCC,PRECEPT,A,2023,8
102,Unassigned,WIMBLEDON AND PUTNEY COMMON,2.02311E+11,27-Nov-23,42294.8,0,10566,WPCC,PRECEPT,A,2023,8
103,Community and Housing,THAMES WATER UTILITIES LTD,9.00047E+15,22-Nov-23,622.03,0,10691,Meadowsweet Res Home,370000              Utilities,A,2023,8
104,Community and Housing,CLOYDA LTD,1065381,22-Nov-23,4000,0,10762,Older People Placements - East,321017              Nursing & Residential Care Homes,A,2023,8
105,Community and Housing,CHEGWORTH N.H. (BAYSWIFT LTD),1065338,22-Nov-23,3056.4,0,11057,Learning Disabilities Placemnt,321000              Social Community Care Supplies & Services - Adult,A,2023,8
106,"Children, Schools and Family",REDACTED PERSONAL DATA,1052777,03-Nov-23,692.46,0,11130,Placements Under 18,321100              Social Community Care Supplies & Services - Children,R,2023,8
107,"Children, Schools and Family",REDACTED PERSONAL DATA,1058850,10-Nov-23,692.46,0,11130,Placements Under 18,321100              Social Community Care Supplies & Services - Children,R,2023,8
108,"Children, Schools and Family",REDACTED PERSONAL DATA,1063560,17-Nov-23,692.46,0,11130,Placements Under 18,321100              Social Community Care Supplies & Services - Children,R,2023,8
109,"Children, Schools and Family",REDACTED PERSONAL DATA,1068210,24-Nov-23,692.46,0,11130,Placements Under 18,321100              Social Community Care Supplies & Services - Children,R,2023,8
110,"Children, Schools and Family",REDACTED PERSONAL DATA,1072410,30-Nov-23,792.46,0,11130,Placements Under 18,321100              Social Community Care Supplies & Services - Children,R,2023,8
111,Community and Housing,Queens Court,1062434,17-Nov-23,2900.42,0,12747,Older People Placements - East,321017              Nursing & Residential Care Homes,A,2023,8
112,Community and Housing,Queens Court,1065373,22-Nov-23,3220.32,0,12747,Older People Placements - East,321017              Nursing & Residential Care Homes,A,2023,8
113,Community and Housing,Queens Court,1065415,22-Nov-23,8121.16,0,12747,Older People Placements - East,321017              Nursing & Residential Care Homes,A,2023,8
114,Community and Housing,ASHCROFT CARE SERVICES,1065337,22-Nov-23,6116.88,0,13287,Learning Disabilities Placemnt,321017              Nursing & Residential Care Homes,A,2023,8
115,Community and Housing,SHARE COMMUNITY LTD,241126,14-Nov-23,900,0,13487,Learning Disabilities Placemnt,321017              Nursing & Residential Care Homes,A,2023,8
116,Community and Housing,SHARE COMMUNITY LTD,241124,14-Nov-23,1200,0,13487,Learning Disabilities Placemnt,321017              Nursing & Residential Care Homes,A,2023,8
117,Community and Housing,SHARE COMMUNITY LTD,241121,14-Nov-23,624,0,13487,Learning Disabilities Placemnt,321017              Nursing & Residential Care Homes,A,2023,8
118,Community and Housing,SHARE COMMUNITY LTD,241116,14-Nov-23,900,0,13487,Learning Disabilities Placemnt,321017              Nursing & Residential Care Homes,A,2023,8
119,Community and Housing,SHARE COMMUNITY LTD,241114,14-Nov-23,624,0,13487,Learning Disabilities Placemnt,321017              Nursing & Residential Care Homes,A,2023,8
120,Community and Housing,SHARE COMMUNITY LTD,241312,20-Nov-23,600,0,13487,Learning Disabilities Placemnt,321017              Nursing & Residential Care Homes,A,2023,8
121,Community and Housing,SHARE COMMUNITY LTD,241311,20-Nov-23,900,0,13487,Learning Disabilities Placemnt,321017              Nursing & Residential Care Homes,A,2023,8
122,Community and Housing,SHARE COMMUNITY LTD,241310,20-Nov-23,900,0,13487,Learning Disabilities Placemnt,321017              Nursing & Residential Care Homes,A,2023,8
123,Community and Housing,SHARE COMMUNITY LTD,241309,20-Nov-23,900,0,13487,Learning Disabilities Placemnt,321017              Nursing & Residential Care Homes,A,2023,8
124,Community and Housing,SHARE COMMUNITY LTD,241278,20-Nov-23,624,0,13487,Learning Disabilities Placemnt,321017              Nursing & Residential Care Homes,A,2023,8
125,Community and Housing,SHARE COMMUNITY LTD,241298,20-Nov-23,900,0,13487,Learning Disabilities Placemnt,321017              Nursing & Residential Care Homes,A,2023,8
126,Community and Housing,SHARE COMMUNITY LTD,241290,20-Nov-23,900,0,13487,Learning Disabilities Placemnt,321017              Nursing & Residential Care Homes,A,2023,8
127,Community and Housing,SHARE COMMUNITY LTD,241288,20-Nov-23,1200,0,13487,Learning Disabilities Placemnt,321017              Nursing & Residential Care Homes,A,2023,8
128,Community and Housing,SHARE COMMUNITY LTD,241285,20-Nov-23,624,0,13487,Learning Disabilities Placemnt,321017              Nursing & Residential Care Homes,A,2023,8
129,Community and Housing,SHARE COMMUNITY LTD,241280,20-Nov-23,900,0,13487,Learning Disabilities Placemnt,321017              Nursing & Residential Care Homes,A,2023,8
130,Community and Housing,SHARE COMMUNITY LTD,241307,20-Nov-23,624,0,13487,Learning Disabilities Placemnt,321017              Nursing & Residential Care Homes,A,2023,8
131,Community and Housing,FITZROY SUPPORT,1065446,22-Nov-23,9010.16,0,13535,Learning Disabilities Placemnt,321017              Nursing & Residential Care Homes,A,2023,8
132,Community and Housing,CANTERBURY OAST TRUST LTD,1065103,22-Nov-23,5409.02,0,13566,Learning Disabilities Placemnt,321017              Nursing & Residential Care Homes,A,2023,8
133,Community and Housing,MACINTYRE,1065115,22-Nov-23,6259.88,0,13585,Learning Disabilities Placemnt,321017              Nursing & Residential Care Homes,A,2023,8
134,Community and Housing,MACINTYRE,1065305,22-Nov-23,6120.88,0,13585,Learning Disabilities Placemnt,321017              Nursing & Residential Care Homes,A,2023,8
135,Community and Housing,MACINTYRE,1065413,22-Nov-23,6120.88,0,13585,Older People Placements - East,321017              Nursing & Residential Care Homes,A,2023,8
136,Community and Housing,MACINTYRE,1065445,22-Nov-23,5235.4,0,13585,Learning Disabilities Placemnt,321017              Nursing & Residential Care Homes,A,2023,8
137,Community and Housing,KENT AUTISTIC TRUST,1065422,22-Nov-23,8548,0,13670,Learning Disabilities Placemnt,321017              Nursing & Residential Care Homes,A,2023,8
138,Community and Housing,UNITED RESPONSE,VSMR853943RH,09-Nov-23,2020.87,336.81,14616,Learning Disabilities Placemnt,321000              Social Community Care Supplies & Services - Adult,A,2023,8
139,Community and Housing,UNITED RESPONSE,VSMR853943DH,09-Nov-23,1878.18,313.03,14616,Learning Disabilities Placemnt,321000              Social Community Care Supplies & Services - Adult,A,2023,8
140,Community and Housing,UNITED RESPONSE,VSMR853943HM,09-Nov-23,2234.77,372.46,14616,Learning Disabilities Placemnt,321000              Social Community Care Supplies & Services - Adult,A,2023,8
141,Community and Housing,UNITED RESPONSE,VSMR853943BS,09-Nov-23,1997.14,332.86,14616,Learning Disabilities Placemnt,321000              Social Community Care Supplies & Services - Adult,A,2023,8
142,Community and Housing,UNITED RESPONSE,VSMR853943CW,09-Nov-23,2329.72,388.29,14616,Learning Disabilities Placemnt,321000              Social Community Care Supplies & Services - Adult,A,2023,8
143,Community and Housing,UNITED RESPONSE,VSMR857260-BAA,13-Nov-23,5248.99,874.83,14616,Learning Disabilities Placemnt,321000              Social Community Care Supplies & Services - Adult,A,2023,8
144,Community and Housing,UNITED RESPONSE,VSMR857260-BO,13-Nov-23,5248.99,874.83,14616,Learning Disabilities Placemnt,321000              Social Community Care Supplies & Services - Adult,A,2023,8
145,Community and Housing,UNITED RESPONSE,VSMR857260-ST,13-Nov-23,5248.99,874.83,14616,Learning Disabilities Placemnt,321000              Social Community Care Supplies & Services - Adult,A,2023,8
146,Community and Housing,UNITED RESPONSE,VSMR857260-SV,13-Nov-23,5248.99,874.83,14616,Learning Disabilities Placemnt,321000              Social Community Care Supplies & Services - Adult,A,2023,8
147,Community and Housing,UNITED RESPONSE,VSMR857260-RW,13-Nov-23,5248.99,874.83,14616,Learning Disabilities Placemnt,321000              Social Community Care Supplies & Services - Adult,A,2023,8
148,Community and Housing,UNITED RESPONSE,1062450,15-Nov-23,6715.59,1119.27,14616,Learning Disabilities Placemnt,321000              Social Community Care Supplies & Services - Adult,A,2023,8
149,Community and Housing,UNITED RESPONSE,1062451,15-Nov-23,8387.7,1397.94,14616,Learning Disabilities Placemnt,321000              Social Community Care Supplies & Services - Adult,A,2023,8
150,Community and Housing,UNITED RESPONSE,VSMR867533RH,16-Nov-23,4486.08,747.68,14616,Learning Disabilities Placemnt,321000              Social Community Care Supplies & Services - Adult,A,2023,8
151,Community and Housing,UNITED RESPONSE,VSMR867533DH,16-Nov-23,4169.52,694.92,14616,Learning Disabilities Placemnt,321000              Social Community Care Supplies & Services - Adult,A,2023,8
152,Community and Housing,UNITED RESPONSE,VSMR867533HM,16-Nov-23,4960.9,826.82,14616,Learning Disabilities Placemnt,321000              Social Community Care Supplies & Services - Adult,A,2023,8
153,Community and Housing,UNITED RESPONSE,VSMR867533BS,16-Nov-23,4433.38,738.9,14616,Learning Disabilities Placemnt,321000              Social Community Care Supplies & Services - Adult,A,2023,8
154,Community and Housing,UNITED RESPONSE,VSMR867533CW,16-Nov-23,5171.9,861.98,14616,Learning Disabilities Placemnt,321000              Social Community Care Supplies & Services - Adult,A,2023,8
155,Community and Housing,UNITED RESPONSE,1065307,22-Nov-23,9609.6,1601.6,14616,Learning Disabilities Placemnt,321000              Social Community Care Supplies & Services - Adult,A,2023,8
156,Community and Housing,Spectrum Innovations,INV-57060,27-Nov-23,1288.8,214.8,15550,Libraries Service-Civic Centre,170000              Education,A,2023,8
157,Corporate Services,KINGSTON CORPORATION,M07LEGAL23/24,09-Nov-23,7400,0,21573,SLLP Client Income,180000              Environmental Services,A,2023,8
158,Environment and Regeneration,KINGSTON CORPORATION,37631693,10-Nov-23,7674.58,0,21573,Food Waste Service,180000              Environmental Services,A,2023,8
159,Environment and Regeneration,KINGSTON CORPORATION,37631715,10-Nov-23,47728.2,0,21573,Waste Disposal,180000              Environmental Services,A,2023,8
160,Corporate Services,KINGSTON CORPORATION,37631936,13-Nov-23,3021.58,209.93,21573,HR TRANSACTIONS,180000              Environmental Services,A,2023,8
161,Environment and Regeneration,KINGSTON CORPORATION,37641559,23-Nov-23,24800.26,0,21573,Garden Waste Service,180000              Environmental Services,A,2023,8
162,Environment and Regeneration,KINGSTON CORPORATION,37641583,23-Nov-23,7854,0,21573,Food Waste Service,180000              Environmental Services,A,2023,8
163,Environment and Regeneration,KINGSTON CORPORATION,37641494,23-Nov-23,23202.4,0,21573,Waste Disposal,180000              Environmental Services,A,2023,8
164,Environment and Regeneration,KINGSTON CORPORATION,37641524,23-Nov-23,17042.79,0,21573,Recycling Activities,180000              Environmental Services,A,2023,8
165,Unassigned, GREATER LONDON AUTHORITY (LPFA),2.02311E+11,20-Nov-23,69988.1,0,21763,London Pens Fund Auth,PRECEPT,A,2023,8
166,Community and Housing,TRINITY COURT NURSING HOME,1065158,22-Nov-23,2861.6,0,30306,Older People Placements - East,321017              Nursing & Residential Care Homes,A,2023,8
167,Community and Housing,TRINITY COURT NURSING HOME,1065306,22-Nov-23,2985.6,0,30306,Older People Placements - East,321017              Nursing & Residential Care Homes,A,2023,8
168,Community and Housing,TRINITY COURT NURSING HOME,1065343,22-Nov-23,3063.24,0,30306,Older People Placements - East,321017              Nursing & Residential Care Homes,A,2023,8
169,Community and Housing,TRINITY COURT NURSING HOME,1065359,22-Nov-23,3355.92,0,30306,Phys/Sens Placements - East,321017              Nursing & Residential Care Homes,A,2023,8
170,Community and Housing,TRINITY COURT NURSING HOME,1065421,22-Nov-23,2985.6,0,30306,Older People Placements - East,321017              Nursing & Residential Care Homes,A,2023,8
171,Community and Housing,TRINITY COURT NURSING HOME,1065429,22-Nov-23,2861.6,0,30306,Older People Placements - East,321017              Nursing & Residential Care Homes,A,2023,8
172,Community and Housing,TRINITY COURT NURSING HOME,1065498,22-Nov-23,2985.6,0,30306,Older People Placements - East,321017              Nursing & Residential Care Homes,A,2023,8
173,Community and Housing,TRINITY COURT NURSING HOME,1065534,22-Nov-23,2876.32,0,30306,Older People Placements - East,321017              Nursing & Residential Care Homes,A,2023,8
174,Community and Housing,TRINITY COURT NURSING HOME,1065536,22-Nov-23,3149.6,0,30306,Older People Placements - East,321017              Nursing & Residential Care Homes,A,2023,8
175,Community and Housing,TRINITY COURT NURSING HOME,1065538,22-Nov-23,2521.12,0,30306,Older People Placements - East,321017              Nursing & Residential Care Homes,A,2023,8
176,Capital,INCOM TELECOMMUNICATIONS,INV0475362,21-Nov-23,2610,435,30976,Planned Replacement Programme,270000              Information Communication Technology,A,2023,8
177,Capital,INCOM TELECOMMUNICATIONS,INV0475434,24-Nov-23,4416,736,30976,Planned Replacement Programme,270000              Information Communication Technology,A,2023,8
178,Community and Housing,HAYDON PARK LODGE,1065253,22-Nov-23,3485,0,31434,Learning Disabilities Placemnt,321017              Nursing & Residential Care Homes,A,2023,8
179,Community and Housing,HAYDON PARK LODGE,1065280,22-Nov-23,4591.44,0,31434,Learning Disabilities Placemnt,321017              Nursing & Residential Care Homes,A,2023,8
180,Community and Housing,HAYDON PARK LODGE,1065366,22-Nov-23,5070.76,0,31434,Learning Disabilities Placemnt,321017              Nursing & Residential Care Homes,A,2023,8
181,Community and Housing,HAYDON PARK LODGE,1065409,22-Nov-23,4420.08,0,31434,Learning Disabilities Placemnt,321017              Nursing & Residential Care Homes,A,2023,8
182,Community and Housing,HAYDON PARK LODGE,1065450,22-Nov-23,7000,0,31434,Learning Disabilities Placemnt,321017              Nursing & Residential Care Homes,A,2023,8
183,Community and Housing,Barchester Healthcare Wimbledon Beaumont,1065198,22-Nov-23,4056,0,33384,Older People Placements - East,321017              Nursing & Residential Care Homes,A,2023,8
184,Community and Housing,COMFORT CARE SERVICES (UK) LTD,SU1051/1463-1464,06-Nov-23,3295,0,34932,Mental Health Placements,321000              Social Community Care Supplies & Services - Adult,A,2023,8
185,Community and Housing,COMFORT CARE SERVICES (UK) LTD,SU0266/1681,06-Nov-23,2380,0,34932,Mental Health Placements,321000              Social Community Care Supplies & Services - Adult,A,2023,8
186,Community and Housing,COMFORT CARE SERVICES (UK) LTD,SU1102/1711,06-Nov-23,2380,0,34932,Mental Health Placements,321000              Social Community Care Supplies & Services - Adult,A,2023,8
187,Community and Housing,COMFORT CARE SERVICES (UK) LTD,SU0133/1194,13-Nov-23,2380,0,34932,Mental Health Placements,321000              Social Community Care Supplies & Services - Adult,A,2023,8
188,Community and Housing,COMFORT CARE SERVICES (UK) LTD,SU0146/1562,13-Nov-23,2380,0,34932,Mental Health Placements,321000              Social Community Care Supplies & Services - Adult,A,2023,8
189,Community and Housing,COMFORT CARE SERVICES (UK) LTD,SU0184/1138,13-Nov-23,2380,0,34932,Mental Health Placements,321000              Social Community Care Supplies & Services - Adult,A,2023,8
190,Community and Housing,COMFORT CARE SERVICES (UK) LTD,SU0201/1563,13-Nov-23,2380,0,34932,Mental Health Placements,321000              Social Community Care Supplies & Services - Adult,A,2023,8
191,Community and Housing,COMFORT CARE SERVICES (UK) LTD,SU0208/1712,13-Nov-23,2380,0,34932,Mental Health Placements,321000              Social Community Care Supplies & Services - Adult,A,2023,8
192,Community and Housing,COMFORT CARE SERVICES (UK) LTD,SU0210/1195,13-Nov-23,2380,0,34932,Mental Health Placements,321000              Social Community Care Supplies & Services - Adult,A,2023,8
193,Community and Housing,COMFORT CARE SERVICES (UK) LTD,SU0298/1139,13-Nov-23,2380,0,34932,Mental Health Placements,321000              Social Community Care Supplies & Services - Adult,A,2023,8
194,Community and Housing,COMFORT CARE SERVICES (UK) LTD,SU0294/1696,13-Nov-23,2380,0,34932,Mental Health Placements,321000              Social Community Care Supplies & Services - Adult,A,2023,8
195,Community and Housing,COMFORT CARE SERVICES (UK) LTD,SU1041/923,23-Nov-23,1579.5,0,34932,Mental Health Placements,321000              Social Community Care Supplies & Services - Adult,A,2023,8
196,"Children, Schools and Family",CASTLE KINDERGARTEN,P2 23 HEADCOUNT,14-Nov-23,4970.16,0,35082,EARLY YEARS NURSERY GRANTS,170000              Education,A,2023,8
197,"Children, Schools and Family",CASTLE KINDERGARTEN,P2 23 EYSG,22-Nov-23,1591.2,0,35082, Information & Systems Team,170000              Education,A,2023,8
198,"Children, Schools and Family",CROWN KINDERGARTEN,P2 23 HEADCOUNT,14-Nov-23,1561.14,0,35084,EARLY YEARS NURSERY GRANTS,170000              Education,A,2023,8
199,"Children, Schools and Family",JIGSAW DAY NURSERY,P2 23 HEADCOUNT,14-Nov-23,10279.92,0,35097,EARLY YEARS NURSERY GRANTS,170000              Education,A,2023,8
200,"Children, Schools and Family",JIGSAW DAY NURSERY,P2 23 SENDIF,15-Nov-23,1512,0,35097,EARLY YEARS NURSERY GRANTS,170000              Education,A,2023,8
201,"Children, Schools and Family",JIGSAW DAY NURSERY,P2 23 EYSG,22-Nov-23,3897.6,0,35097, Information & Systems Team,170000              Education,A,2023,8
202,"Children, Schools and Family",NURSERY ON THE GREEN,P2 23 EYSG,22-Nov-23,5434.8,0,35101, Information & Systems Team,170000              Education,A,2023,8
203,"Children, Schools and Family",URSULINE PREPARATORY SCHOOL,P2 23 HEADCOUNT,14-Nov-23,2676.24,0,35109,EARLY YEARS NURSERY GRANTS,170000              Education,A,2023,8
204,"Children, Schools and Family",URSULINE PREPARATORY SCHOOL,P2 23 EYSG,22-Nov-23,2056.32,0,35109, Information & Systems Team,170000              Education,A,2023,8
205,"Children, Schools and Family",WILLINGTON SCH.FOUNDATION LTD,P2 23 HEADCOUNT,14-Nov-23,3358.04,0,35111,EARLY YEARS NURSERY GRANTS,170000              Education,A,2023,8
206,"Children, Schools and Family",WILLINGTON SCH.FOUNDATION LTD,P2 23 EYSG,22-Nov-23,1075.08,0,35111, Information & Systems Team,170000              Education,A,2023,8
207,"Children, Schools and Family",BUSY BEES DAY NURSERY - MORDEN,P2 23 HEADCOUNT,14-Nov-23,1091.61,0,35564,EARLY YEARS NURSERY GRANTS,170000              Education,A,2023,8
208,"Children, Schools and Family",BUSY BEES DAY NURSERY - MORDEN,P2 23 EYSG,22-Nov-23,2648.3,0,35564, Information & Systems Team,170000              Education,A,2023,8
209,Unassigned,ST MATTHEW'S C OF E PRIMARY,SCHOOLS 2324/8 A,08-Nov-23,106304.65,0,36050,Schools,170000              Education,A,2023,8
210,"Children, Schools and Family",LITTLE LEARNERS,P2 23 HEADCOUNT,14-Nov-23,9876.3,0,39413,EARLY YEARS NURSERY GRANTS,170000              Education,A,2023,8
211,"Children, Schools and Family",LITTLE LEARNERS,P2 23 EYSG,22-Nov-23,1401.4,0,39413, Information & Systems Team,170000              Education,A,2023,8
212,Unassigned,I AND  J BUSHELL LTD,4941,27-Nov-23,540,90,42221,Mitcham Common Conservators,"390000              Works - Construction, Repair & Maintenance",A,2023,8
213,"Children, Schools and Family",SURREY COUNTY COUNCIL,20152071,22-Nov-23,9513.07,0,46682,Non-Delegated Statements,OLA,A,2023,8
214,Community and Housing,JESMUND CARE LTD,1065487,22-Nov-23,3600,0,46751,Older People Placements - East,321017              Nursing & Residential Care Homes,A,2023,8
215,Community and Housing,REDACTED PERSONAL DATA,1054107,08-Nov-23,6021.4,0,50448,Older People Placements - East,DIRECT PAYMENTS,R,2023,8
216,Community and Housing,LINKAGE COMMUNITY TR.LONG-STAY,1065401,22-Nov-23,3340.08,0,52552,Learning Disabilities Placemnt,321017              Nursing & Residential Care Homes,A,2023,8
217,Community and Housing,RUTLAND HOUSE CARE HOME,1065272,22-Nov-23,3156,0,53424,Older People Placements - East,321017              Nursing & Residential Care Homes,A,2023,8
218,Community and Housing,RUTLAND HOUSE CARE HOME,1065393,22-Nov-23,3200,0,53424,Older People Placements - East,321017              Nursing & Residential Care Homes,A,2023,8
219,"Children, Schools and Family",HASLEMERE HOUSE DAY NURSERY,P2 23 HEADCOUNT,14-Nov-23,3228.54,0,55612,EARLY YEARS NURSERY GRANTS,170000              Education,A,2023,8
220,"Children, Schools and Family",HASLEMERE HOUSE DAY NURSERY,P2 23 SENDIF,15-Nov-23,2205,0,55612,EARLY YEARS NURSERY GRANTS,170000              Education,A,2023,8
221,"Children, Schools and Family",HASLEMERE HOUSE DAY NURSERY,P2 23 EYSG,22-Nov-23,6531,0,55612, Information & Systems Team,170000              Education,A,2023,8
222,Community and Housing,PARK LODGE,1065242,22-Nov-23,2895.68,0,56878,Learning Disabilities Placemnt,321017              Nursing & Residential Care Homes,A,2023,8
223,Community and Housing,PARK LODGE,1065341,22-Nov-23,3026.8,0,56878,Learning Disabilities Placemnt,321017              Nursing & Residential Care Homes,A,2023,8
224,Unassigned,CRICKET GREEN SCHOOL,SCHOOLS 2324/8 A,08-Nov-23,381778.15,0,57057,Schools,170000              Education,A,2023,8
225,"Children, Schools and Family",PEARSON EDUCATION LTD.,4021619,15-Nov-23,635.7,105.95,57285,Language & Learning Service,170000              Education,A,2023,8
226,Corporate Services,MERTON VOLUNTARY SERV COUNCIL,EMERGENCY ASSIST,22-Nov-23,25630,0,57560,Cost of Living Fund,190000              Facilities & Management Services,A,2023,8
227,Corporate Services,JADE SECURITY SERVICE LTD,6491,22-Nov-23,2297.86,382.98,57563,Cash Collections,200000              Financial Services,A,2023,8
228,Community and Housing,WALSINGHAM,1065209,22-Nov-23,5943.28,0,58466,Learning Disabilities Placemnt,321017              Nursing & Residential Care Homes,A,2023,8
229,Community and Housing,WALSINGHAM,1065268,22-Nov-23,7221.64,0,58466,Learning Disabilities Placemnt,321017              Nursing & Residential Care Homes,A,2023,8
230,Community and Housing,WALSINGHAM,1065347,22-Nov-23,7292.52,0,58466,Learning Disabilities Placemnt,321017              Nursing & Residential Care Homes,A,2023,8
231,Community and Housing,WALSINGHAM,1065399,22-Nov-23,5804.04,0,58466,Learning Disabilities Placemnt,321017              Nursing & Residential Care Homes,A,2023,8
232,Community and Housing,WALSINGHAM,1065454,22-Nov-23,7991.72,0,58466,Learning Disabilities Placemnt,321017              Nursing & Residential Care Homes,A,2023,8
233,Community and Housing,HATS GROUP LTD,225837,14-Nov-23,2326.13,387.69,58532,Learning Disabilities Placemnt,360000              Passenger Transport,A,2023,8
234,Community and Housing,CARE UK,1062424,17-Nov-23,1748.57,0,58851,Older People Placements - East,321017              Nursing & Residential Care Homes,A,2023,8
235,Community and Housing,CARE UK,1065087,22-Nov-23,3504.04,0,58851,Older People Placements - East,321017              Nursing & Residential Care Homes,A,2023,8
236,Community and Housing,CARE UK,1065091,22-Nov-23,4321.16,0,58851,Older People Placements - East,321017              Nursing & Residential Care Homes,A,2023,8
237,Community and Housing,CARE UK,1065140,22-Nov-23,4321.16,0,58851,Older People Placements - East,321017              Nursing & Residential Care Homes,A,2023,8
238,Community and Housing,CARE UK,1065162,22-Nov-23,4039.72,0,58851,Older People Placements - East,321017              Nursing & Residential Care Homes,A,2023,8
239,Community and Housing,CARE UK,1065187,22-Nov-23,4039.72,0,58851,Older People Placements - East,321017              Nursing & Residential Care Homes,A,2023,8
240,Community and Housing,CARE UK,1065248,22-Nov-23,4321.16,0,58851,Older People Placements - East,321017              Nursing & Residential Care Homes,A,2023,8
241,Community and Housing,CARE UK,1065346,22-Nov-23,4560,0,58851,Older People Placements - East,321017              Nursing & Residential Care Homes,A,2023,8
242,Community and Housing,CARE UK,1065397,22-Nov-23,4321.16,0,58851,Older People Placements - East,321017              Nursing & Residential Care Homes,A,2023,8
243,Community and Housing,CARE UK,1065431,22-Nov-23,4300.12,0,58851,Older People Placements - East,321017              Nursing & Residential Care Homes,A,2023,8
244,Community and Housing,CARE UK,1065444,22-Nov-23,4039.72,0,58851,Older People Placements - East,321017              Nursing & Residential Care Homes,A,2023,8
245,Community and Housing,CARE UK,1065480,22-Nov-23,4340,0,58851,Older People Placements - East,321017              Nursing & Residential Care Homes,A,2023,8
246,Community and Housing,CARE UK,1065484,22-Nov-23,3504.04,0,58851,Older People Placements - East,321017              Nursing & Residential Care Homes,A,2023,8
247,Community and Housing,RUSHTON WORKWEAR LTD,55135,30-Nov-23,624,104,62131,Com Care Placement Contingency,140000              Clothing,A,2023,8
248,Corporate Services,EDE'S (U.K.) LTD,100100,13-Nov-23,1072.94,178.82,62345,Electoral Registration,190000              Facilities & Management Services,A,2023,8
249,Corporate Services,EDE'S (U.K.) LTD,100099,13-Nov-23,760.86,126.81,62345,Electoral Registration,190000              Facilities & Management Services,A,2023,8
250,Community and Housing,BARONS LODGE NURSING HOME,1062428,17-Nov-23,5138.57,0,62371,Older People Placements - East,321017              Nursing & Residential Care Homes,A,2023,8
251,Community and Housing,BARONS LODGE NURSING HOME,1065154,22-Nov-23,1716,0,62371,Mental Health Placements,321017              Nursing & Residential Care Homes,A,2023,8
252,Community and Housing,BARONS LODGE NURSING HOME,1065165,22-Nov-23,3892.86,0,62371,Older People Placements - East,321017              Nursing & Residential Care Homes,A,2023,8
253,Community and Housing,BARONS LODGE NURSING HOME,1065251,22-Nov-23,4360,0,62371,Older People Placements - East,321017              Nursing & Residential Care Homes,A,2023,8
254,Community and Housing,BARONS LODGE NURSING HOME,1065263,22-Nov-23,3321.16,0,62371,Older People Placements - East,321017              Nursing & Residential Care Homes,A,2023,8
255,Community and Housing,BARONS LODGE NURSING HOME,1065361,22-Nov-23,3502,0,62371,Mental Health Placements,321017              Nursing & Residential Care Homes,A,2023,8
256,Community and Housing,BARONS LODGE NURSING HOME,1065369,22-Nov-23,4200,0,62371,Mental Health Placements,321017              Nursing & Residential Care Homes,A,2023,8
257,Community and Housing,BARONS LODGE NURSING HOME,1065433,22-Nov-23,4360,0,62371,Mental Health Placements,321017              Nursing & Residential Care Homes,A,2023,8
258,Community and Housing,BARONS LODGE NURSING HOME,1065438,22-Nov-23,4360,0,62371,Older People Placements - East,321017              Nursing & Residential Care Homes,A,2023,8
259,Community and Housing,BARONS LODGE NURSING HOME,1065439,22-Nov-23,3807.2,0,62371,Learning Disabilities Placemnt,321017              Nursing & Residential Care Homes,A,2023,8
260,Community and Housing,BARONS LODGE NURSING HOME,1065455,22-Nov-23,4800,0,62371,Older People Placements - East,321017              Nursing & Residential Care Homes,A,2023,8
261,Community and Housing,BARONS LODGE NURSING HOME,1065475,22-Nov-23,3502,0,62371,Older People Placements - East,321017              Nursing & Residential Care Homes,A,2023,8
262,Environment and Regeneration,ATTIC THEATRE COMPANY,ATTIC-2-GRANT,23-Nov-23,9000,0,62620,Reg & Partnerhips Staffing,190000              Facilities & Management Services,A,2023,8
263,Community and Housing,SANCTUARY CARE LTD,1065117,22-Nov-23,3117.52,0,63458,Learning Disabilities Placemnt,321017              Nursing & Residential Care Homes,A,2023,8
264,Community and Housing,THE REGARD PARTNERSHIP LTD,1065102,22-Nov-23,6220.72,0,63796,Learning Disabilities Placemnt,321017              Nursing & Residential Care Homes,A,2023,8
265,Community and Housing,THE REGARD PARTNERSHIP LTD,1065207,22-Nov-23,6595.72,0,63796,Learning Disabilities Placemnt,321017              Nursing & Residential Care Homes,A,2023,8
266,Community and Housing,THE REGARD PARTNERSHIP LTD,1065223,22-Nov-23,10504.92,0,63796,Learning Disabilities Placemnt,321017              Nursing & Residential Care Homes,A,2023,8
267,Community and Housing,THE REGARD PARTNERSHIP LTD,1065239,22-Nov-23,6255.04,0,63796,Learning Disabilities Placemnt,321017              Nursing & Residential Care Homes,A,2023,8
268,Community and Housing,THE REGARD PARTNERSHIP LTD,1065350,22-Nov-23,6647.28,0,63796,Learning Disabilities Placemnt,321017              Nursing & Residential Care Homes,A,2023,8
269,Community and Housing,THE REGARD PARTNERSHIP LTD,1065456,22-Nov-23,5317.84,0,63796,Learning Disabilities Placemnt,321017              Nursing & Residential Care Homes,A,2023,8
270,"Children, Schools and Family",CAROUSEL DAY NURSERY,P2 23 HEADCOUNT,14-Nov-23,5352.48,0,66990,EARLY YEARS NURSERY GRANTS,170000              Education,A,2023,8
271,"Children, Schools and Family",CAROUSEL DAY NURSERY,P2 23 EYSG,22-Nov-23,1428,0,66990, Information & Systems Team,170000              Education,A,2023,8
272,"Children, Schools and Family",PLAYDAYS DAY NURSERY,P2 23 HEADCOUNT,14-Nov-23,5575.5,0,66992,EARLY YEARS NURSERY GRANTS,170000              Education,A,2023,8
273,"Children, Schools and Family",PLAYDAYS DAY NURSERY,P2 23 EYSG,22-Nov-23,928.2,0,66992, Information & Systems Team,170000              Education,A,2023,8
274,Community and Housing,NEEDHAM AND SAUNDERS,2621,23-Nov-23,985,0,68089,Occupational Therapy,"390000              Works - Construction, Repair & Maintenance",A,2023,8
275,Community and Housing,NEEDHAM AND SAUNDERS,2623,23-Nov-23,820,0,68089,Occupational Therapy,"390000              Works - Construction, Repair & Maintenance",A,2023,8
276,Community and Housing,NEEDHAM AND SAUNDERS,2639,27-Nov-23,725,0,68089,Occupational Therapy,"390000              Works - Construction, Repair & Maintenance",A,2023,8
277,Community and Housing,NEEDHAM AND SAUNDERS,2638,27-Nov-23,640,0,68089,Occupational Therapy,"390000              Works - Construction, Repair & Maintenance",A,2023,8
278,Community and Housing,NAS SERVICES LIMITED,ACR4399416,14-Nov-23,1893.6,315.6,68929,Mental Health Placements,321100              Social Community Care Supplies & Services - Children,A,2023,8
279,Community and Housing,NAS SERVICES LIMITED,ACR4398114,14-Nov-23,1893.6,315.6,68929,Mental Health Placements,321100              Social Community Care Supplies & Services - Children,A,2023,8
280,Community and Housing,NAS SERVICES LIMITED,ACR4396649,14-Nov-23,1893.6,315.6,68929,Mental Health Placements,321100              Social Community Care Supplies & Services - Children,A,2023,8
281,Community and Housing,NAS SERVICES LIMITED,ACR4401666,14-Nov-23,1893.6,315.6,68929,Mental Health Placements,321100              Social Community Care Supplies & Services - Children,A,2023,8
282,Community and Housing,NAS SERVICES LIMITED,ACR9333333308,17-Nov-23,1893.6,315.6,68929,Mental Health Placements,321100              Social Community Care Supplies & Services - Children,A,2023,8
283,Unassigned,LEE VALLEY REGIONAL PARK AUTH.,2.02311E+11,20-Nov-23,16448.72,0,70554,Lee Valley Regional Park,PRECEPT,A,2023,8
284,"Children, Schools and Family",JANCETT CHILDCARE AND  JACE TRNG,P2 23 HEADCOUNT,14-Nov-23,10067.82,0,75578,EARLY YEARS NURSERY GRANTS,260000              Human Resources,A,2023,8
285,"Children, Schools and Family",JANCETT CHILDCARE AND  JACE TRNG,P2 23 EYSG,22-Nov-23,3699.64,0,75578, Information & Systems Team,260000              Human Resources,A,2023,8
286,Community and Housing,BRANDON TRUST,1065112,22-Nov-23,4398.6,0,76126,Learning Disabilities Placemnt,321017              Nursing & Residential Care Homes,A,2023,8
287,"Children, Schools and Family",DICKY BIRDS PRE SCHOOL NURSERY,P2 23 HEADCOUNT,14-Nov-23,6913.62,0,76508,EARLY YEARS NURSERY GRANTS,170000              Education,A,2023,8
288,"Children, Schools and Family",DICKY BIRDS PRE SCHOOL NURSERY,P2 23 EYSG,22-Nov-23,1927.8,0,76508, Information & Systems Team,170000              Education,A,2023,8
289,Unassigned,LONDON BOROUGH OF SUTTON,BAILIFF OCT 2023,21-Nov-23,137722.45,0,76615,Corporate Services,OLA,A,2023,8
290,Unassigned,POST OFFICE LTD,MERTON23/24 PO18,08-Nov-23,12920.9,0,77066,Adults Social Care,200000              Financial Services,A,2023,8
291,Unassigned,POST OFFICE LTD,CFA 065 MERTON,20-Nov-23,19875.64,0,77066,Adults Social Care,200000              Financial Services,A,2023,8
292,Unassigned,POST OFFICE LTD,CFA065MERTON2324,29-Nov-23,13568.9,0,77066,Adults Social Care,200000              Financial Services,A,2023,8
293,Community and Housing,ABBEY HOUSE RESIDENTIAL HOMES,1065113,22-Nov-23,4774,0,78937,Older People Placements - East,321017              Nursing & Residential Care Homes,A,2023,8
294,Community and Housing,ABBEY HOUSE RESIDENTIAL HOMES,1065137,22-Nov-23,4774,0,78937,Older People Placements - East,321017              Nursing & Residential Care Homes,A,2023,8
295,Community and Housing,ABBEY HOUSE RESIDENTIAL HOMES,1065139,22-Nov-23,5989.2,0,78937,Mental Health Placements,321017              Nursing & Residential Care Homes,A,2023,8
296,Community and Housing,REDACTED PERSONAL DATA,1053902,08-Nov-23,6316.16,0,81639,Older People Placements - East,DIRECT PAYMENTS,R,2023,8
297,Environment and Regeneration,S.GRUNDON (WASTE) LTD.,W158728,20-Nov-23,725.76,120.96,82593,Waste Disposal,180000              Environmental Services,A,2023,8
298,Unassigned,GREATER LONDON AUTHORITY,2.02311E+11,20-Nov-23,3404413.14,0,83050,Collection Fund,PRECEPT,A,2023,8
299,Unassigned,GREATER LONDON AUTHORITY,2.02311E+11,13-Nov-23,2663423,0,83050,Collection Fund,PRECEPT,A,2023,8
300,Unassigned,GREATER LONDON AUTHORITY,2.02311E+11,27-Nov-23,237524,0,83050,Collection Fund,PRECEPT,A,2023,8
301,"Children, Schools and Family",GREATER LONDON AUTHORITY,1800012009,22-Nov-23,5700,950,83050,Policy Planning & Performance,PRECEPT,A,2023,8
302,Corporate Services,REDACTED PERSONAL DATA,INVJD214,15-Nov-23,1500,250,83383,SLLP - Disbursements,280000              Legal Services,R,2023,8
303,Corporate Services,REDACTED PERSONAL DATA,INVJD216,21-Nov-23,1680,280,83383,SLLP - Disbursements,280000              Legal Services,R,2023,8
304,Unassigned,MALMESBURY PRIMARY SCHOOL,SCHOOLS 2324/8 A,08-Nov-23,253254.72,0,83593,Schools,170000              Education,A,2023,8
305,"Children, Schools and Family",YOUNG EPILEPSY,INV11785,20-Nov-23,4746.33,0,84094,SEN Residential (DSG),170000              Education,A,2023,8
306,Community and Housing,NEWSQUEST MEDIA GROUP LTD,43754418,07-Nov-23,954,159,85566,Hsg. Env. Health (Enforcement),190000              Facilities & Management Services,A,2023,8
307,Environment and Regeneration,NEWSQUEST MEDIA GROUP LTD,43928129,29-Nov-23,914.33,152.39,85566,Development Control,190000              Facilities & Management Services,A,2023,8
308,Environment and Regeneration,NEWSQUEST MEDIA GROUP LTD,41669971,27-Nov-23,1027.4,171.23,85566,Tr Man & Accid Sch,190000              Facilities & Management Services,A,2023,8
309,Environment and Regeneration,NEWSQUEST MEDIA GROUP LTD,43847100,30-Nov-23,4033.8,672.3,85566,CPZ Implementation & Consult,190000              Facilities & Management Services,A,2023,8
310,Community and Housing,SUPREME CARE SERVICES LIMITED,40115,15-Nov-23,3010.9,0,91840,Older People Placements - East,321000              Social Community Care Supplies & Services - Adult,A,2023,8
311,Community and Housing,SUPREME CARE SERVICES LIMITED,40119,17-Nov-23,1143.82,0,91840,Older People Placements - East,321000              Social Community Care Supplies & Services - Adult,A,2023,8
312,Community and Housing,SUPREME CARE SERVICES LIMITED,40117,17-Nov-23,2649.12,0,91840,Older People Placements - East,321000              Social Community Care Supplies & Services - Adult,A,2023,8
313,Community and Housing,SUPREME CARE SERVICES LIMITED,40113,17-Nov-23,2665.24,0,91840,Older People Placements - East,321000              Social Community Care Supplies & Services - Adult,A,2023,8
314,Community and Housing,THE GARWOOD FOUNDATION,MW.DFNOV23,20-Nov-23,1062,0,92268,Older People Placements - East,321000              Social Community Care Supplies & Services - Adult,A,2023,8
315,Community and Housing,Allied Healthcare,2641071473./32,16-Nov-23,1130.53,0,92896,Phys/Sens Placements - East,321000              Social Community Care Supplies & Services - Adult,A,2023,8
316,Community and Housing,Allied Healthcare,2641071473./44,16-Nov-23,2328.12,0,92896,Older People Placements - East,321000              Social Community Care Supplies & Services - Adult,A,2023,8
317,Community and Housing,Allied Healthcare,2641071473./22,16-Nov-23,843.67,0,92896,Older People Placements - East,321000              Social Community Care Supplies & Services - Adult,A,2023,8
318,Community and Housing,Allied Healthcare,2641071473./28,16-Nov-23,625.64,0,92896,Learning Disabilities Placemnt,321000              Social Community Care Supplies & Services - Adult,A,2023,8
319,Community and Housing,Allied Healthcare,2641071473./52,16-Nov-23,3031.87,0,92896,Older People Placements - East,321000              Social Community Care Supplies & Services - Adult,A,2023,8
320,Community and Housing,Allied Healthcare,2641071473./11,16-Nov-23,1134.09,0,92896,Older People Placements - East,321000              Social Community Care Supplies & Services - Adult,A,2023,8
321,Community and Housing,Allied Healthcare,2641071473./58,16-Nov-23,825.77,0,92896,Older People Placements - East,321000              Social Community Care Supplies & Services - Adult,A,2023,8
322,Community and Housing,Allied Healthcare,2641071473./20,16-Nov-23,500.27,0,92896,Older People Placements - East,321000              Social Community Care Supplies & Services - Adult,A,2023,8
323,Community and Housing,Allied Healthcare,2641071473./2,16-Nov-23,626.91,0,92896,Older People Placements - East,321000              Social Community Care Supplies & Services - Adult,A,2023,8
324,Community and Housing,Allied Healthcare,2641071473./3,16-Nov-23,620.97,0,92896,Older People Placements - East,321000              Social Community Care Supplies & Services - Adult,A,2023,8
325,Community and Housing,Allied Healthcare,2641071473./41,16-Nov-23,846.73,0,92896,Older People Placements - East,321000              Social Community Care Supplies & Services - Adult,A,2023,8
326,Community and Housing,Allied Healthcare,2641071473./8,16-Nov-23,845.81,0,92896,Phys/Sens Placements - East,321000              Social Community Care Supplies & Services - Adult,A,2023,8
327,Community and Housing,Allied Healthcare,2641071473./36,16-Nov-23,2936.54,0,92896,Older People Placements - East,321000              Social Community Care Supplies & Services - Adult,A,2023,8
328,Community and Housing,Allied Healthcare,2641071473./23,16-Nov-23,1654.3,0,92896,Learning Disabilities Placemnt,321000              Social Community Care Supplies & Services - Adult,A,2023,8
329,Community and Housing,Allied Healthcare,2641071473./38,16-Nov-23,866.08,0,92896,Older People Placements - East,321000              Social Community Care Supplies & Services - Adult,A,2023,8
330,Community and Housing,Allied Healthcare,2641071473./25,16-Nov-23,3039.6,0,92896,Older People Placements - East,321000              Social Community Care Supplies & Services - Adult,A,2023,8
331,Community and Housing,Allied Healthcare,2641071473./51,16-Nov-23,3038.07,0,92896,Older People Placements - East,321000              Social Community Care Supplies & Services - Adult,A,2023,8
332,Community and Housing,Allied Healthcare,2641071473./39,16-Nov-23,813.31,0,92896,Older People Placements - East,321000              Social Community Care Supplies & Services - Adult,A,2023,8
333,Community and Housing,Allied Healthcare,2641071473./15,16-Nov-23,1688.91,0,92896,Older People Placements - East,321000              Social Community Care Supplies & Services - Adult,A,2023,8
334,Community and Housing,Allied Healthcare,2641071473./46,16-Nov-23,2969.99,0,92896,Older People Placements - East,321000              Social Community Care Supplies & Services - Adult,A,2023,8
335,Community and Housing,Allied Healthcare,2641071473./30,16-Nov-23,696.67,0,92896,Learning Disabilities Placemnt,321000              Social Community Care Supplies & Services - Adult,A,2023,8
336,Community and Housing,Allied Healthcare,2641071473./31,16-Nov-23,2688.11,0,92896,Phys/Sens Placements - East,321000              Social Community Care Supplies & Services - Adult,A,2023,8
337,Community and Housing,Allied Healthcare,2641071473./35,16-Nov-23,557.77,0,92896,Older People Placements - East,321000              Social Community Care Supplies & Services - Adult,A,2023,8
338,Community and Housing,Allied Healthcare,2641071473./16,16-Nov-23,576.68,0,92896,Older People Placements - East,321000              Social Community Care Supplies & Services - Adult,A,2023,8
339,Community and Housing,Allied Healthcare,2641071473./42,16-Nov-23,849.49,0,92896,Older People Placements - East,321000              Social Community Care Supplies & Services - Adult,A,2023,8
340,Community and Housing,Allied Healthcare,2641071473./12,16-Nov-23,3315.61,0,92896,Older People Placements - East,321000              Social Community Care Supplies & Services - Adult,A,2023,8
341,Community and Housing,Allied Healthcare,2641071473./50,16-Nov-23,3072.23,0,92896,Older People Placements - East,321000              Social Community Care Supplies & Services - Adult,A,2023,8
342,Community and Housing,Allied Healthcare,2641071473./45,16-Nov-23,622.27,0,92896,Older People Placements - East,321000              Social Community Care Supplies & Services - Adult,A,2023,8
343,Community and Housing,Allied Healthcare,2641071473./13,16-Nov-23,2316.05,0,92896,Older People Placements - East,321000              Social Community Care Supplies & Services - Adult,A,2023,8
344,Community and Housing,Allied Healthcare,2641071473./10,16-Nov-23,765.41,0,92896,Older People Placements - East,321000              Social Community Care Supplies & Services - Adult,A,2023,8
345,Community and Housing,Allied Healthcare,2641071473/19,16-Nov-23,722.44,0,92896,Older People Placements - East,321000              Social Community Care Supplies & Services - Adult,A,2023,8
346,Community and Housing,CARE MANAGEMENT GROUP,255001520,15-Nov-23,9467.32,0,93533,Learning Disabilities Placemnt,321017              Nursing & Residential Care Homes,A,2023,8
347,Community and Housing,CARE MANAGEMENT GROUP,1062443,17-Nov-23,21193.71,0,93533,Learning Disabilities Placemnt,321017              Nursing & Residential Care Homes,A,2023,8
348,Community and Housing,CARE MANAGEMENT GROUP,1065095,22-Nov-23,4593.88,0,93533,Mental Health Placements,321017              Nursing & Residential Care Homes,A,2023,8
349,Community and Housing,CARE MANAGEMENT GROUP,1065167,22-Nov-23,6812.92,0,93533,Learning Disabilities Placemnt,321017              Nursing & Residential Care Homes,A,2023,8
350,Community and Housing,CARE MANAGEMENT GROUP,1065277,22-Nov-23,6441.2,0,93533,Learning Disabilities Placemnt,321017              Nursing & Residential Care Homes,A,2023,8
351,Community and Housing,CARE MANAGEMENT GROUP,1065328,22-Nov-23,8733.64,0,93533,Phys/Sens Placements - East,321017              Nursing & Residential Care Homes,A,2023,8
352,Community and Housing,CARE MANAGEMENT GROUP,1065363,22-Nov-23,8367.64,0,93533,Learning Disabilities Placemnt,321017              Nursing & Residential Care Homes,A,2023,8
353,Community and Housing,CARE MANAGEMENT GROUP,1065493,22-Nov-23,28258.29,0,93533,Learning Disabilities Placemnt,321017              Nursing & Residential Care Homes,A,2023,8
354,Community and Housing,CARE MANAGEMENT GROUP,255001521,27-Nov-23,9467.32,0,93533,Learning Disabilities Placemnt,321017              Nursing & Residential Care Homes,A,2023,8
355,"Children, Schools and Family",ST OLAVES NURSERY,P2 23 HEADCOUNT,14-Nov-23,6865.74,0,94303,EARLY YEARS NURSERY GRANTS,170000              Education,A,2023,8
356,"Children, Schools and Family",ST OLAVES NURSERY,P2 23 EYSG,22-Nov-23,2494.8,0,94303, Information & Systems Team,170000              Education,A,2023,8
357,Community and Housing,A AND R CARE LTD,1065094,22-Nov-23,4121.16,0,94357,Older People Placements - East,321017              Nursing & Residential Care Homes,A,2023,8
358,Community and Housing,A AND R CARE LTD,1065157,22-Nov-23,3300,0,94357,Older People Placements - East,321017              Nursing & Residential Care Homes,A,2023,8
359,Community and Housing,A AND R CARE LTD,1065208,22-Nov-23,3921.16,0,94357,Older People Placements - East,321017              Nursing & Residential Care Homes,A,2023,8
360,Community and Housing,A AND R CARE LTD,1065226,22-Nov-23,4521.16,0,94357,Mental Health Placements,321017              Nursing & Residential Care Homes,A,2023,8
361,Community and Housing,A AND R CARE LTD,1065287,22-Nov-23,3763.24,0,94357,Older People Placements - East,321017              Nursing & Residential Care Homes,A,2023,8
362,Community and Housing,A AND R CARE LTD,1065423,22-Nov-23,3400,0,94357,Older People Placements - East,321017              Nursing & Residential Care Homes,A,2023,8
363,Community and Housing,A AND R CARE LTD,1065460,22-Nov-23,4800,0,94357,Older People Placements - East,321017              Nursing & Residential Care Homes,A,2023,8
364,Community and Housing,A AND R CARE LTD,1065524,22-Nov-23,3824.32,0,94357,Phys/Sens Placements - East,321017              Nursing & Residential Care Homes,A,2023,8
365,Community and Housing,A AND R CARE LTD,1065528,22-Nov-23,4200,0,94357,Older People Placements - East,321017              Nursing & Residential Care Homes,A,2023,8
366,Corporate Services,JCDECAUX UNITED KINGDOM,SF/1240520,09-Nov-23,576,96,94678,Cost of Living Fund,190000              Facilities & Management Services,A,2023,8
367,Corporate Services,JCDECAUX UNITED KINGDOM,SF/1243477,21-Nov-23,650.4,108.4,94678,Cost of Living Fund,190000              Facilities & Management Services,A,2023,8
368,Corporate Services,CARERS SUPPORT MERTON,EMERGENCY ASSIST,22-Nov-23,5000,0,95795,Cost of Living Fund,290000              Arts & Leisure Services,A,2023,8
369,Corporate Services,COMMONSIDE COMMUNITY DEV TRUST,EMERGENCY ASSIST,22-Nov-23,6410,0,95839,Cost of Living Fund,321000              Social Community Care Supplies & Services - Adult,A,2023,8
370,Community and Housing,Aspens Charities Ltd,40123,09-Nov-23,18309.2,0,96019,Learning Disabilities Placemnt,321017              Nursing & Residential Care Homes,A,2023,8
371,Community and Housing,Aspens Charities Ltd,1065304,22-Nov-23,8909.92,0,96019,Learning Disabilities Placemnt,321017              Nursing & Residential Care Homes,A,2023,8
372,Community and Housing,REDACTED PERSONAL DATA,1053763,08-Nov-23,5192,0,96859,Learning Disabilities Placemnt,DIRECT PAYMENTS,R,2023,8
373,Community and Housing,THE ABBEYFIELD SOCIETY,1065441,22-Nov-23,4000,0,97539,Older People Placements - East,321000              Social Community Care Supplies & Services - Adult,A,2023,8
374,Community and Housing,EL-SHADDAI,1059123,13-Nov-23,1141.52,0,97709,MH Housing Support Placements,321000              Social Community Care Supplies & Services - Adult,A,2023,8
375,Community and Housing,EL-SHADDAI,1059141,13-Nov-23,847.04,0,97709,Phys/Sens Placements - East,321000              Social Community Care Supplies & Services - Adult,A,2023,8
376,Community and Housing,EL-SHADDAI,1059146,13-Nov-23,1426.8,0,97709,Learning Disabilities Placemnt,321000              Social Community Care Supplies & Services - Adult,A,2023,8
377,Community and Housing,EL-SHADDAI,1059151,13-Nov-23,1141.52,0,97709,Learning Disabilities Placemnt,321000              Social Community Care Supplies & Services - Adult,A,2023,8
378,Community and Housing,EL-SHADDAI,1059159,13-Nov-23,1121.35,0,97709,Mental Health Placements,321000              Social Community Care Supplies & Services - Adult,A,2023,8
379,Community and Housing,Rosenmanor Ltd,1065298,22-Nov-23,2924.24,0,97808,Mental Health Placements,321017              Nursing & Residential Care Homes,A,2023,8
380,Community and Housing,MERTON COMMUNITY TRANSPORT,17391,16-Nov-23,1260,210,98164,Learning Disabilities Placemnt,360000              Passenger Transport,A,2023,8
381,Community and Housing,MERTON COMMUNITY TRANSPORT,17382,17-Nov-23,1584,264,98164,Learning Disabilities Placemnt,360000              Passenger Transport,A,2023,8
382,Unassigned,BEECHOLME PRIMARY ACADEMY,SCHOOLS 2324/8 A,08-Nov-23,7100,0,98168,Schools,170000              Education,A,2023,8
383,"Children, Schools and Family",Evolve Housing + Support,3321,22-Nov-23,1603.65,0,98536,UASC Care Leavers Over 18,321000              Social Community Care Supplies & Services - Adult,A,2023,8
384,Community and Housing,ROYAL MENCAP SOCIETY,3790095,24-Nov-23,2613.96,0,98713,Learning Disabilities Placemnt,321000              Social Community Care Supplies & Services - Adult,A,2023,8
385,Community and Housing,ROYAL MENCAP SOCIETY,3795543,24-Nov-23,2290.96,0,98713,Learning Disabilities Placemnt,321000              Social Community Care Supplies & Services - Adult,A,2023,8
386,Unassigned,WEST WIMBLEDON PRIMARY SCHOOL,SCHOOLS 2324/8 A,08-Nov-23,266647.22,0,101674,Schools,170000              Education,A,2023,8
387,Community and Housing,HILLDALE AND NORTHVIEW,1065256,22-Nov-23,2072.52,0,103592,Older People Placements - East,321000              Social Community Care Supplies & Services - Adult,A,2023,8
388,Community and Housing,BUPA CARE HOMES,1062448,17-Nov-23,34163.32,0,105027,Older People Placements - East,321017              Nursing & Residential Care Homes,A,2023,8
389,Community and Housing,BUPA CARE HOMES,1065127,22-Nov-23,3289.24,0,105027,Older People Placements - East,321017              Nursing & Residential Care Homes,A,2023,8
390,Community and Housing,BUPA CARE HOMES,1065141,22-Nov-23,3289.24,0,105027,Older People Placements - East,321017              Nursing & Residential Care Homes,A,2023,8
391,Community and Housing,BUPA CARE HOMES,1065155,22-Nov-23,3154.12,0,105027,Older People Placements - East,321017              Nursing & Residential Care Homes,A,2023,8
392,Community and Housing,BUPA CARE HOMES,1065213,22-Nov-23,3289.24,0,105027,Older People Placements - East,321017              Nursing & Residential Care Homes,A,2023,8
393,Community and Housing,BUPA CARE HOMES,1065228,22-Nov-23,3154.12,0,105027,Older People Placements - East,321017              Nursing & Residential Care Homes,A,2023,8
394,Community and Housing,BUPA CARE HOMES,1065259,22-Nov-23,3289.24,0,105027,Older People Placements - East,321017              Nursing & Residential Care Homes,A,2023,8
395,Community and Housing,BUPA CARE HOMES,1065322,22-Nov-23,3289.24,0,105027,Older People Placements - East,321017              Nursing & Residential Care Homes,A,2023,8
396,Community and Housing,BUPA CARE HOMES,1065351,22-Nov-23,3289.24,0,105027,Older People Placements - East,321017              Nursing & Residential Care Homes,A,2023,8
397,Community and Housing,BUPA CARE HOMES,1065355,22-Nov-23,3154.12,0,105027,Older People Placements - East,321017              Nursing & Residential Care Homes,A,2023,8
398,Community and Housing,BUPA CARE HOMES,1065362,22-Nov-23,3289.24,0,105027,Older People Placements - East,321017              Nursing & Residential Care Homes,A,2023,8
399,Community and Housing,BUPA CARE HOMES,1065396,22-Nov-23,3289.24,0,105027,Older People Placements - East,321017              Nursing & Residential Care Homes,A,2023,8
400,Community and Housing,BUPA CARE HOMES,1065405,22-Nov-23,4363.16,0,105027,Phys/Sens Placements - East,321017              Nursing & Residential Care Homes,A,2023,8
401,Community and Housing,BUPA CARE HOMES,1065412,22-Nov-23,3289.24,0,105027,Older People Placements - East,321017              Nursing & Residential Care Homes,A,2023,8
402,Community and Housing,BUPA CARE HOMES,1065434,22-Nov-23,3289.24,0,105027,Mental Health Placements,321017              Nursing & Residential Care Homes,A,2023,8
403,Community and Housing,BUPA CARE HOMES,1065451,22-Nov-23,3154.12,0,105027,Older People Placements - East,321017              Nursing & Residential Care Homes,A,2023,8
404,Community and Housing,BUPA CARE HOMES,1065474,22-Nov-23,3289.24,0,105027,Older People Placements - East,321017              Nursing & Residential Care Homes,A,2023,8
405,Community and Housing,BUPA CARE HOMES,1065481,22-Nov-23,3289.24,0,105027,Older People Placements - East,321017              Nursing & Residential Care Homes,A,2023,8
406,Community and Housing,BUPA CARE HOMES,1065485,22-Nov-23,3289.24,0,105027,Older People Placements - East,321017              Nursing & Residential Care Homes,A,2023,8
407,Community and Housing,BUPA CARE HOMES,1065523,22-Nov-23,3289.24,0,105027,Older People Placements - East,321017              Nursing & Residential Care Homes,A,2023,8
408,Community and Housing,BUPA CARE HOMES,1065527,22-Nov-23,3289.24,0,105027,Older People Placements - East,321017              Nursing & Residential Care Homes,A,2023,8
409,Community and Housing,BUPA CARE HOMES,1065545,22-Nov-23,3154.12,0,105027,Older People Placements - East,321017              Nursing & Residential Care Homes,A,2023,8
410,Environment and Regeneration,APSE,2324/1975,27-Nov-23,1437.6,239.6,105284,Energy Projects,260000              Human Resources,A,2023,8
411,Community and Housing,REDACTED PERSONAL DATA,1054093,08-Nov-23,3286.2,0,105300,Learning Disabilities Placemnt,DIRECT PAYMENTS,R,2023,8
412,Capital,ASCENDIT LIFTS LTD,40707,01-Nov-23,6398,0,107196,Disabled Facilities Grant,"390000              Works - Construction, Repair & Maintenance",A,2023,8
413,"Children, Schools and Family",The Eveline Day and Nursery Schools Ltd,P2 23 HEADCOUNT,14-Nov-23,4014.36,0,108282,EARLY YEARS NURSERY GRANTS,170000              Education,A,2023,8
414,"Children, Schools and Family",The Eveline Day and Nursery Schools Ltd,P2 23 EYSG,22-Nov-23,1285.2,0,108282, Information & Systems Team,170000              Education,A,2023,8
415,Community and Housing,REDACTED PERSONAL DATA,1059110,13-Nov-23,856.12,0,110403,MH Housing Support Placements,321000              Social Community Care Supplies & Services - Adult,R,2023,8
416,Community and Housing,REDACTED PERSONAL DATA,1059115,13-Nov-23,1141.48,0,110403,Learning Disabilities Placemnt,321000              Social Community Care Supplies & Services - Adult,R,2023,8
417,Community and Housing,REDACTED PERSONAL DATA,1059116,13-Nov-23,847.04,0,110403,MH Housing Support Placements,321000              Social Community Care Supplies & Services - Adult,R,2023,8
418,Community and Housing,REDACTED PERSONAL DATA,1059120,13-Nov-23,1141.52,0,110403,Mental Health Placements,321000              Social Community Care Supplies & Services - Adult,R,2023,8
419,Community and Housing,REDACTED PERSONAL DATA,1059125,13-Nov-23,847.04,0,110403,MH Housing Support Placements,321000              Social Community Care Supplies & Services - Adult,R,2023,8
420,Community and Housing,REDACTED PERSONAL DATA,1059126,13-Nov-23,1423.36,0,110403,Mental Health Placements,321000              Social Community Care Supplies & Services - Adult,R,2023,8
421,Community and Housing,REDACTED PERSONAL DATA,1059132,13-Nov-23,1141.52,0,110403,Phys/Sens Placements - East,321000              Social Community Care Supplies & Services - Adult,R,2023,8
422,Community and Housing,REDACTED PERSONAL DATA,1059135,13-Nov-23,1652.52,0,110403,Mental Health Placements,321000              Social Community Care Supplies & Services - Adult,R,2023,8
423,Community and Housing,REDACTED PERSONAL DATA,1059137,13-Nov-23,847.04,0,110403,MH Housing Support Placements,321000              Social Community Care Supplies & Services - Adult,R,2023,8
424,Community and Housing,REDACTED PERSONAL DATA,1059139,13-Nov-23,1129.4,0,110403,Mental Health Placements,321000              Social Community Care Supplies & Services - Adult,R,2023,8
425,Community and Housing,REDACTED PERSONAL DATA,1059148,13-Nov-23,847.04,0,110403,MH Housing Support Placements,321000              Social Community Care Supplies & Services - Adult,R,2023,8
426,Community and Housing,REDACTED PERSONAL DATA,1059150,13-Nov-23,564.72,0,110403,MH Housing Support Placements,321000              Social Community Care Supplies & Services - Adult,R,2023,8
427,Community and Housing,REDACTED PERSONAL DATA,1059158,13-Nov-23,847.04,0,110403,Mental Health Placements,321000              Social Community Care Supplies & Services - Adult,R,2023,8
428,Community and Housing,REDACTED PERSONAL DATA,1059149,13-Nov-23,847.04,0,110406,Learning Disabilities Placemnt,321000              Social Community Care Supplies & Services - Adult,R,2023,8
429,"Children, Schools and Family",REDACTED PERSONAL DATA,1052756,03-Nov-23,514.26,0,111277,Placements Under 18,321100              Social Community Care Supplies & Services - Children,R,2023,8
430,"Children, Schools and Family",REDACTED PERSONAL DATA,1058832,10-Nov-23,514.26,0,111277,Placements Under 18,321100              Social Community Care Supplies & Services - Children,R,2023,8
431,"Children, Schools and Family",REDACTED PERSONAL DATA,1063540,17-Nov-23,514.26,0,111277,Placements Under 18,321100              Social Community Care Supplies & Services - Children,R,2023,8
432,"Children, Schools and Family",REDACTED PERSONAL DATA,1068193,24-Nov-23,514.26,0,111277,Placements Under 18,321100              Social Community Care Supplies & Services - Children,R,2023,8
433,"Children, Schools and Family",REDACTED PERSONAL DATA,1072393,30-Nov-23,614.26,0,111277,Placements Under 18,321100              Social Community Care Supplies & Services - Children,R,2023,8
434,"Children, Schools and Family",REDACTED PERSONAL DATA,1072434,30-Nov-23,563.29,0,111277,Placements Under 18,321100              Social Community Care Supplies & Services - Children,R,2023,8
435,Environment and Regeneration,ANDREW SCOTT ROBERTSON,15563LC,17-Nov-23,2700,450,111834,Property Mgt & Review,150000              Consultancy,A,2023,8
436,Community and Housing,CHARTERED INST.OF ENVIR.HEALTH,PS022985,15-Nov-23,1320,220,112693,Hsg. Env. Health (Enforcement),200000              Financial Services,A,2023,8
437,Community and Housing,MEADBANK NURSING CENTRE,1065519,22-Nov-23,2995.28,0,113139,Older People Placements - East,321017              Nursing & Residential Care Homes,A,2023,8
438,Community and Housing,REDACTED PERSONAL DATA,1055791,09-Nov-23,8836.6,0,113331,Learning Disabilities Placemnt,DIRECT PAYMENTS,R,2023,8
439,"Children, Schools and Family",JIGSAW4U,3201,14-Nov-23,14375,0,113501, Centralised Commiss Services,321100              Social Community Care Supplies & Services - Children,A,2023,8
440,"Children, Schools and Family",Dicky Birds Pre Sch. Nurseries Dundonald,P2 23 HEADCOUNT,14-Nov-23,6110.75,0,114041,EARLY YEARS NURSERY GRANTS,170000              Education,A,2023,8
441,"Children, Schools and Family",Dicky Birds Pre Sch. Nurseries Dundonald,P2 23 EYSG,22-Nov-23,1613.64,0,114041, Information & Systems Team,170000              Education,A,2023,8
442,Corporate Services,POST OFFICE LTD,1000/90065886,27-Nov-23,17560.1,0,114362,Household Support Grant,200000              Financial Services,A,2023,8
443,Community and Housing,MIHOMECARE LIMITED,LIVE42-270523,23-Nov-23,5474,0,114370,Learning Disabilities Placemnt,321000              Social Community Care Supplies & Services - Adult,A,2023,8
444,Community and Housing,MIHOMECARE LIMITED,LIVE42-270522,23-Nov-23,5474,0,114370,Older People Placements - East,321000              Social Community Care Supplies & Services - Adult,A,2023,8
445,Community and Housing,REDACTED PERSONAL DATA,1059111,13-Nov-23,1141.52,0,114970,MH Housing Support Placements,321000              Social Community Care Supplies & Services - Adult,R,2023,8
446,Community and Housing,REDACTED PERSONAL DATA,1059121,13-Nov-23,847.04,0,114970,MH Housing Support Placements,321000              Social Community Care Supplies & Services - Adult,R,2023,8
447,Community and Housing,REDACTED PERSONAL DATA,1059122,13-Nov-23,837.48,0,114970,Mental Health Placements,321000              Social Community Care Supplies & Services - Adult,R,2023,8
448,Community and Housing,REDACTED PERSONAL DATA,1059143,13-Nov-23,1141.52,0,114970,MH Housing Support Placements,321000              Social Community Care Supplies & Services - Adult,R,2023,8
449,Community and Housing,REDACTED PERSONAL DATA,1059154,13-Nov-23,856.08,0,114970,Mental Health Placements,321000              Social Community Care Supplies & Services - Adult,R,2023,8
450,Community and Housing,REDACTED PERSONAL DATA,1059157,13-Nov-23,805.48,0,114970,MH Housing Support Placements,321000              Social Community Care Supplies & Services - Adult,R,2023,8
451,"Children, Schools and Family",The Eveline Day Nursery Grand Drive,P2 23 HEADCOUNT,14-Nov-23,7210.98,0,116784,EARLY YEARS NURSERY GRANTS,170000              Education,A,2023,8
452,"Children, Schools and Family",The Eveline Day Nursery Grand Drive,P2 23 EYSG,22-Nov-23,2308.6,0,116784, Information & Systems Team,170000              Education,A,2023,8
453,Community and Housing,REDACTED PERSONAL DATA,1059118,13-Nov-23,856.12,0,117970,MH Housing Support Placements,321000              Social Community Care Supplies & Services - Adult,R,2023,8
454,Community and Housing,REDACTED PERSONAL DATA,1059127,13-Nov-23,1141.52,0,117970,Mental Health Placements,321000              Social Community Care Supplies & Services - Adult,R,2023,8
455,Community and Housing,REDACTED PERSONAL DATA,1059140,13-Nov-23,1141.52,0,117970,Mental Health Placements,321000              Social Community Care Supplies & Services - Adult,R,2023,8
456,Community and Housing,L'ARCHE,1065465,22-Nov-23,3050.12,0,118483,Learning Disabilities Placemnt,321017              Nursing & Residential Care Homes,A,2023,8
457,Community and Housing,Alexander House c/o Keychange Charity,1065184,22-Nov-23,3100,0,119109,Older People Placements - East,321017              Nursing & Residential Care Homes,A,2023,8
458,Community and Housing,Alexander House c/o Keychange Charity,1065244,22-Nov-23,6600,0,119109,Older People Placements - East,321017              Nursing & Residential Care Homes,A,2023,8
459,Community and Housing,Alexander House c/o Keychange Charity,1065260,22-Nov-23,3220.32,0,119109,Older People Placements - East,321017              Nursing & Residential Care Homes,A,2023,8
460,Community and Housing,Alexander House c/o Keychange Charity,1065284,22-Nov-23,5600,0,119109,Older People Placements - East,321017              Nursing & Residential Care Homes,A,2023,8
461,Community and Housing,Alexander House c/o Keychange Charity,1065478,22-Nov-23,4000,0,119109,Older People Placements - East,321017              Nursing & Residential Care Homes,A,2023,8
462,Community and Housing,Alexander House c/o Keychange Charity,1065535,22-Nov-23,3840,0,119109,Older People Placements - East,321017              Nursing & Residential Care Homes,A,2023,8
463,"Children, Schools and Family",REDACTED PERSONAL DATA,P2 23 HEADCOUNT,14-Nov-23,529.62,0,119701,EARLY YEARS NURSERY GRANTS,200000              Financial Services,R,2023,8
464,"Children, Schools and Family",REDACTED PERSONAL DATA,P2 23 EYSG,22-Nov-23,546,0,119701, Information & Systems Team,200000              Financial Services,R,2023,8
465,"Children, Schools and Family",PLAYDAYS DAY NURSERY,P2 23 HEADCOUNT,14-Nov-23,1784.16,0,121668,EARLY YEARS NURSERY GRANTS,170000              Education,A,2023,8
466,"Children, Schools and Family",PLAYDAYS DAY NURSERY,P2 23 EYSG,22-Nov-23,571.2,0,121668, Information & Systems Team,170000              Education,A,2023,8
467,"Children, Schools and Family",SHARED SERVICES CONNECTED LTD,40087,16-Nov-23,4298,0,123449,Placements Under 18,260000              Human Resources,A,2023,8
468,Environment and Regeneration,KINGDOM SECURITY LTD,SER-00048357INV,22-Nov-23,9487.49,1581.2,123458,Vestry Hall,260000              Human Resources,A,2023,8
469,Community and Housing,REDACTED PERSONAL DATA,1053830,08-Nov-23,1662.44,0,124097,Older People Placements - East,DIRECT PAYMENTS,R,2023,8
470,Community and Housing,UNITED RESPONSE,1062470,15-Nov-23,13406.11,0,125227,Learning Disabilities Placemnt,321000              Social Community Care Supplies & Services - Adult,A,2023,8
471,Community and Housing,UNITED RESPONSE,1065134,22-Nov-23,8251.44,1375.24,125227,Learning Disabilities Placemnt,321000              Social Community Care Supplies & Services - Adult,A,2023,8
472,Community and Housing,UNITED RESPONSE,1065196,22-Nov-23,8251.44,1375.24,125227,Learning Disabilities Placemnt,321000              Social Community Care Supplies & Services - Adult,A,2023,8
473,Community and Housing,UNITED RESPONSE,1065241,22-Nov-23,8251.44,1375.24,125227,Learning Disabilities Placemnt,321000              Social Community Care Supplies & Services - Adult,A,2023,8
474,Community and Housing,UNITED RESPONSE,1065293,22-Nov-23,8251.44,1375.24,125227,Learning Disabilities Placemnt,321000              Social Community Care Supplies & Services - Adult,A,2023,8
475,Community and Housing,UNITED RESPONSE,1065414,22-Nov-23,8251.44,1375.24,125227,Learning Disabilities Placemnt,321000              Social Community Care Supplies & Services - Adult,A,2023,8
476,Community and Housing,REDACTED PERSONAL DATA,1053815,08-Nov-23,1642.2,0,125642,Phys/Sens Placements - East,DIRECT PAYMENTS,R,2023,8
477,Community and Housing,REDACTED PERSONAL DATA,1053997,08-Nov-23,1039.36,0,126189,Older People Placements - East,DIRECT PAYMENTS,R,2023,8
478,"Children, Schools and Family",REDACTED PERSONAL DATA,1063513,17-Nov-23,563.29,0,128736,Placements Under 18,321100              Social Community Care Supplies & Services - Children,R,2023,8
479,"Children, Schools and Family",REDACTED PERSONAL DATA,1072365,30-Nov-23,614.26,0,128736,Placements Under 18,321100              Social Community Care Supplies & Services - Children,R,2023,8
480,Community and Housing,BUPA CARE HOMES,1065133,22-Nov-23,6096.36,0,130491,Phys/Sens Placements - East,321017              Nursing & Residential Care Homes,A,2023,8
481,Community and Housing,BUPA CARE HOMES,1065252,22-Nov-23,6050.76,0,130491,Phys/Sens Placements - East,321017              Nursing & Residential Care Homes,A,2023,8
482,"Children, Schools and Family",OAKTREE PRE-SCHOOL NURSERY,P2 23 HEADCOUNT,14-Nov-23,3345.3,0,131726,EARLY YEARS NURSERY GRANTS,170000              Education,A,2023,8
483,"Children, Schools and Family",OAKTREE PRE-SCHOOL NURSERY,P2 23 EYSG,22-Nov-23,1071,0,131726, Information & Systems Team,170000              Education,A,2023,8
484,Corporate Services,DOMINO 4 LIMITED,D.44318,13-Nov-23,936,156,132991,Cost of Living Fund,190000              Facilities & Management Services                                                          Confirmed,A,2023,8
485,Environment and Regeneration,DOMINO 4 LIMITED,D.44317,16-Nov-23,1131,188.5,132991,Outdoor Events,190000              Facilities & Management Services                                                          Confirmed,A,2023,8
486,Community and Housing,VOYAGE CARE LTD,1065216,22-Nov-23,7224.88,0,133700,Learning Disabilities Placemnt,321017              Nursing & Residential Care Homes,A,2023,8
487,Community and Housing,VOYAGE CARE LTD,1065332,22-Nov-23,10048,0,133700,Learning Disabilities Placemnt,321017              Nursing & Residential Care Homes,A,2023,8
488,Community and Housing,VOYAGE CARE LTD,1065411,22-Nov-23,8462.36,0,133700,Learning Disabilities Placemnt,321017              Nursing & Residential Care Homes,A,2023,8
489,Corporate Services,ASDA STORES LTD,9Z655E3EBDAD65E,27-Nov-23,1755,0,134239,Household Support Grant,200000              Financial Services,A,2023,8
490,Community and Housing,HOMECARE SERVICES LTD,INV-0157,03-Nov-23,5474,0,134594,Phys/Sens Placements - East,321100              Social Community Care Supplies & Services - Children,A,2023,8
491,Community and Housing,Sunrise Rehabilitation Centre,1065122,22-Nov-23,5213.88,0,135093,Learning Disabilities Placemnt,321017              Nursing & Residential Care Homes,A,2023,8
492,Community and Housing,Sunrise Rehabilitation Centre,1065153,22-Nov-23,5213.88,0,135093,Learning Disabilities Placemnt,321017              Nursing & Residential Care Homes,A,2023,8
493,Community and Housing,Sunrise Rehabilitation Centre,1065329,22-Nov-23,5161.52,0,135093,Learning Disabilities Placemnt,321017              Nursing & Residential Care Homes,A,2023,8
494,Community and Housing,Sunrise Rehabilitation Centre,1065452,22-Nov-23,5043.72,0,135093,Learning Disabilities Placemnt,321017              Nursing & Residential Care Homes,A,2023,8
495,Community and Housing,Sunrise Rehabilitation Centre,1065453,22-Nov-23,5174.6,0,135093,Learning Disabilities Placemnt,321017              Nursing & Residential Care Homes,A,2023,8
496,Community and Housing,Sunrise Rehabilitation Centre,1065473,22-Nov-23,5213.88,0,135093,Learning Disabilities Placemnt,321017              Nursing & Residential Care Homes,A,2023,8
497,Community and Housing,Sunrise Rehabilitation Centre,1065533,22-Nov-23,6102,0,135093,Learning Disabilities Placemnt,321017              Nursing & Residential Care Homes,A,2023,8
498,Community and Housing,Sunrise Rehabilitation Centre,1065550,22-Nov-23,4363.08,0,135093,Learning Disabilities Placemnt,321017              Nursing & Residential Care Homes,A,2023,8
499,Community and Housing,SW LONDON ST GEORGES NHS TRUST,P0071516,30-Nov-23,5318.05,0,135195,Learning Disabilities Placemnt,310000              Healthcare,A,2023,8
500,Community and Housing,SW LONDON ST GEORGES NHS TRUST,P0071517-JRDC,01-Dec-23,2376.22,0,135195,Mental Health Placements,310000              Healthcare,A,2023,8
501,Community and Housing,SW LONDON ST GEORGES NHS TRUST,P0071517-MM,01-Dec-23,2376.22,0,135195,Mental Health Placements,310000              Healthcare,A,2023,8
502,Community and Housing,SW LONDON ST GEORGES NHS TRUST,P0071517-LZ,01-Dec-23,2376.22,0,135195,Mental Health Placements,310000              Healthcare,A,2023,8
503,Community and Housing,SW LONDON ST GEORGES NHS TRUST,P0071517-MR,01-Dec-23,2376.22,0,135195,Mental Health Placements,310000              Healthcare,A,2023,8
504,Community and Housing,SW LONDON ST GEORGES NHS TRUST,P0071517-PAJ,01-Dec-23,2376.22,0,135195,Mental Health Placements,310000              Healthcare,A,2023,8
505,Community and Housing,SW LONDON ST GEORGES NHS TRUST,P0071517-SC,01-Dec-23,2376.22,0,135195,Mental Health Placements,310000              Healthcare,A,2023,8
506,Community and Housing,SW LONDON ST GEORGES NHS TRUST,P0071517-VOID,01-Dec-23,7907.78,0,135195,Learning Disabilities Placemnt,310000              Healthcare,A,2023,8
507,"Children, Schools and Family",MERTON VISION,INV1977,15-Nov-23,8316.17,0,135428,Sensory Team,260000              Human Resources,A,2023,8
508,Community and Housing,REDACTED PERSONAL DATA,1053953,08-Nov-23,1612.64,0,135784,Phys/Sens Placements - East,DIRECT PAYMENTS,R,2023,8
509,"Children, Schools and Family",Bright Horizons - Raynes Park,P2 23 HEADCOUNT,14-Nov-23,3345.3,0,136040,EARLY YEARS NURSERY GRANTS,170000              Education,A,2023,8
510,"Children, Schools and Family",Bright Horizons - Raynes Park,P2 23 EYSG,22-Nov-23,1071,0,136040, Information & Systems Team,170000              Education,A,2023,8
511,Unassigned,LB Wandsworth Pension Fund Account,INTERFUND0303,08-Nov-23,45512.74,0,137418,London Borough of Merton,PENSIONS,A,2023,8
512,Community and Housing,REDACTED PERSONAL DATA,1053786,08-Nov-23,1320.76,0,139365,Phys/Sens Placements - East,DIRECT PAYMENTS,R,2023,8
513,"Children, Schools and Family",Building Blocks Childcare,P2 23 HEADCOUNT,14-Nov-23,6430.26,0,139778,EARLY YEARS NURSERY GRANTS,170000              Education,A,2023,8
514,"Children, Schools and Family",Building Blocks Childcare,P2 23 EYSG,22-Nov-23,2205.2,0,139778, Information & Systems Team,170000              Education,A,2023,8
515,Community and Housing,REDACTED PERSONAL DATA,1054133,08-Nov-23,625.6,0,140662,Phys/Sens Placements - East,DIRECT PAYMENTS,R,2023,8
516,Community and Housing,REDACTED PERSONAL DATA,1053808,08-Nov-23,6224.36,0,140759,Phys/Sens Placements - East,DIRECT PAYMENTS,R,2023,8
517,Community and Housing,SURREY AND BORDERS PARTNERSHIP,1065283,22-Nov-23,11448.72,0,140911,Learning Disabilities Placemnt,321017              Nursing & Residential Care Homes,A,2023,8
518,Environment and Regeneration,KELTIC CLOTHING LTD,177395,29-Nov-23,665.16,110.86,141131,Civil Enforcement Officers,140000              Clothing,A,2023,8
519,Corporate Services,REDACTED PERSONAL DATA,INVWT167,29-Nov-23,750,125,141765,SLLP - Disbursements,280000              Legal Services                                                                            Confirmed,R,2023,8
520,Community and Housing,GARWOOD FOUNDATION,1065160,22-Nov-23,3400,0,142358,Phys/Sens Placements - East,321017              Nursing & Residential Care Homes,A,2023,8
521,"Children, Schools and Family",CHUBB FIRE AND SECURITY LTD,10063673,09-Nov-23,1173.65,195.61,142411,Newminster CC Building Mgt,"390000              Works - Construction, Repair & Maintenance",A,2023,8
522,"Children, Schools and Family",CHUBB FIRE AND SECURITY LTD,10153978,30-Nov-23,731.95,121.99,142411, Children's Centres Support,"390000              Works - Construction, Repair & Maintenance",A,2023,8
523,Community and Housing,EVERGREEN PARTNERSHIP,1065212,22-Nov-23,9675,0,142455,Learning Disabilities Placemnt,321017              Nursing & Residential Care Homes,A,2023,8
524,Community and Housing,EVERGREEN PARTNERSHIP,1065230,22-Nov-23,6579.2,0,142455,Learning Disabilities Placemnt,321017              Nursing & Residential Care Homes,A,2023,8
525,Community and Housing,REDACTED PERSONAL DATA,1059128,13-Nov-23,1141.52,0,143597,MH Housing Support Placements,321000              Social Community Care Supplies & Services - Adult,R,2023,8
526,Community and Housing,REDACTED PERSONAL DATA,1059131,13-Nov-23,1426.8,0,143597,LD Housing Support Placements,321000              Social Community Care Supplies & Services - Adult,R,2023,8
527,Community and Housing,REDACTED PERSONAL DATA,1059156,13-Nov-23,1586.6,0,143597,Learning Disabilities Placemnt,321000              Social Community Care Supplies & Services - Adult,R,2023,8
528,Corporate Services,REDACTED PERSONAL DATA,JR200,06-Nov-23,814,0,143840,Translation Service,TRANSLATIONS,R,2023,8
529,Community and Housing,REDACTED PERSONAL DATA,1054075,08-Nov-23,4047.6,0,144689,Learning Disabilities Placemnt,DIRECT PAYMENTS,R,2023,8
530,Environment and Regeneration,REDACTED PERSONAL DATA,1060,16-Nov-23,585,0,144799,Development Control,"390000              Works - Construction, Repair & Maintenance",R,2023,8
531,Community and Housing,CRAEGMOOR FACILITIES - WINDSOR,1065264,22-Nov-23,7415.84,0,145152,Learning Disabilities Placemnt,321017              Nursing & Residential Care Homes,A,2023,8
532,Community and Housing,REDACTED PERSONAL DATA,1053887,08-Nov-23,5474,0,145882,Learning Disabilities Placemnt,DIRECT PAYMENTS,R,2023,8
533,"Children, Schools and Family",CAMBIAN AUTISM SERVICES LTD,CUI0002242,23-Nov-23,40788.62,0,146682,SEN Residential (DSG),321100              Social Community Care Supplies & Services - Children,A,2023,8
534,"Children, Schools and Family",CAMBIAN AUTISM SERVICES LTD,CUI0002243,23-Nov-23,26318.38,0,146682,SEN Residential (DSG),321100              Social Community Care Supplies & Services - Children,A,2023,8
535,"Children, Schools and Family",ACORN NURSERY,P2 23 HEADCOUNT,14-Nov-23,727.44,0,147406,EARLY YEARS NURSERY GRANTS,200000              Financial Services,A,2023,8
536,"Children, Schools and Family",ACORN NURSERY,P2 23 EYSG,22-Nov-23,617.4,0,147406, Information & Systems Team,200000              Financial Services,A,2023,8
537,Community and Housing,SPEECH CENTRE,111107,29-Nov-23,961.2,160.2,147920,Direct Payments,270000              Information Communication Technology,A,2023,8
538,Community and Housing,GENERATE,11485,20-Nov-23,824,0,148332,Learning Disabilities Placemnt,321000              Social Community Care Supplies & Services - Adult,A,2023,8
539,Community and Housing,GENERATE,11484,20-Nov-23,3254.8,0,148332,Learning Disabilities Placemnt,321000              Social Community Care Supplies & Services - Adult,A,2023,8
540,Community and Housing,GENERATE,11483,20-Nov-23,909,0,148332,Learning Disabilities Placemnt,321000              Social Community Care Supplies & Services - Adult,A,2023,8
541,Community and Housing,CHICHESTER HALL CARE HOME LTD,1065489,22-Nov-23,2637.2,0,148358,Older People Placements - East,321017              Nursing & Residential Care Homes,A,2023,8
542,"Children, Schools and Family",Dicky Birds Pre Sch. Nurseries Queens Rd,P2 23 EYSG,22-Nov-23,1071,0,148567, Information & Systems Team,200000              Financial Services,A,2023,8
543,"Children, Schools and Family",MARIA MONTESSORI CHILDREN'S,P2 23 HEADCOUNT,14-Nov-23,6008.8,0,148568,EARLY YEARS NURSERY GRANTS,200000              Financial Services,A,2023,8
544,"Children, Schools and Family",MARIA MONTESSORI CHILDREN'S,P2 23 SENDIF,15-Nov-23,1890,0,148568,EARLY YEARS NURSERY GRANTS,200000              Financial Services,A,2023,8
545,"Children, Schools and Family",MARIA MONTESSORI CHILDREN'S,P2 23 EYSG,22-Nov-23,1148.52,0,148568, Information & Systems Team,200000              Financial Services,A,2023,8
546,"Children, Schools and Family",REDACTED PERSONAL DATA,P2 23 HEADCOUNT,14-Nov-23,1026.06,0,149524,EARLY YEARS NURSERY GRANTS,321100              Social Community Care Supplies & Services - Children                                      Confirmed,R,2023,8
547,"Children, Schools and Family",REDACTED PERSONAL DATA,P2 23 EYSG,22-Nov-23,688.8,0,149524, Information & Systems Team,321100              Social Community Care Supplies & Services - Children                                      Confirmed,R,2023,8
548,"Children, Schools and Family",DONHEAD SCHOOL,P2 23 HEADCOUNT,14-Nov-23,5798.52,0,149760,EARLY YEARS NURSERY GRANTS,170000              Education,A,2023,8
549,"Children, Schools and Family",DONHEAD SCHOOL,ORTON23-3B,16-Nov-23,1000,0,149760,Non-Delegated Statements,170000              Education,A,2023,8
550,"Children, Schools and Family",DONHEAD SCHOOL,P2 23 SENDIF,15-Nov-23,630,0,149760,EARLY YEARS NURSERY GRANTS,170000              Education,A,2023,8
551,"Children, Schools and Family",DONHEAD SCHOOL,P2 23 EYSG,22-Nov-23,1326,0,149760, Information & Systems Team,170000              Education,A,2023,8
552,Environment and Regeneration,MICROBEE LTD,2024107,16-Nov-23,2688,448,149771,Pks Rec Grds (Unloc),240000              Horticultural,A,2023,8
553,Environment and Regeneration,MICROBEE LTD,2024127,16-Nov-23,1098,183,149771,Highways GM Contract,240000              Horticultural,A,2023,8
554,Unassigned,Canterbury Campus,SCHOOLS 2324/8 A,08-Nov-23,208759.88,0,150054,Schools,170000              Education,A,2023,8
555,Unassigned,BARNETT WADDINGHAM LLP,S24/0153,30-Nov-23,8845.5,1474.25,150927,Governance & Oversight Cost,PENSIONS,A,2023,8
556,Community and Housing,REDACTED PERSONAL DATA,1053831,08-Nov-23,3125.04,0,151002,Older People Placements - East,DIRECT PAYMENTS,R,2023,8
557,"Children, Schools and Family",GOMPELS HEALTHCARE LTD,420.44,30-Nov-23,500.37,79.93,151364,Children's Centres,130000              Cleaning & Janitorial,A,2023,8
558,Community and Housing,AIMS CARE PARTNERSHIP,1065215,22-Nov-23,10560,0,151592,Learning Disabilities Placemnt,321017              Nursing & Residential Care Homes,A,2023,8
559,Community and Housing,AIMS CARE PARTNERSHIP,1065254,22-Nov-23,3114.72,0,151592,Learning Disabilities Placemnt,321017              Nursing & Residential Care Homes,A,2023,8
560,Community and Housing,HOLISTIC COMMUNITY CARE - FC,LAMBETH P08/4,03-Nov-23,1047.48,0,151996,Older People Placements - East,321000              Social Community Care Supplies & Services - Adult,A,2023,8
561,Community and Housing,HOLISTIC COMMUNITY CARE - FC,LAMBETH P08/7,03-Nov-23,812.67,0,151996,Phys/Sens Placements - East,321000              Social Community Care Supplies & Services - Adult,A,2023,8
562,Community and Housing,HOLISTIC COMMUNITY CARE - FC,LAMBETH P08/2,03-Nov-23,687.47,0,151996,Older People Placements - East,321000              Social Community Care Supplies & Services - Adult,A,2023,8
563,Community and Housing,HOLISTIC COMMUNITY CARE - FC,LAMBETH P08/12,03-Nov-23,1518.65,0,151996,Older People Placements - East,321000              Social Community Care Supplies & Services - Adult,A,2023,8
564,Community and Housing,HOLISTIC COMMUNITY CARE - FC,LAMBETH P08/19,03-Nov-23,13770.01,0,151996,Older People Placements - East,321000              Social Community Care Supplies & Services - Adult,A,2023,8
565,Community and Housing,HOLISTIC COMMUNITY CARE - FC,LAMBETH P08/23,03-Nov-23,1583.96,0,151996,Older People Placements - East,321000              Social Community Care Supplies & Services - Adult,A,2023,8
566,Community and Housing,HOLISTIC COMMUNITY CARE - FC,LAMBETH P08/9,03-Nov-23,844.25,0,151996,Older People Placements - East,321000              Social Community Care Supplies & Services - Adult,A,2023,8
567,Community and Housing,HOLISTIC COMMUNITY CARE - FC,LAMBETH P08/21,03-Nov-23,945.42,0,151996,Older People Placements - East,321000              Social Community Care Supplies & Services - Adult,A,2023,8
568,Community and Housing,HOLISTIC COMMUNITY CARE - FC,LAMBETH P08/1,03-Nov-23,3219.02,0,151996,Older People Placements - East,321000              Social Community Care Supplies & Services - Adult,A,2023,8
569,Community and Housing,HOLISTIC COMMUNITY CARE - FC,LAMBETH P08/16,03-Nov-23,931.51,0,151996,Older People Placements - East,321000              Social Community Care Supplies & Services - Adult,A,2023,8
570,Community and Housing,HOLISTIC COMMUNITY CARE - FC,LAMBETH P08/3,03-Nov-23,2158.58,0,151996,Older People Placements - East,321000              Social Community Care Supplies & Services - Adult,A,2023,8
571,Community and Housing,HOLISTIC COMMUNITY CARE - FC,LAMBETH P08/13,03-Nov-23,889.44,0,151996,Older People Placements - East,321000              Social Community Care Supplies & Services - Adult,A,2023,8
572,Community and Housing,HOLISTIC COMMUNITY CARE - FC,LAMBETH P08/14,03-Nov-23,574.81,0,151996,Older People Placements - East,321000              Social Community Care Supplies & Services - Adult,A,2023,8
573,Community and Housing,HOLISTIC COMMUNITY CARE - FC,LAMBETH P08/11,03-Nov-23,742.75,0,151996,Older People Placements - East,321000              Social Community Care Supplies & Services - Adult,A,2023,8
574,Community and Housing,HOLISTIC COMMUNITY CARE - FC,LAMBETH P08/6,03-Nov-23,1878.04,0,151996,Older People Placements - East,321000              Social Community Care Supplies & Services - Adult,A,2023,8
575,Community and Housing,HOLISTIC COMMUNITY CARE - FC,4025,03-Nov-23,5474,0,151996,Older People Placements - East,321000              Social Community Care Supplies & Services - Adult,A,2023,8
576,Community and Housing,HOLISTIC COMMUNITY CARE - FC,4026,03-Nov-23,5474,0,151996,Learning Disabilities Placemnt,321000              Social Community Care Supplies & Services - Adult,A,2023,8
577,Community and Housing,HOLISTIC COMMUNITY CARE - FC,LAMBETH P09/4,30-Nov-23,821.36,0,151996,Older People Placements - East,321000              Social Community Care Supplies & Services - Adult,A,2023,8
578,Community and Housing,HOLISTIC COMMUNITY CARE - FC,LAMBETH P09/7,30-Nov-23,855.66,0,151996,Phys/Sens Placements - East,321000              Social Community Care Supplies & Services - Adult,A,2023,8
579,Community and Housing,HOLISTIC COMMUNITY CARE - FC,LAMBETH P09/2,30-Nov-23,689.13,0,151996,Older People Placements - East,321000              Social Community Care Supplies & Services - Adult,A,2023,8
580,Community and Housing,HOLISTIC COMMUNITY CARE - FC,LAMBETH P09/12,30-Nov-23,1522.9,0,151996,Older People Placements - East,321000              Social Community Care Supplies & Services - Adult,A,2023,8
581,Community and Housing,HOLISTIC COMMUNITY CARE - FC,LAMBETH P09/20,30-Nov-23,13764.54,0,151996,Older People Placements - East,321000              Social Community Care Supplies & Services - Adult,A,2023,8
582,Community and Housing,HOLISTIC COMMUNITY CARE - FC,LAMBETH P09/21,30-Nov-23,1068.47,0,151996,Older People Placements - East,321000              Social Community Care Supplies & Services - Adult,A,2023,8
583,Community and Housing,HOLISTIC COMMUNITY CARE - FC,LAMBETH P09/23,30-Nov-23,1625.38,0,151996,Older People Placements - East,321000              Social Community Care Supplies & Services - Adult,A,2023,8
584,Community and Housing,HOLISTIC COMMUNITY CARE - FC,LAMBETH P09/9,30-Nov-23,814.08,0,151996,Older People Placements - East,321000              Social Community Care Supplies & Services - Adult,A,2023,8
585,Community and Housing,HOLISTIC COMMUNITY CARE - FC,LAMBETH P09/22,30-Nov-23,1000,0,151996,Older People Placements - East,321000              Social Community Care Supplies & Services - Adult,A,2023,8
586,Community and Housing,HOLISTIC COMMUNITY CARE - FC,LAMBETH P09/11,30-Nov-23,813.13,0,151996,Older People Placements - East,321000              Social Community Care Supplies & Services - Adult,A,2023,8
587,Community and Housing,HOLISTIC COMMUNITY CARE - FC,LAMBETH P09/1,30-Nov-23,3205.44,0,151996,Older People Placements - East,321000              Social Community Care Supplies & Services - Adult,A,2023,8
588,Community and Housing,HOLISTIC COMMUNITY CARE - FC,LAMBETH P09/16,30-Nov-23,1172.68,0,151996,Older People Placements - East,321000              Social Community Care Supplies & Services - Adult,A,2023,8
589,Community and Housing,HOLISTIC COMMUNITY CARE - FC,LAMBETH P09/3,30-Nov-23,2272.94,0,151996,Older People Placements - East,321000              Social Community Care Supplies & Services - Adult,A,2023,8
590,Community and Housing,HOLISTIC COMMUNITY CARE - FC,LAMBETH P09/13,30-Nov-23,905.47,0,151996,Older People Placements - East,321000              Social Community Care Supplies & Services - Adult,A,2023,8
591,Community and Housing,HOLISTIC COMMUNITY CARE - FC,LAMBETH P09/6,30-Nov-23,1901.42,0,151996,Older People Placements - East,321000              Social Community Care Supplies & Services - Adult,A,2023,8
592,Community and Housing,REDACTED PERSONAL DATA,1054120,08-Nov-23,9153.2,0,152015,Older People Placements - East,321000              Social Community Care Supplies & Services - Adult,R,2023,8
593,Corporate Services,WANDSWORTH CORPORATION,WC376792128M07E,15-Nov-23,1368.44,0,152180,SLLP Client Income,OLA,A,2023,8
594,Community and Housing,BELGRAVIA ESTATES LTD,"1, 173 KINGSTON",14-Nov-23,2400,0,152558,Homelessness Prevention,200000              Financial Services,A,2023,8
595,Environment and Regeneration,THE TREE COMPANY (LONDON) LTD,38652,08-Nov-23,1416,236,152692,Pks Rec Grds (Unloc),240000              Horticultural,A,2023,8
596,Community and Housing,REDACTED PERSONAL DATA,1054021,08-Nov-23,1173,0,152709,Older People Placements - East,DIRECT PAYMENTS,R,2023,8
597,Community and Housing,REDACTED PERSONAL DATA,1053893,08-Nov-23,1964.48,0,152990,Learning Disabilities Placemnt,DIRECT PAYMENTS,R,2023,8
598,Community and Housing,LYNTON HALL NURSING HOME,1065101,24-Nov-23,3102.04,0,153795,Older People Placements - East,321017              Nursing & Residential Care Homes,A,2023,8
599,Community and Housing,LYNTON HALL NURSING HOME,1065108,24-Nov-23,2988.48,0,153795,Older People Placements - East,321017              Nursing & Residential Care Homes,A,2023,8
600,Community and Housing,LYNTON HALL NURSING HOME,1065291,24-Nov-23,3249.6,0,153795,Older People Placements - East,321017              Nursing & Residential Care Homes,A,2023,8
601,Unassigned,CFBT SCHOOLS TRUST,SCHOOLS 2324/8 A,08-Nov-23,5700,0,155275,Schools,170000              Education,A,2023,8
602,"Children, Schools and Family",BEDELSFORD SCHOOL,DI104105570,14-Nov-23,99418,0,156132,Non-Delegated Statements,170000              Education,A,2023,8
603,Community and Housing,REDACTED PERSONAL DATA,1054017,08-Nov-23,586.52,0,156180,Mental Health Placements,DIRECT PAYMENTS,R,2023,8
604,Environment and Regeneration,LONDON BOROUGH OF CAMDEN,25024744,17-Nov-23,4000,0,159338,Environmental Health-Pollution,OLA,A,2023,8
605,Environment and Regeneration,LONDON BOROUGH OF CAMDEN,25027344,29-Nov-23,975,0,159338,Pks Rec Grds (Unloc),OLA,A,2023,8
606,Community and Housing,REDACTED PERSONAL DATA,1053950,08-Nov-23,1104.44,0,159542,Older People Placements - East,DIRECT PAYMENTS,R,2023,8
607,Community and Housing,REDACTED PERSONAL DATA,1054082,08-Nov-23,3950.24,0,160044,Phys/Sens Placements - East,DIRECT PAYMENTS,R,2023,8
608,Community and Housing,PROQUEST LLC,70802894,30-Nov-23,5758.24,0,160102,Media Fund,170000              Education,A,2023,8
609,Corporate Services,TROWERS AND HAMLINS,11-221349,17-Nov-23,3720,620,160116,SLLP - Disbursements,280000              Legal Services                                                                            Confirmed,A,2023,8
610,Corporate Services,TROWERS AND HAMLINS,11-219095,21-Nov-23,1095.6,182.6,160116,SLLP - Disbursements,280000              Legal Services                                                                            Confirmed,A,2023,8
611,"Children, Schools and Family",REDACTED PERSONAL DATA,1068761,27-Nov-23,17759.65,0,160147,Child Disabilities - Placement,CSF-DIRECT PAYMENTS,R,2023,8
612,Community and Housing,REDACTED PERSONAL DATA,1053911,08-Nov-23,1422.48,0,160244,Phys/Sens Placements - East,DIRECT PAYMENTS,R,2023,8
613,Community and Housing,REDACTED PERSONAL DATA,1053861,08-Nov-23,742.92,0,160273,Learning Disabilities Placemnt,DIRECT PAYMENTS,R,2023,8
614,Community and Housing,REDACTED PERSONAL DATA,1053967,08-Nov-23,1087.44,0,160279,Phys/Sens Placements - East,DIRECT PAYMENTS,R,2023,8
615,"Children, Schools and Family",Fleet Educ.Services Ltd T/A Fleet Tutors,27654,06-Nov-23,2367.6,394.6,160300,Non-Delegated Statements,260000              Human Resources,A,2023,8
616,"Children, Schools and Family",THE NATIONAL FOSTERING AGENCY,474514,22-Nov-23,6009.57,0,160464,Placements Under 18,321100              Social Community Care Supplies & Services - Children,A,2023,8
617,"Children, Schools and Family",THE NATIONAL FOSTERING AGENCY,474513,22-Nov-23,5703.38,0,160464,Placements Under 18,321100              Social Community Care Supplies & Services - Children,A,2023,8
618,"Children, Schools and Family",THE NATIONAL FOSTERING AGENCY,474512,22-Nov-23,5703.38,0,160464,Placements Under 18,321100              Social Community Care Supplies & Services - Children,A,2023,8
619,"Children, Schools and Family",THE NATIONAL FOSTERING AGENCY,474511,22-Nov-23,4129.2,0,160464,UASC LAC Under 18,321100              Social Community Care Supplies & Services - Children,A,2023,8
620,"Children, Schools and Family",THE NATIONAL FOSTERING AGENCY,469865,09-Nov-23,3996,0,160464,UASC LAC Under 18,321100              Social Community Care Supplies & Services - Children,A,2023,8
621,Community and Housing,THE AVENUES TRUST GROUP,1004124,27-Nov-23,10268.2,0,160730,Learning Disabilities Placemnt,321017              Nursing & Residential Care Homes,A,2023,8
622,Environment and Regeneration,CITY OF LONDON CORPORATION,4351799,15-Nov-23,9355.68,1559.28,160895,Waste Disposal,180000              Environmental Services,A,2023,8
623,"Children, Schools and Family",THE AWARD SCHEME LTD,PSI178304,29-Nov-23,6005,0,161088, Duke of Edinburgh Awrds,290000              Arts & Leisure Services,A,2023,8
624,"Children, Schools and Family",REDACTED PERSONAL DATA,1052716,03-Nov-23,548.09,0,161094,UASC LAC Under 18,321100              Social Community Care Supplies & Services - Children,R,2023,8
625,"Children, Schools and Family",REDACTED PERSONAL DATA,1052814,03-Nov-23,923.22,0,161094,Placements Under 18,321100              Social Community Care Supplies & Services - Children,R,2023,8
626,"Children, Schools and Family",REDACTED PERSONAL DATA,1058794,10-Nov-23,548.09,0,161094,UASC LAC Under 18,321100              Social Community Care Supplies & Services - Children,R,2023,8
627,"Children, Schools and Family",REDACTED PERSONAL DATA,1063503,17-Nov-23,548.09,0,161094,UASC LAC Under 18,321100              Social Community Care Supplies & Services - Children,R,2023,8
628,"Children, Schools and Family",REDACTED PERSONAL DATA,1068155,24-Nov-23,548.09,0,161094,UASC LAC Under 18,321100              Social Community Care Supplies & Services - Children,R,2023,8
629,"Children, Schools and Family",REDACTED PERSONAL DATA,1068244,24-Nov-23,597.12,0,161094,Placements Under 18,321100              Social Community Care Supplies & Services - Children,R,2023,8
630,"Children, Schools and Family",REDACTED PERSONAL DATA,1072354,30-Nov-23,648.09,0,161094,UASC LAC Under 18,321100              Social Community Care Supplies & Services - Children,R,2023,8
631,"Children, Schools and Family",REDACTED PERSONAL DATA,1072446,30-Nov-23,597.12,0,161094,Placements Under 18,321100              Social Community Care Supplies & Services - Children,R,2023,8
632,Corporate Services,WALLINGTON CARS AND COURIERS LTD,303250,21-Nov-23,1894.98,315.83,162637,Post services,300000              Mail Services,A,2023,8
633,Corporate Services,WALLINGTON CARS AND COURIERS LTD,302374,28-Nov-23,1908.77,318.13,162637,Post services,300000              Mail Services,A,2023,8
634,Community and Housing,REDACTED PERSONAL DATA,1053826,08-Nov-23,1737.28,0,163392,Learning Disabilities Placemnt,DIRECT PAYMENTS,R,2023,8
635,Capital,D N H PROPERTY MAINTENANCE,2404DNH,30-Nov-23,8965.2,1494.2,163395,Mitcham Area Regeneration,"390000              Works - Construction, Repair & Maintenance",C,2023,8
636,"Children, Schools and Family",REDACTED PERSONAL DATA,1052691,03-Nov-23,548.09,0,163471,UASC LAC Under 18,200000              Financial Services,R,2023,8
637,"Children, Schools and Family",REDACTED PERSONAL DATA,1052778,03-Nov-23,785.52,0,163471,Placements Under 18,200000              Financial Services,R,2023,8
638,"Children, Schools and Family",REDACTED PERSONAL DATA,1052787,03-Nov-23,692.46,0,163471,Placements Under 18,200000              Financial Services,R,2023,8
639,"Children, Schools and Family",REDACTED PERSONAL DATA,1058770,10-Nov-23,548.09,0,163471,UASC LAC Under 18,200000              Financial Services,R,2023,8
640,"Children, Schools and Family",REDACTED PERSONAL DATA,1058851,10-Nov-23,785.52,0,163471,Placements Under 18,200000              Financial Services,R,2023,8
641,"Children, Schools and Family",REDACTED PERSONAL DATA,1058860,10-Nov-23,692.46,0,163471,Placements Under 18,200000              Financial Services,R,2023,8
642,"Children, Schools and Family",REDACTED PERSONAL DATA,1063479,17-Nov-23,548.09,0,163471,UASC LAC Under 18,200000              Financial Services,R,2023,8
643,"Children, Schools and Family",REDACTED PERSONAL DATA,1063561,17-Nov-23,785.52,0,163471,Placements Under 18,200000              Financial Services,R,2023,8
644,"Children, Schools and Family",REDACTED PERSONAL DATA,1063569,17-Nov-23,692.46,0,163471,Placements Under 18,200000              Financial Services,R,2023,8
645,"Children, Schools and Family",REDACTED PERSONAL DATA,1068130,24-Nov-23,548.09,0,163471,UASC LAC Under 18,200000              Financial Services,R,2023,8
646,"Children, Schools and Family",REDACTED PERSONAL DATA,1068211,24-Nov-23,785.52,0,163471,Placements Under 18,200000              Financial Services,R,2023,8
647,"Children, Schools and Family",REDACTED PERSONAL DATA,1068219,24-Nov-23,692.46,0,163471,Placements Under 18,200000              Financial Services,R,2023,8
648,"Children, Schools and Family",REDACTED PERSONAL DATA,1072330,30-Nov-23,548.09,0,163471,UASC LAC Under 18,200000              Financial Services,R,2023,8
649,"Children, Schools and Family",REDACTED PERSONAL DATA,1072411,30-Nov-23,785.52,0,163471,Placements Under 18,200000              Financial Services,R,2023,8
650,"Children, Schools and Family",REDACTED PERSONAL DATA,1072420,30-Nov-23,792.46,0,163471,Placements Under 18,200000              Financial Services,R,2023,8
651,"Children, Schools and Family",LA PETITE FLEUR PRE-SCHOOL,P2 23 HEADCOUNT,14-Nov-23,4646.04,0,163698,EARLY YEARS NURSERY GRANTS,200000              Financial Services,A,2023,8
652,"Children, Schools and Family",LA PETITE FLEUR PRE-SCHOOL,P2 23 EYSG,22-Nov-23,1995,0,163698, Information & Systems Team,200000              Financial Services,A,2023,8
653,Community and Housing,Active Prospects,1065136,22-Nov-23,6103.76,0,163859,Learning Disabilities Placemnt,321017              Nursing & Residential Care Homes,A,2023,8
654,Community and Housing,REDACTED PERSONAL DATA,1053857,08-Nov-23,1281.72,0,163971,Older People Placements - East,DIRECT PAYMENTS,R,2023,8
655,"Children, Schools and Family",BUMBLE BEES'S DAY NURSERY-COCC,P2 23 EYSG,22-Nov-23,4393.2,0,164240, Information & Systems Team,200000              Financial Services,A,2023,8
656,Environment and Regeneration,LONDON COUNCILS,4350648,06-Nov-23,10208.32,0,164343,Operational Running Costs,OLA,A,2023,8
657,Community and Housing,LONDON COUNCILS,4351551,13-Nov-23,228568,0,164343,Concessionary Fares,OLA,A,2023,8
658,"Children, Schools and Family",LONDON COUNCILS,4348452,20-Nov-23,5000,0,164343, Central Administration,OLA,A,2023,8
659,"Children, Schools and Family",LONDON COUNCILS,4348449,20-Nov-23,5000,0,164343, Central Administration,OLA,A,2023,8
660,Environment and Regeneration,LONDON COUNCILS,4351382,01-Dec-23,3500,0,164343,Senior Management & Support,OLA,A,2023,8
661,Corporate Services,AIRWAVE SOLUTIONS LTD,0900000194-065,14-Nov-23,617.66,102.94,164373,Safety Services,270000              Information Communication Technology,A,2023,8
662,Corporate Services,AIRWAVE SOLUTIONS LTD,0900000194-066,14-Nov-23,678.07,113.01,164373,Safety Services,270000              Information Communication Technology,A,2023,8
663,Corporate Services,AIRWAVE SOLUTIONS LTD,0900000194-067,14-Nov-23,678.07,113.01,164373,Safety Services,270000              Information Communication Technology,A,2023,8
664,Corporate Services,AIRWAVE SOLUTIONS LTD,0900000194-068,14-Nov-23,678.07,113.01,164373,Safety Services,270000              Information Communication Technology,A,2023,8
665,Community and Housing,ENTERPRISE CARE SUPPORT LTD - FC,ECS P08/2,09-Nov-23,1106.1,0,164431,Older People Placements - East,321000              Social Community Care Supplies & Services - Adult,A,2023,8
666,Community and Housing,ENTERPRISE CARE SUPPORT LTD - FC,ECS P08/14,09-Nov-23,1167.57,0,164431,Older People Placements - East,321000              Social Community Care Supplies & Services - Adult,A,2023,8
667,Community and Housing,ENTERPRISE CARE SUPPORT LTD - FC,ECS P08/32,09-Nov-23,2088.32,0,164431,Older People Placements - East,321000              Social Community Care Supplies & Services - Adult,A,2023,8
668,Community and Housing,ENTERPRISE CARE SUPPORT LTD - FC,ECS P08/21,09-Nov-23,543.3,0,164431,Older People Placements - East,321000              Social Community Care Supplies & Services - Adult,A,2023,8
669,Community and Housing,ENTERPRISE CARE SUPPORT LTD - FC,ECS P08/4,09-Nov-23,953.7,0,164431,Older People Placements - East,321000              Social Community Care Supplies & Services - Adult,A,2023,8
670,Community and Housing,ENTERPRISE CARE SUPPORT LTD - FC,ECS P08/26,09-Nov-23,1544.36,0,164431,Older People Placements - East,321000              Social Community Care Supplies & Services - Adult,A,2023,8
671,Community and Housing,ENTERPRISE CARE SUPPORT LTD - FC,ECS P08/12,09-Nov-23,1581.71,0,164431,Older People Placements - East,321000              Social Community Care Supplies & Services - Adult,A,2023,8
672,Community and Housing,ENTERPRISE CARE SUPPORT LTD - FC,ECS P08/8,09-Nov-23,668.33,0,164431,Older People Placements - East,321000              Social Community Care Supplies & Services - Adult,A,2023,8
673,Community and Housing,ENTERPRISE CARE SUPPORT LTD - FC,ECS P08/19,09-Nov-23,1009.45,0,164431,Phys/Sens Placements - East,321000              Social Community Care Supplies & Services - Adult,A,2023,8
674,Community and Housing,ENTERPRISE CARE SUPPORT LTD - FC,ECS P08/7,09-Nov-23,808.15,0,164431,Older People Placements - East,321000              Social Community Care Supplies & Services - Adult,A,2023,8
675,Community and Housing,ENTERPRISE CARE SUPPORT LTD - FC,ECS P08/6,09-Nov-23,4116.67,0,164431,Older People Placements - East,321000              Social Community Care Supplies & Services - Adult,A,2023,8
676,Community and Housing,ENTERPRISE CARE SUPPORT LTD - FC,ECS P08/22,09-Nov-23,846.43,0,164431,Older People Placements - East,321000              Social Community Care Supplies & Services - Adult,A,2023,8
677,Community and Housing,ENTERPRISE CARE SUPPORT LTD - FC,ECS P08/29,09-Nov-23,503.83,0,164431,Older People Placements - East,321000              Social Community Care Supplies & Services - Adult,A,2023,8
678,Community and Housing,ENTERPRISE CARE SUPPORT LTD - FC,ECS P08/31,09-Nov-23,1159.06,0,164431,Older People Placements - East,321000              Social Community Care Supplies & Services - Adult,A,2023,8
679,Community and Housing,ENTERPRISE CARE SUPPORT LTD - FC,ECS P08/34,09-Nov-23,826.59,0,164431,Older People Placements - East,321000              Social Community Care Supplies & Services - Adult,A,2023,8
680,Community and Housing,ENTERPRISE CARE SUPPORT LTD - FC,ECS P08/15,09-Nov-23,2886.94,0,164431,Older People Placements - East,321000              Social Community Care Supplies & Services - Adult,A,2023,8
681,Community and Housing,ENTERPRISE CARE SUPPORT LTD - FC,ECS P08/13,09-Nov-23,2970.43,0,164431,Older People Placements - East,321000              Social Community Care Supplies & Services - Adult,A,2023,8
682,Community and Housing,ENTERPRISE CARE SUPPORT LTD - FC,ECS P08/1,09-Nov-23,3112.58,0,164431,Phys/Sens Placements - East,321000              Social Community Care Supplies & Services - Adult,A,2023,8
683,Community and Housing,ENTERPRISE CARE SUPPORT LTD - FC,ECS P08/10,09-Nov-23,835.69,0,164431,Older People Placements - East,321000              Social Community Care Supplies & Services - Adult,A,2023,8
684,Community and Housing,ENTERPRISE CARE SUPPORT LTD - FC,ECS P08/18,09-Nov-23,1217.69,0,164431,Older People Placements - East,321000              Social Community Care Supplies & Services - Adult,A,2023,8
685,Community and Housing,ENTERPRISE CARE SUPPORT LTD - FC,ECS P08/24,09-Nov-23,1110.04,0,164431,Phys/Sens Placements - East,321000              Social Community Care Supplies & Services - Adult,A,2023,8
686,Community and Housing,ENTERPRISE CARE SUPPORT LTD - FC,ECS P08/25,09-Nov-23,670.67,0,164431,Phys/Sens Placements - East,321000              Social Community Care Supplies & Services - Adult,A,2023,8
687,Community and Housing,ENTERPRISE CARE SUPPORT LTD - FC,ECS P08/3,09-Nov-23,823.81,0,164431,Phys/Sens Placements - East,321000              Social Community Care Supplies & Services - Adult,A,2023,8
688,Community and Housing,BUPA CARE SERVICES BACS RECEIP,1065342,22-Nov-23,8580.84,0,164629,Older People Placements - East,321017              Nursing & Residential Care Homes,A,2023,8
689,Community and Housing,REDACTED PERSONAL DATA,1054048,08-Nov-23,2405.52,0,164694,Older People Placements - East,DIRECT PAYMENTS,R,2023,8
690,Unassigned,MARSTON GROUP,62960,22-Nov-23,1285.14,0,165202,Corporate Accountancy,200000              Financial Services,A,2023,8
691,Corporate Services,DX NETWORK SERVICES LTD,83958919,24-Nov-23,1803.35,300.56,165316,Legal Shared Service,300000              Mail Services,A,2023,8
692,"Children, Schools and Family",CHILDREN OF COLOUR,8382,10-Nov-23,5336.86,0,165365,Placements Under 18,321100              Social Community Care Supplies & Services - Children,A,2023,8
693,Community and Housing,REDACTED PERSONAL DATA,1054071,08-Nov-23,1634.32,0,165602,Learning Disabilities Placemnt,DIRECT PAYMENTS,R,2023,8
694,Community and Housing,REDACTED PERSONAL DATA,1054028,08-Nov-23,7111.44,0,165619,Phys/Sens Placements - East,DIRECT PAYMENTS,R,2023,8
695,Community and Housing,BUPA CARE HOMES (ANS) LTD,1065508,22-Nov-23,4791.48,0,165704,Older People Placements - East,321017              Nursing & Residential Care Homes,A,2023,8
696,Community and Housing,REDACTED PERSONAL DATA,1054111,08-Nov-23,1262.96,0,165786,Older People Placements - East,DIRECT PAYMENTS,R,2023,8
697,Community and Housing,REDACTED PERSONAL DATA,1054124,08-Nov-23,700.8,0,166085,Learning Disabilities Placemnt,DIRECT PAYMENTS,R,2023,8
698,Community and Housing,REDACTED PERSONAL DATA,1053816,08-Nov-23,1951.32,0,166158,Phys/Sens Placements - East,DIRECT PAYMENTS,R,2023,8
699,Community and Housing,REDACTED PERSONAL DATA,1053888,08-Nov-23,7859.54,0,166158,Older People Placements - East,DIRECT PAYMENTS,R,2023,8
700,Unassigned,COMPLETE ECOLOGY LTD,22/2324,13-Nov-23,2700,450,166208,Mitcham Common Conservators,240000              Horticultural                                                                             Confirmed,A,2023,8
701,Community and Housing,REDACTED PERSONAL DATA,1053844,08-Nov-23,1485.8,0,166547,Learning Disabilities Placemnt,DIRECT PAYMENTS,R,2023,8
702,"Children, Schools and Family",REDACTED PERSONAL DATA,1052698,03-Nov-23,1354.2,0,166742,Placements Under 18,321100              Social Community Care Supplies & Services - Children,R,2023,8
703,"Children, Schools and Family",REDACTED PERSONAL DATA,1058776,10-Nov-23,1354.2,0,166742,Placements Under 18,321100              Social Community Care Supplies & Services - Children,R,2023,8
704,"Children, Schools and Family",REDACTED PERSONAL DATA,1063485,17-Nov-23,1354.2,0,166742,Placements Under 18,321100              Social Community Care Supplies & Services - Children,R,2023,8
705,"Children, Schools and Family",REDACTED PERSONAL DATA,1068137,24-Nov-23,1354.2,0,166742,Placements Under 18,321100              Social Community Care Supplies & Services - Children,R,2023,8
706,"Children, Schools and Family",REDACTED PERSONAL DATA,1072336,30-Nov-23,1454.2,0,166742,Placements Under 18,321100              Social Community Care Supplies & Services - Children,R,2023,8
707,Community and Housing,UNIQUE OFFICE SOLUTIONS LTD,113070,08-Nov-23,1802.4,300.4,166889,LD Merton Health Staff,210000              Furniture & Soft Furnishings,A,2023,8
708,Capital,UNIQUE OFFICE SOLUTIONS LTD,113147,13-Nov-23,864,144,166889,Mitcham Area Regeneration,210000              Furniture & Soft Furnishings,A,2023,8
709,Environment and Regeneration,UNIQUE OFFICE SOLUTIONS LTD,113149,27-Nov-23,677.24,112.87,166889,Vestry Hall,210000              Furniture & Soft Furnishings,A,2023,8
710,"Children, Schools and Family",WIMBLEDON DAY NURSERY,P2 23 HEADCOUNT,14-Nov-23,6393.24,0,167298,EARLY YEARS NURSERY GRANTS,170000              Education,A,2023,8
711,"Children, Schools and Family",WIMBLEDON DAY NURSERY,P2 23 EYSG,22-Nov-23,1761.2,0,167298, Information & Systems Team,170000              Education,A,2023,8
712,Environment and Regeneration,IMPERIAL CIVIL ENFORC.SOLUT.,INV0000008723,22-Nov-23,7308.91,1218.15,167737,Civil Enforcement Officers,270000              Information Communication Technology,A,2023,8
713,"Children, Schools and Family",RAINBOW FOSTERING SERVICES LTD,RF3781,23-Nov-23,3742.13,0,167793,Placements Under 18,321100              Social Community Care Supplies & Services - Children,A,2023,8
714,"Children, Schools and Family",BURLINGTON HOUSE SCHOOL,P230940B,23-Nov-23,7148,0,167981,Non-Delegated Statements,200000              Financial Services,A,2023,8
715,Corporate Services,REDACTED PERSONAL DATA,10252144,22-Nov-23,49470.8,8189.8,168092,SLLP - Disbursements,280000              Legal Services,R,2023,8
716,Capital,CBS Adaptation Design,1811,02-Nov-23,1159.16,163.86,168147,Disabled Facilities Grant,200000              Financial Services,A,2023,8
717,Capital,CBS Adaptation Design,1821,01-Nov-23,3045.07,419.51,168147,Disabled Facilities Grant,200000              Financial Services,A,2023,8
718,Capital,CBS Adaptation Design,1828,13-Nov-23,883.99,118,168147,Disabled Facilities Grant,200000              Financial Services,A,2023,8
719,Capital,CBS Adaptation Design,1822,13-Nov-23,578.67,67.61,168147,Disabled Facilities Grant,200000              Financial Services,A,2023,8
720,Capital,CBS Adaptation Design,1827,13-Nov-23,1713.49,198.08,168147,Disabled Facilities Grant,200000              Financial Services,A,2023,8
721,Capital,CBS Adaptation Design,1824,13-Nov-23,2211.77,280.13,168147,Disabled Facilities Grant,200000              Financial Services,A,2023,8
722,Capital,CBS Adaptation Design,1807,16-Nov-23,1062.61,147.77,168147,Disabled Facilities Grant,200000              Financial Services,A,2023,8
723,Capital,CBS Adaptation Design,1823,20-Nov-23,1745.4,203.4,168147,Disabled Facilities Grant,200000              Financial Services,A,2023,8
724,Capital,CBS Adaptation Design,1825,30-Nov-23,2951.26,0,168147,Disabled Facilities Grant,200000              Financial Services,A,2023,8
725,Corporate Services,LANGUAGE BANK,MTS-270923,03-Nov-23,1134,189,168229,Translation Service,TRANSLATIONS,A,2023,8
726,Corporate Services,LANGUAGE BANK,MTS-260923,03-Nov-23,834,139,168229,Translation Service,TRANSLATIONS,A,2023,8
727,Corporate Services,LANGUAGE BANK,MTS261023,06-Nov-23,801,133.5,168229,Translation Service,TRANSLATIONS,A,2023,8
728,Corporate Services,LANGUAGE BANK,MTS-131023,06-Nov-23,1014,169,168229,Translation Service,TRANSLATIONS,A,2023,8
729,Corporate Services,LANGUAGE BANK,MTS031023,06-Nov-23,1050,175,168229,Translation Service,TRANSLATIONS,A,2023,8
730,Corporate Services,LANGUAGE BANK,MTS-011123,23-Nov-23,852,142,168229,Translation Service,TRANSLATIONS,A,2023,8
731,Corporate Services,LANGUAGE BANK,MTS-021123,27-Nov-23,546,91,168229,Translation Service,TRANSLATIONS,A,2023,8
732,Community and Housing,REDACTED PERSONAL DATA,1053849,08-Nov-23,4093.3,0,168403,Learning Disabilities Placemnt,DIRECT PAYMENTS,R,2023,8
733,Community and Housing,Wimbledon Arts T/A Wimbledon BookFest,INV-3974,10-Nov-23,2500,0,168472,LIB- National Portfolio Org,200000              Financial Services,A,2023,8
734,Community and Housing,Wimbledon Arts T/A Wimbledon BookFest,INV-3976,10-Nov-23,5000,0,168472,LIB- National Portfolio Org,200000              Financial Services,A,2023,8
735,Environment and Regeneration,Wimbledon Arts T/A Wimbledon BookFest,INV-4041,21-Nov-23,2000,0,168472,Arts (General Funding),200000              Financial Services,A,2023,8
736,"Children, Schools and Family",WILLOWS PRE SCHOOL,P2 23 EYSG,22-Nov-23,999.6,0,168752, Information & Systems Team,170000              Education,A,2023,8
737,Corporate Services,KC Services Group,61242,29-Nov-23,7716,1286,169420,Buildings Maintenance,"390000              Works - Construction, Repair & Maintenance",A,2023,8
738,Corporate Services,KC Services Group,42177,13-Nov-23,720,120,169420,Leisure Buildings,"390000              Works - Construction, Repair & Maintenance",A,2023,8
739,Corporate Services,KC Services Group,42179,17-Nov-23,1440,240,169420,Leisure Buildings,"390000              Works - Construction, Repair & Maintenance",A,2023,8
740,Corporate Services,KC Services Group,44016,13-Nov-23,720,120,169420,Buildings Maintenance,"390000              Works - Construction, Repair & Maintenance",A,2023,8
741,Community and Housing,SAFESPACES (CORNHOLME) LTD,SI-00007385,20-Nov-23,2449.91,408.32,169699,Learning Disabilities Placemnt,310000              Healthcare                                                                                Confirmed,A,2023,8
742,"Children, Schools and Family",REDACTED PERSONAL DATA,P2 23 HEADCOUNT,14-Nov-23,562.8,0,169972,EARLY YEARS NURSERY GRANTS,321100              Social Community Care Supplies & Services - Children,R,2023,8
743,"Children, Schools and Family",REDACTED PERSONAL DATA,P2 23 EYSG,22-Nov-23,949.2,0,169972, Information & Systems Team,321100              Social Community Care Supplies & Services - Children,R,2023,8
744,"Children, Schools and Family",JULIUS RUTHERFOORD AND CO LTD,INVS152044,21-Nov-23,1162.91,193.82,170092, PFI Unitary Charges,130000              Cleaning & Janitorial,A,2023,8
745,"Children, Schools and Family",JULIUS RUTHERFOORD AND CO LTD,INVS152037,21-Nov-23,932.73,155.46,170092, PFI Unitary Charges,130000              Cleaning & Janitorial,A,2023,8
746,"Children, Schools and Family",JULIUS RUTHERFOORD AND CO LTD,INVS152039,21-Nov-23,25304.67,4217.45,170092, PFI Unitary Charges,130000              Cleaning & Janitorial,A,2023,8
747,"Children, Schools and Family",JULIUS RUTHERFOORD AND CO LTD,INVS152041,21-Nov-23,2347.55,391.26,170092, PFI Unitary Charges,130000              Cleaning & Janitorial,A,2023,8
748,"Children, Schools and Family",JULIUS RUTHERFOORD AND CO LTD,INVS152042,21-Nov-23,29555.45,4925.92,170092, PFI Unitary Charges,130000              Cleaning & Janitorial,A,2023,8
749,"Children, Schools and Family",JULIUS RUTHERFOORD AND CO LTD,INVS152093,21-Nov-23,861.97,143.66,170092,Avenue CC Building Management,130000              Cleaning & Janitorial,A,2023,8
750,"Children, Schools and Family",JULIUS RUTHERFOORD AND CO LTD,INVS151996,21-Nov-23,1298.96,216.49,170092,Newminster CC Building Mgt,130000              Cleaning & Janitorial,A,2023,8
751,"Children, Schools and Family",JULIUS RUTHERFOORD AND CO LTD,INVS152036,21-Nov-23,26940.04,4490.02,170092, PFI Unitary Charges,130000              Cleaning & Janitorial,A,2023,8
752,"Children, Schools and Family",JULIUS RUTHERFOORD AND CO LTD,INVS151802,21-Nov-23,1229.42,204.9,170092,Church Road Building,130000              Cleaning & Janitorial,A,2023,8
753,"Children, Schools and Family",JULIUS RUTHERFOORD AND CO LTD,INVS151822,21-Nov-23,861.97,143.66,170092,Church Road Building,130000              Cleaning & Janitorial,A,2023,8
754,"Children, Schools and Family",JULIUS RUTHERFOORD AND CO LTD,INVS151947,21-Nov-23,862.03,143.67,170092,Ivy Garden CC Building,130000              Cleaning & Janitorial,A,2023,8
755,"Children, Schools and Family",JULIUS RUTHERFOORD AND CO LTD,INVS151772,21-Nov-23,861.97,143.66,170092,Lower Morden CC Building Mgt,130000              Cleaning & Janitorial,A,2023,8
756,"Children, Schools and Family",St Marys School & College-Talking Trust,STSI3840,10-Nov-23,17742,0,170101,SEN Residential (DSG),170000              Education,A,2023,8
757,"Children, Schools and Family",SENSATIONAL KIDS,INV-7025,07-Nov-23,1115,0,170195,Non-Delegated Statements,321100              Social Community Care Supplies & Services - Children,A,2023,8
758,"Children, Schools and Family",SENSATIONAL KIDS,INV-7065,07-Nov-23,520,0,170195,Non-Delegated Statements,321100              Social Community Care Supplies & Services - Children,A,2023,8
759,"Children, Schools and Family",SENSATIONAL KIDS,INV-7062,07-Nov-23,1115,0,170195,Non-Delegated Statements,321100              Social Community Care Supplies & Services - Children,A,2023,8
760,"Children, Schools and Family",SENSATIONAL KIDS,INV-7071,07-Nov-23,830,0,170195,Non-Delegated Statements,321100              Social Community Care Supplies & Services - Children,A,2023,8
761,Community and Housing,REDACTED PERSONAL DATA,1053797,08-Nov-23,547.4,0,170275,Phys/Sens Placements - East,DIRECT PAYMENTS,R,2023,8
762,"Children, Schools and Family",ASSOC OF EDUC.PSYCHOLOGIST (AEP),9578,22-Nov-23,840,140,170375, Education Psychology,260000              Human Resources,A,2023,8
763,Community and Housing,INDEPENDENCE HOMES LTD,1065447,22-Nov-23,8610.44,0,170527,Learning Disabilities Placemnt,321017              Nursing & Residential Care Homes,A,2023,8
764,"Children, Schools and Family",GREATER LONDON FOSTERING LTD,INV-1637,20-Nov-23,3516.95,0,170596,Placements Under 18,321100              Social Community Care Supplies & Services - Children,A,2023,8
765,"Children, Schools and Family",GREATER LONDON FOSTERING LTD,INV-1638,20-Nov-23,3697.68,0,170596,Placements Under 18,321100              Social Community Care Supplies & Services - Children,A,2023,8
766,"Children, Schools and Family",GREATER LONDON FOSTERING LTD,INV-1587,20-Nov-23,3786.34,0,170596,Placements Under 18,321100              Social Community Care Supplies & Services - Children,A,2023,8
767,"Children, Schools and Family",GREATER LONDON FOSTERING LTD,INV-1617,20-Nov-23,3786.34,0,170596,Placements Under 18,321100              Social Community Care Supplies & Services - Children,A,2023,8
768,Community and Housing,REDACTED PERSONAL DATA,1054042,08-Nov-23,2146.92,0,170878,Learning Disabilities Placemnt,DIRECT PAYMENTS,R,2023,8
769,Community and Housing,REDACTED PERSONAL DATA,1054125,08-Nov-23,1603.12,0,171056,Phys/Sens Placements - East,DIRECT PAYMENTS,R,2023,8
770,Community and Housing,ST GEORGES RES. CARE HOME,1065496,22-Nov-23,5285.48,0,171491,Learning Disabilities Placemnt,321017              Nursing & Residential Care Homes,A,2023,8
771,Community and Housing,ST GEORGES RES. CARE HOME,1065525,22-Nov-23,4366.24,0,171491,Learning Disabilities Placemnt,321017              Nursing & Residential Care Homes,A,2023,8
772,"Children, Schools and Family",St Christopher's Fellowship,20696,03-Nov-23,3122.01,0,171651,Placements Under 18,321100              Social Community Care Supplies & Services - Children,A,2023,8
773,Community and Housing,REDACTED PERSONAL DATA,1053994,08-Nov-23,698.2,0,172070,Learning Disabilities Placemnt,DIRECT PAYMENTS,R,2023,8
774,Community and Housing,NORBURY PROPERTY SERV LDN LTD,SI-9500,23-Nov-23,10311,0,172104,Bed & Breakfast - accomm,321000              Social Community Care Supplies & Services - Adult,A,2023,8
775,Community and Housing,EALING COUNCIL,1065124,22-Nov-23,2985.92,0,172129,Mental Health Placements,OLA,A,2023,8
776,Community and Housing,CARRICKS BROOK,1065143,22-Nov-23,6536.16,0,172297,Learning Disabilities Placemnt,321017              Nursing & Residential Care Homes,A,2023,8
777,Community and Housing,BROADHAM CARE LTD,1065202,22-Nov-23,8014.84,0,172298,Learning Disabilities Placemnt,321017              Nursing & Residential Care Homes,A,2023,8
778,Community and Housing,BROADHAM CARE LTD,1065479,22-Nov-23,8287.36,0,172298,Learning Disabilities Placemnt,321017              Nursing & Residential Care Homes,A,2023,8
779,Corporate Services,KENNEDYS,012300658341LOND,02-Nov-23,1081.2,180.2,172486,SLLP - Disbursements,280000              Legal Services,A,2023,8
780,Unassigned,KENNEDYS,012300723391M890,22-Nov-23,1643.4,270.4,172486,Corporate Services,280000              Legal Services,A,2023,8
781,Community and Housing,REDACTED PERSONAL DATA,1053805,08-Nov-23,1132.2,0,172912,Learning Disabilities Placemnt,DIRECT PAYMENTS,R,2023,8
782,Community and Housing,REDACTED PERSONAL DATA,1053933,08-Nov-23,968.12,0,172914,Learning Disabilities Placemnt,DIRECT PAYMENTS,R,2023,8
783,"Children, Schools and Family",REDACTED PERSONAL DATA,1063944,20-Nov-23,907.65,0,172922,Fostering Recruit/Assessment,321100              Social Community Care Supplies & Services - Children,R,2023,8
784,Community and Housing,REDACTED PERSONAL DATA,1054014,08-Nov-23,599.04,0,172936,Phys/Sens Placements - East,DIRECT PAYMENTS,R,2023,8
785,Unassigned,WILLOW BID LTD,A.GOPAUL6/11/23,10-Nov-23,26190.52,4365.09,173005,Corporate Services,250000              Housing Management,A,2023,8
786,Corporate Services,ALTODIGITAL NETWORKS LTD,902142ALTO,20-Nov-23,40823.87,6803.98,173240,Corp Print Strategy,190000              Facilities & Management Services,A,2023,8
787,Community and Housing,HAVERING COURT NURSING HOME,1065105,22-Nov-23,4954.12,0,173297,Older People Placements - East,321017              Nursing & Residential Care Homes,A,2023,8
788,Community and Housing,REDACTED PERSONAL DATA,1054012,08-Nov-23,977.52,0,173308,Phys/Sens Placements - East,DIRECT PAYMENTS,R,2023,8
789,Environment and Regeneration,SOUTH EAST LEASEHOLD,416,23-Nov-23,1050,175,173335,Property Mgt & Review,150000              Consultancy,A,2023,8
790,"Children, Schools and Family",REDACTED PERSONAL DATA,1072444,30-Nov-23,550.3,0,173600,Placements Under 18,321100              Social Community Care Supplies & Services - Children,R,2023,8
791,"Children, Schools and Family",REDACTED PERSONAL DATA,1054368,06-Nov-23,6420.44,0,173793,Child Disabilities - Placement,CSF-DIRECT PAYMENTS,R,2023,8
792,Community and Housing,REDACTED PERSONAL DATA,1054090,08-Nov-23,576.04,0,173807,Learning Disabilities Placemnt,DIRECT PAYMENTS,R,2023,8
793,Community and Housing,HARBOUR CARE (UK) LTD,1065424,22-Nov-23,6996.8,0,173947,Learning Disabilities Placemnt,321017              Nursing & Residential Care Homes,A,2023,8
794,Community and Housing,TOWNSWEB ARCHIVING LTD,ARD890-0028,09-Nov-23,600,100,174127,Heritage Project,270000              Information Communication Technology,A,2023,8
795,"Children, Schools and Family",REDACTED PERSONAL DATA,1054389,06-Nov-23,2200,0,174212, Statementing-Transport,CSF-DIRECT PAYMENTS,R,2023,8
796,Community and Housing,ASHINGTON HOUSE,1065164,22-Nov-23,4781.24,0,174259,Learning Disabilities Placemnt,321017              Nursing & Residential Care Homes,A,2023,8
797,Community and Housing,REDACTED PERSONAL DATA,1062362,15-Nov-23,2241.15,0,174449,Phys/Sens Placements - East,DIRECT PAYMENTS,R,2023,8
798,"Children, Schools and Family",REDACTED PERSONAL DATA,1072376,30-Nov-23,563.29,0,174483,Placements Under 18,321100              Social Community Care Supplies & Services - Children,R,2023,8
799,Community and Housing,PRECIOUS HOMES LTD,VER002603,14-Nov-23,10423.35,0,174641,Learning Disabilities Placemnt,321017              Nursing & Residential Care Homes,A,2023,8
800,Community and Housing,SUPREME HOMES,30572,09-Nov-23,3280,0,174758,Mental Health Placements,321017              Nursing & Residential Care Homes,A,2023,8
801,Community and Housing,ALPENBEST LIMITED,4120005471,15-Nov-23,592.63,0,174789,Older People Placements - East,321000              Social Community Care Supplies & Services - Adult,A,2023,8
802,Community and Housing,ALPENBEST LIMITED,4120005466,15-Nov-23,605.1,0,174789,Older People Placements - East,321000              Social Community Care Supplies & Services - Adult,A,2023,8
803,Community and Housing,ALPENBEST LIMITED,4120005475,15-Nov-23,592.63,0,174789,Older People Placements - East,321000              Social Community Care Supplies & Services - Adult,A,2023,8
804,Community and Housing,ALPENBEST LIMITED,4120005464,15-Nov-23,580.16,0,174789,Older People Placements - East,321000              Social Community Care Supplies & Services - Adult,A,2023,8
805,Community and Housing,ALPENBEST LIMITED,4120005474,15-Nov-23,580.16,0,174789,Older People Placements - East,321000              Social Community Care Supplies & Services - Adult,A,2023,8
806,Community and Housing,ALPENBEST LIMITED,4120005469,17-Nov-23,580.16,0,174789,Older People Placements - East,321000              Social Community Care Supplies & Services - Adult,A,2023,8
807,Community and Housing,ALPENBEST LIMITED,4120005558,20-Nov-23,580.16,0,174789,Older People Placements - East,321000              Social Community Care Supplies & Services - Adult,A,2023,8
808,Community and Housing,ALPENBEST LIMITED,4120005559,20-Nov-23,592.63,0,174789,Older People Placements - East,321000              Social Community Care Supplies & Services - Adult,A,2023,8
809,Community and Housing,ALPENBEST LIMITED,4120005562,20-Nov-23,580.16,0,174789,Older People Placements - East,321000              Social Community Care Supplies & Services - Adult,A,2023,8
810,Community and Housing,ALPENBEST LIMITED,4120005563,20-Nov-23,617.57,0,174789,Older People Placements - East,321000              Social Community Care Supplies & Services - Adult,A,2023,8
811,Community and Housing,SUTTON COURT CARE CENTRE,1065235,22-Nov-23,3723.24,0,174833,Older People Placements - East,321017              Nursing & Residential Care Homes,A,2023,8
812,Community and Housing,SUTTON COURT CARE CENTRE,1065313,22-Nov-23,3163.36,0,174833,Older People Placements - East,321017              Nursing & Residential Care Homes,A,2023,8
813,Community and Housing,SUTTON COURT CARE CENTRE,1065344,22-Nov-23,4049.6,0,174833,Phys/Sens Placements - East,321017              Nursing & Residential Care Homes,A,2023,8
814,Community and Housing,SUTTON COURT CARE CENTRE,1065354,22-Nov-23,3286.75,0,174833,Older People Placements - East,321017              Nursing & Residential Care Homes,A,2023,8
815,Community and Housing,SUTTON COURT CARE CENTRE,1065500,22-Nov-23,4139.36,0,174833,Phys/Sens Placements - East,321017              Nursing & Residential Care Homes,A,2023,8
816,Community and Housing,REDACTED PERSONAL DATA,1053775,08-Nov-23,782,0,174975,Learning Disabilities Placemnt,DIRECT PAYMENTS,R,2023,8
817,Corporate Services,COSMIC EUROPE LIMTED,UK7420,10-Nov-23,636,106,175169,Translation Service,TRANSLATIONS,A,2023,8
818,Corporate Services,COSMIC EUROPE LIMTED,UK7423,10-Nov-23,882,147,175169,Translation Service,TRANSLATIONS,A,2023,8
819,Corporate Services,COSMIC EUROPE LIMTED,UK7430,10-Nov-23,570,95,175169,Translation Service,TRANSLATIONS,A,2023,8
820,Corporate Services,COSMIC EUROPE LIMTED,UK7433,10-Nov-23,2226,371,175169,Translation Service,TRANSLATIONS,A,2023,8
821,Corporate Services,GOODWIN MALATESTA LEGAL COSTS,12388,23-Nov-23,3510,585,175209,SLLP - Disbursements,260000              Human Resources,A,2023,8
822,"Children, Schools and Family",GLOBAL MEDIATION LTD,INV-94854,22-Nov-23,2640,440,175270,Non-Delegated Statements,260000              Human Resources                                                                           Confirmed,A,2023,8
823,Community and Housing,KISIMUL SCHOOL,1065130,22-Nov-23,14008.68,0,175545,Learning Disabilities Placemnt,321017              Nursing & Residential Care Homes,A,2023,8
824,Community and Housing,KISIMUL SCHOOL,1065388,22-Nov-23,17689.84,0,175545,Learning Disabilities Placemnt,321017              Nursing & Residential Care Homes,A,2023,8
825,Community and Housing,REDACTED PERSONAL DATA,1054108,08-Nov-23,2189.6,0,175782,Phys/Sens Placements - East,DIRECT PAYMENTS,R,2023,8
826,Corporate Services,TWOFOLD LTD,16457,27-Nov-23,16938.2,2823.03,175861,Business Systems,270000              Information Communication Technology,A,2023,8
827,Community and Housing,REDACTED PERSONAL DATA,1053952,08-Nov-23,1600.6,0,175960,Learning Disabilities Placemnt,DIRECT PAYMENTS,R,2023,8
828,Unassigned,A.J.OAKES AND PARTNERS,2023/138,16-Nov-23,14400,2400,176052,Corporate Services,"390000              Works - Construction, Repair & Maintenance",A,2023,8
829,Community and Housing,REDACTED PERSONAL DATA,1053964,08-Nov-23,552.44,0,176619,Phys/Sens Placements - East,DIRECT PAYMENTS,R,2023,8
830,Community and Housing,REDACTED PERSONAL DATA,1053936,08-Nov-23,6410.36,0,176783,Phys/Sens Placements - East,DIRECT PAYMENTS,R,2023,8
831,"Children, Schools and Family",THE PRE-SCHOOL GROUP LTD,P2 23 HEADCOUNT,14-Nov-23,11713.42,0,176785,EARLY YEARS NURSERY GRANTS,200000              Financial Services,A,2023,8
832,"Children, Schools and Family",THE PRE-SCHOOL GROUP LTD,P2 23 SENDIF,15-Nov-23,3276,0,176785,EARLY YEARS NURSERY GRANTS,200000              Financial Services,A,2023,8
833,"Children, Schools and Family",THE PRE-SCHOOL GROUP LTD,P2 23 EYSG,22-Nov-23,5465.74,0,176785, Information & Systems Team,200000              Financial Services,A,2023,8
834,Community and Housing,REDACTED PERSONAL DATA,1054049,08-Nov-23,1800.4,0,176868,Phys/Sens Placements - East,DIRECT PAYMENTS,R,2023,8
835,Corporate Services,LOGOTECH SYSTEMS,108002,01-Dec-23,2880,480,176925,Treasury Team,200000              Financial Services,A,2023,8
836,Community and Housing,SPRING LAKE CARE HOME LTD,1065281,22-Nov-23,11418,0,177067,Learning Disabilities Placemnt,321017              Nursing & Residential Care Homes,A,2023,8
837,Community and Housing,SPRING LAKE CARE HOME LTD,1065494,22-Nov-23,6468,0,177067,Learning Disabilities Placemnt,321017              Nursing & Residential Care Homes,A,2023,8
838,"Children, Schools and Family",HA TUTORS LTD,INV-14122,06-Nov-23,7796.4,1299.4,177219,Non-Delegated Statements,170000              Education,A,2023,8
839,"Children, Schools and Family",HA TUTORS LTD,INV-14121,06-Nov-23,2596.2,432.7,177219,Non-Delegated Statements,170000              Education,A,2023,8
840,"Children, Schools and Family",HA TUTORS LTD,INV-14120,06-Nov-23,2690.4,448.4,177219,Non-Delegated Statements,170000              Education,A,2023,8
841,"Children, Schools and Family",HA TUTORS LTD,INV-14119,06-Nov-23,2886,481,177219,Non-Delegated Statements,170000              Education,A,2023,8
842,"Children, Schools and Family",HA TUTORS LTD,INV-14118,06-Nov-23,5846.4,974.4,177219,Non-Delegated Statements,170000              Education,A,2023,8
843,"Children, Schools and Family",HA TUTORS LTD,INV-14117,06-Nov-23,1447.8,241.3,177219,Non-Delegated Statements,170000              Education,A,2023,8
844,"Children, Schools and Family",HA TUTORS LTD,INV-14116,06-Nov-23,5649.6,941.6,177219,Non-Delegated Statements,170000              Education,A,2023,8
845,"Children, Schools and Family",HA TUTORS LTD,INV-14115,06-Nov-23,4699.2,783.2,177219,Non-Delegated Statements,170000              Education,A,2023,8
846,Corporate Services,EXPERT IN MIND,41583,23-Nov-23,648,108,177342,SLLP - Disbursements,280000              Legal Services                                                                            Confirmed,A,2023,8
847,"Children, Schools and Family",EXPERT IN MIND,42755,23-Nov-23,4829.76,804.96,177342,Family Supp SafeGuard - Place,280000              Legal Services                                                                            Confirmed,A,2023,8
848,Corporate Services,EXPERT IN MIND,42887,29-Nov-23,1496.88,249.48,177342,SLLP - Disbursements,280000              Legal Services                                                                            Confirmed,A,2023,8
849,"Children, Schools and Family",HYTYME B AND B,27251,03-Nov-23,1432.2,238.7,177425,Family Assessmt & Intervention,321000              Social Community Care Supplies & Services - Adult,A,2023,8
850,Community and Housing,HYTYME B AND B,27241,06-Nov-23,4119.6,686.6,177425,Housing Strategy,321000              Social Community Care Supplies & Services - Adult,A,2023,8
851,"Children, Schools and Family",HYTYME B AND B,27138,09-Nov-23,2008.8,334.8,177425,Family Supp SafeGuard - Place,321000              Social Community Care Supplies & Services - Adult,A,2023,8
852,"Children, Schools and Family",HYTYME B AND B,27262,09-Nov-23,2008.8,334.8,177425,Family Supp SafeGuard - Place,321000              Social Community Care Supplies & Services - Adult,A,2023,8
853,Community and Housing,HYTYME B AND B,27240,14-Nov-23,21345.6,3557.6,177425,Bed & Breakfast - accomm,321000              Social Community Care Supplies & Services - Adult,A,2023,8
854,"Children, Schools and Family",HYTYME B AND B,27272,14-Nov-23,816.48,136.08,177425,Family Assessmt & Intervention,321000              Social Community Care Supplies & Services - Adult,A,2023,8
855,Community and Housing,REDACTED PERSONAL DATA,1053847,08-Nov-23,856.72,0,177453,Phys/Sens Placements - East,DIRECT PAYMENTS,R,2023,8
856,Community and Housing,REDACTED PERSONAL DATA,1053837,08-Nov-23,724.72,0,177476,Learning Disabilities Placemnt,DIRECT PAYMENTS,R,2023,8
857,Community and Housing,REDACTED PERSONAL DATA,1053778,08-Nov-23,1444.8,0,177502,Phys/Sens Placements - East,DIRECT PAYMENTS,R,2023,8
858,"Children, Schools and Family",BUTTERFLIES CHILDCARE LIMITED,P2 23 HEADCOUNT,14-Nov-23,4752.3,0,177504,EARLY YEARS NURSERY GRANTS,200000              Financial Services,A,2023,8
859,"Children, Schools and Family",BUTTERFLIES CHILDCARE LIMITED,P2 23 EYSG,22-Nov-23,1831.2,0,177504, Information & Systems Team,200000              Financial Services,A,2023,8
860,Environment and Regeneration,SUSTAINABLE MERTON,1604,16-Nov-23,2000,0,177594,HLF Canons,190000              Facilities & Management Services,A,2023,8
861,Community and Housing,VOICEABILITY,12117,01-Dec-23,3683.75,0,177608,Adult Safeguarding,321000              Social Community Care Supplies & Services - Adult,A,2023,8
862,Community and Housing,VOICEABILITY,12116,01-Dec-23,2894.38,0,177608,Adult Safeguarding,321000              Social Community Care Supplies & Services - Adult,A,2023,8
863,Community and Housing,VOICEABILITY,12115,01-Dec-23,13051,0,177608,Adult Safeguarding,321000              Social Community Care Supplies & Services - Adult,A,2023,8
864,Community and Housing,VOICEABILITY,12119,01-Dec-23,3262.75,0,177608,Adult Safeguarding,321000              Social Community Care Supplies & Services - Adult,A,2023,8
865,Community and Housing,VOICEABILITY,12118,01-Dec-23,3520.8,0,177608,Adult Safeguarding,321000              Social Community Care Supplies & Services - Adult,A,2023,8
866,"Children, Schools and Family",Catch 22 Charity Ltd,CSI0001917,15-Nov-23,113400,18900,177705, Young Person Substance Misuse,321100              Social Community Care Supplies & Services - Children,A,2023,8
867,"Children, Schools and Family",Catch 22 Charity Ltd,CSI0001918,16-Nov-23,21000,0,177705, Young Person Substance Misuse,321100              Social Community Care Supplies & Services - Children,A,2023,8
868,"Children, Schools and Family",Catch 22 Charity Ltd,CSI0000807,17-Nov-23,3954,659,177705,Care Experienced Over 18,321100              Social Community Care Supplies & Services - Children,A,2023,8
869,Community and Housing,REDACTED PERSONAL DATA,1053853,08-Nov-23,703.8,0,177739,Phys/Sens Placements - East,DIRECT PAYMENTS,R,2023,8
870,Community and Housing,REDACTED PERSONAL DATA,1053864,08-Nov-23,821.12,0,177785,Phys/Sens Placements - East,DIRECT PAYMENTS,R,2023,8
871,"Children, Schools and Family",MINI TREASURES DAY NURSERY,P2 23 HEADCOUNT,14-Nov-23,22885.8,0,177930,EARLY YEARS NURSERY GRANTS,200000              Financial Services,A,2023,8
872,"Children, Schools and Family",MINI TREASURES DAY NURSERY,P2 23 EYSG,22-Nov-23,2234.4,0,177930, Information & Systems Team,200000              Financial Services,A,2023,8
873,Capital,WORKSHOP 305,NEIGHBOURHOOD,09-Nov-23,14570.4,0,177941,Wimbledon Area Regeneration,321000              Social Community Care Supplies & Services - Adult,A,2023,8
874,Capital,WORKSHOP 305,NEIGHBOURHOOD 22,10-Nov-23,14570.4,0,177941,Wimbledon Area Regeneration,321000              Social Community Care Supplies & Services - Adult,A,2023,8
875,Community and Housing,WORKSHOP 305,WJON171,14-Nov-23,855.96,0,177941,Learning Disabilities Placemnt,321000              Social Community Care Supplies & Services - Adult,A,2023,8
876,Community and Housing,WORKSHOP 305,SLAP171,14-Nov-23,570.6,0,177941,Learning Disabilities Placemnt,321000              Social Community Care Supplies & Services - Adult,A,2023,8
877,Community and Housing,WORKSHOP 305,RAG171,14-Nov-23,855.96,0,177941,Learning Disabilities Placemnt,321000              Social Community Care Supplies & Services - Adult,A,2023,8
878,Community and Housing,WORKSHOP 305,IALA171,14-Nov-23,570.64,0,177941,Learning Disabilities Placemnt,321000              Social Community Care Supplies & Services - Adult,A,2023,8
879,Community and Housing,REDACTED PERSONAL DATA,1053900,08-Nov-23,1094.8,0,177999,Learning Disabilities Placemnt,DIRECT PAYMENTS,R,2023,8
880,Community and Housing,REDACTED PERSONAL DATA,1053839,08-Nov-23,1212.28,0,178412,Learning Disabilities Placemnt,DIRECT PAYMENTS,R,2023,8
881,Community and Housing,REDACTED PERSONAL DATA,1054019,08-Nov-23,5439,0,178412,Learning Disabilities Placemnt,DIRECT PAYMENTS,R,2023,8
882,"Children, Schools and Family",Little Hearts Pre School,P2 23 EYSG,22-Nov-23,2112.6,0,178454, Information & Systems Team,200000              Financial Services,A,2023,8
883,Community and Housing,BRAMBLEDOWN CARE HOME,1065292,22-Nov-23,8081.96,0,178465,Phys/Sens Placements - East,321017              Nursing & Residential Care Homes,A,2023,8
884,Community and Housing,KEW HOUSE,1065301,22-Nov-23,3289.24,0,178621,Older People Placements - East,321017              Nursing & Residential Care Homes,A,2023,8
885,Community and Housing,KEW HOUSE,1065385,22-Nov-23,5800,0,178621,Older People Placements - East,321017              Nursing & Residential Care Homes,A,2023,8
886,Community and Housing,KEW HOUSE,1065461,22-Nov-23,8321.16,0,178621,Older People Placements - East,321017              Nursing & Residential Care Homes,A,2023,8
887,Community and Housing,REDACTED PERSONAL DATA,1054029,08-Nov-23,4893.48,0,178802,Learning Disabilities Placemnt,DIRECT PAYMENTS,R,2023,8
888,Community and Housing,REDACTED PERSONAL DATA,1053969,08-Nov-23,2306.92,0,178874,Learning Disabilities Placemnt,DIRECT PAYMENTS,R,2023,8
889,"Children, Schools and Family",MODERN MONTESSORI INTL. LTD,P2 23 HEADCOUNT,14-Nov-23,2017.68,0,178883,EARLY YEARS NURSERY GRANTS,200000              Financial Services,A,2023,8
890,"Children, Schools and Family",MODERN MONTESSORI INTL. LTD,P2 23 EYSG,22-Nov-23,2469.6,0,178883, Information & Systems Team,200000              Financial Services,A,2023,8
891,Corporate Services,PENNA PLC,679775,24-Nov-23,877.2,146.2,179007,Director Finance & Digital,190000              Facilities & Management Services,A,2023,8
892,Unassigned,PENNA PLC,679776,24-Nov-23,19298.4,3216.4,179007,Director Innovation and Change,190000              Facilities & Management Services,A,2023,8
893,Community and Housing,REDACTED PERSONAL DATA,1054138,08-Nov-23,1532.12,0,179049,Learning Disabilities Placemnt,DIRECT PAYMENTS,R,2023,8
894,Corporate Services,REDACTED PERSONAL DATA,INV/RMH239,17-Nov-23,1170,195,179069,SLLP - Disbursements,280000              Legal Services                                                                            confimed,R,2023,8
895,Corporate Services,REDACTED PERSONAL DATA,INV/RMH240,17-Nov-23,960,160,179069,SLLP - Disbursements,280000              Legal Services                                                                            confimed,R,2023,8
896,"Children, Schools and Family",WILLOWS PRE-SCHOOL,P2 23 HEADCOUNT,14-Nov-23,6913.62,0,179134,EARLY YEARS NURSERY GRANTS,170000              Education,A,2023,8
897,"Children, Schools and Family",WILLOWS PRE-SCHOOL,P2 23 EYSG,22-Nov-23,2213.4,0,179134, Information & Systems Team,170000              Education,A,2023,8
898,Community and Housing,REDACTED PERSONAL DATA,1053753,08-Nov-23,751,0,179142,Learning Disabilities Placemnt,DIRECT PAYMENTS,R,2023,8
899,"Children, Schools and Family",LITTLE HANDS MONTESSORI,P2 23 HEADCOUNT,14-Nov-23,5602.68,0,179165,EARLY YEARS NURSERY GRANTS,200000              Financial Services,A,2023,8
900,"Children, Schools and Family",LITTLE HANDS MONTESSORI,P2 23 EYSG,22-Nov-23,688.32,0,179165, Information & Systems Team,200000              Financial Services,A,2023,8
901,"Children, Schools and Family",HAYS SPECIALIST RECRUITM'T LTD,1013281501,27-Nov-23,3999.6,666.6,179169, Central Administration,260000              Human Resources,A,2023,8
902,Community and Housing,REDACTED PERSONAL DATA,1053991,08-Nov-23,2126.36,0,179332,Phys/Sens Placements - East,DIRECT PAYMENTS,R,2023,8
903,Community and Housing,REDACTED PERSONAL DATA,1054045,08-Nov-23,4941.4,0,179383,Learning Disabilities Placemnt,DIRECT PAYMENTS,R,2023,8
904,Community and Housing,ELYSIUM CARE PARTNERSHIPS LTD,1065334,22-Nov-23,9818.32,0,179734,Learning Disabilities Placemnt,321017              Nursing & Residential Care Homes,A,2023,8
905,Community and Housing,ELYSIUM CARE PARTNERSHIPS LTD,1065352,22-Nov-23,3462.2,0,179734,Learning Disabilities Placemnt,321017              Nursing & Residential Care Homes,A,2023,8
906,Community and Housing,ELYSIUM CARE PARTNERSHIPS LTD,1065466,22-Nov-23,9821,0,179734,Learning Disabilities Placemnt,321017              Nursing & Residential Care Homes,A,2023,8
907,Community and Housing,WESTHOPE LTD,1065297,22-Nov-23,6350.78,1058.46,179748,Learning Disabilities Placemnt,321017              Nursing & Residential Care Homes,A,2023,8
908,Community and Housing,SUNNINGDALE HOUSE CARE HOME,1065458,22-Nov-23,2575,0,179794,Learning Disabilities Placemnt,321017              Nursing & Residential Care Homes,A,2023,8
909,Community and Housing,SUNLIGHT HOUSE,1065236,22-Nov-23,7667.6,0,179813,Learning Disabilities Placemnt,321017              Nursing & Residential Care Homes,A,2023,8
910,Community and Housing,SUNLIGHT HOUSE,1065358,22-Nov-23,5140,0,179813,Learning Disabilities Placemnt,321017              Nursing & Residential Care Homes,A,2023,8
911,"Children, Schools and Family",COLLIERS WOOD VILLAGE DAY NUR.,P2 23 HEADCOUNT,14-Nov-23,7147.14,0,179896,EARLY YEARS NURSERY GRANTS,200000              Financial Services,A,2023,8
912,"Children, Schools and Family",COLLIERS WOOD VILLAGE DAY NUR.,P2 23 EYSG,22-Nov-23,2969.4,0,179896, Information & Systems Team,200000              Financial Services,A,2023,8
913,Community and Housing,BHAKTI SHYAMA CARE CENTRE,1065270,22-Nov-23,3557.92,0,179993,Older People Placements - East,321017              Nursing & Residential Care Homes,A,2023,8
914,Community and Housing,BHAKTI SHYAMA CARE CENTRE,1065537,22-Nov-23,2985.6,0,179993,Older People Placements - East,321017              Nursing & Residential Care Homes,A,2023,8
915,Community and Housing,BHAKTI SHYAMA CARE CENTRE,1065541,22-Nov-23,3800,0,179993,Older People Placements - East,321017              Nursing & Residential Care Homes,A,2023,8
916,"Children, Schools and Family",REAMCARE LTD,LHRPAM112301,14-Nov-23,20105.67,0,180045,Placements Under 18,321100              Social Community Care Supplies & Services - Children Residential,A,2023,8
917,Community and Housing,REDACTED PERSONAL DATA,1054119,08-Nov-23,1290.88,0,180174,Older People Placements - East,DIRECT PAYMENTS,R,2023,8
918,Community and Housing,SUNRISE DAY CARE,4632,16-Nov-23,507.43,0,180196,Older People Placements - East,321000              Social Community Care Supplies & Services - Adult,A,2023,8
919,Corporate Services,REDACTED PERSONAL DATA,INVMHU981,27-Nov-23,4200,700,180217,SLLP - Disbursements,280000              Legal Services                                                                            Confirmed,R,2023,8
920,Community and Housing,REDACTED PERSONAL DATA,1053895,08-Nov-23,625.6,0,180242,Phys/Sens Placements - East,DIRECT PAYMENTS,R,2023,8
921,Community and Housing,REDACTED PERSONAL DATA,1054050,08-Nov-23,1446.72,0,180282,Phys/Sens Placements - East,DIRECT PAYMENTS,R,2023,8
922,Community and Housing,REDACTED PERSONAL DATA,1053781,08-Nov-23,3365.68,0,180285,Older People Placements - East,DIRECT PAYMENTS,R,2023,8
923,Community and Housing,SEVACARE,29.10.23/10,09-Nov-23,589.7,0,180307,Older People Placements - East,321000              Social Community Care Supplies & Services - Adult,A,2023,8
924,Community and Housing,SEVACARE,29.10.23/3,09-Nov-23,1293.57,0,180307,Older People Placements - East,321000              Social Community Care Supplies & Services - Adult,A,2023,8
925,Community and Housing,SEVACARE,29.10.23/9,09-Nov-23,561.37,0,180307,Older People Placements - East,321000              Social Community Care Supplies & Services - Adult,A,2023,8
926,Community and Housing,SEVACARE,29.10.23/1,09-Nov-23,2678.58,0,180307,Phys/Sens Placements - East,321000              Social Community Care Supplies & Services - Adult,A,2023,8
927,Community and Housing,SEVACARE,29.10.23/2,09-Nov-23,1115.29,0,180307,Older People Placements - East,321000              Social Community Care Supplies & Services - Adult,A,2023,8
928,Community and Housing,SEVACARE,29.10.23/4,09-Nov-23,1323.14,0,180307,Older People Placements - East,321000              Social Community Care Supplies & Services - Adult,A,2023,8
929,Community and Housing,SEVACARE,82016-514140,13-Nov-23,2468.82,0,180307,Older People Placements - East,321000              Social Community Care Supplies & Services - Adult,A,2023,8
930,Community and Housing,SEVACARE,82016-752403,13-Nov-23,1001.84,0,180307,Older People Placements - East,321000              Social Community Care Supplies & Services - Adult,A,2023,8
931,Community and Housing,SEVACARE,82016-791266,13-Nov-23,626.15,0,180307,Older People Placements - East,321000              Social Community Care Supplies & Services - Adult,A,2023,8
932,Community and Housing,SEVACARE,82016-869265,13-Nov-23,769.27,0,180307,Older People Placements - East,321000              Social Community Care Supplies & Services - Adult,A,2023,8
933,Community and Housing,SEVACARE,82016-994084,13-Nov-23,644.04,0,180307,Older People Placements - East,321000              Social Community Care Supplies & Services - Adult,A,2023,8
934,Community and Housing,SEVACARE,82016-982561,13-Nov-23,966.06,0,180307,Older People Placements - East,321000              Social Community Care Supplies & Services - Adult,A,2023,8
935,Community and Housing,SEVACARE,82016-79481,13-Nov-23,1896.34,0,180307,Older People Placements - East,321000              Social Community Care Supplies & Services - Adult,A,2023,8
936,Community and Housing,SEVACARE,82016-98888,13-Nov-23,1216.52,0,180307,Older People Placements - East,321000              Social Community Care Supplies & Services - Adult,A,2023,8
937,Community and Housing,SEVACARE,82016-533922,13-Nov-23,10018.4,0,180307,Older People Placements - East,321000              Social Community Care Supplies & Services - Adult,A,2023,8
938,Community and Housing,SEVACARE,82016-976659,13-Nov-23,523.28,0,180307,Older People Placements - East,321000              Social Community Care Supplies & Services - Adult,A,2023,8
939,Community and Housing,SEVACARE,82016-506355,13-Nov-23,930.28,0,180307,Phys/Sens Placements - East,321000              Social Community Care Supplies & Services - Adult,A,2023,8
940,Community and Housing,SEVACARE,82016-569458,13-Nov-23,1466.98,0,180307,Phys/Sens Placements - East,321000              Social Community Care Supplies & Services - Adult,A,2023,8
941,Community and Housing,SEVACARE,82016-41998,13-Nov-23,590.37,0,180307,Phys/Sens Placements - East,321000              Social Community Care Supplies & Services - Adult,A,2023,8
942,Community and Housing,SEVACARE,82016-72049,13-Nov-23,1144.96,0,180307,Learning Disabilities Placemnt,321000              Social Community Care Supplies & Services - Adult,A,2023,8
943,Community and Housing,SEVACARE,82016-52108,13-Nov-23,644.04,0,180307,Learning Disabilities Placemnt,321000              Social Community Care Supplies & Services - Adult,A,2023,8
944,Community and Housing,SEVACARE,82016-872605,13-Nov-23,661.93,0,180307,Older People Placements - East,321000              Social Community Care Supplies & Services - Adult,A,2023,8
945,Community and Housing,SEVACARE,82016-867847,13-Nov-23,1127.07,0,180307,Older People Placements - East,321000              Social Community Care Supplies & Services - Adult,A,2023,8
946,Community and Housing,SEVACARE,82016-565513,13-Nov-23,3059.19,0,180307,Phys/Sens Placements - East,321000              Social Community Care Supplies & Services - Adult,A,2023,8
947,Community and Housing,SEVACARE,82016-78739,13-Nov-23,715.6,0,180307,Learning Disabilities Placemnt,321000              Social Community Care Supplies & Services - Adult,A,2023,8
948,Community and Housing,SEVACARE,82016-74975,13-Nov-23,1842.67,0,180307,Older People Placements - East,321000              Social Community Care Supplies & Services - Adult,A,2023,8
949,Community and Housing,SEVACARE,82016-38267,13-Nov-23,1091.29,0,180307,Older People Placements - East,321000              Social Community Care Supplies & Services - Adult,A,2023,8
950,Community and Housing,SEVACARE,82016-68278,13-Nov-23,3041.3,0,180307,Learning Disabilities Placemnt,321000              Social Community Care Supplies & Services - Adult,A,2023,8
951,Community and Housing,SEVACARE,82016-16984,13-Nov-23,500.92,0,180307,Older People Placements - East,321000              Social Community Care Supplies & Services - Adult,A,2023,8
952,Community and Housing,SEVACARE,82016-72268,13-Nov-23,1395.42,0,180307,Learning Disabilities Placemnt,321000              Social Community Care Supplies & Services - Adult,A,2023,8
953,Community and Housing,SEVACARE,82016-654036,13-Nov-23,644.04,0,180307,Older People Placements - East,321000              Social Community Care Supplies & Services - Adult,A,2023,8
954,Community and Housing,SEVACARE,82016-614353,13-Nov-23,518.81,0,180307,Older People Placements - East,321000              Social Community Care Supplies & Services - Adult,A,2023,8
955,Community and Housing,SEVACARE,82016-871695,13-Nov-23,1019.73,0,180307,Older People Placements - East,321000              Social Community Care Supplies & Services - Adult,A,2023,8
956,Community and Housing,SEVACARE,82016-503697,13-Nov-23,894.5,0,180307,Older People Placements - East,321000              Social Community Care Supplies & Services - Adult,A,2023,8
957,Community and Housing,SEVACARE,82016-932264,13-Nov-23,518.81,0,180307,Older People Placements - East,321000              Social Community Care Supplies & Services - Adult,A,2023,8
958,"Children, Schools and Family",BURNTWOOD SCHOOL,BTSI173,10-Nov-23,20228.86,0,180406,Non-Delegated Statements,170000              Education,A,2023,8
959,Environment and Regeneration,UK Power Networks (Faults / Operations),92186456,22-Nov-23,1872,312,180431,Street Lighting,190000              Facilities & Management Services,A,2023,8
960,Unassigned,UK Power Networks (Faults / Operations),92187783,01-Dec-23,1872,312,180431,Environment and Regeneration,190000              Facilities & Management Services,A,2023,8
961,Environment and Regeneration,UK Power Networks (Faults / Operations),92187781,01-Dec-23,1872,312,180431,Traffic Signs,190000              Facilities & Management Services,A,2023,8
962,"Children, Schools and Family",RESTORE PLC,1415587,20-Nov-23,878.82,146.47,180441,Head of CSC & Youth Inclusion,190000              Facilities & Management Services,A,2023,8
963,"Children, Schools and Family",RESTORE PLC,1411690,20-Nov-23,1501.81,250.3,180441,Fostering Recruit/Assessment,190000              Facilities & Management Services,A,2023,8
964,"Children, Schools and Family",RESTORE PLC,1411691,20-Nov-23,4159.9,693.32,180441,Fostering Recruit/Assessment,190000              Facilities & Management Services,A,2023,8
965,Corporate Services,RESTORE PLC,1419153,20-Nov-23,776.34,129.39,180441,Legal Shared Service,190000              Facilities & Management Services,A,2023,8
966,Community and Housing,REDACTED PERSONAL DATA,1054077,08-Nov-23,862.96,0,180447,Older People Placements - East,DIRECT PAYMENTS,R,2023,8
967,Community and Housing,REDACTED PERSONAL DATA,1053919,08-Nov-23,616.32,0,180478,Phys/Sens Placements - East,DIRECT PAYMENTS,R,2023,8
968,"Children, Schools and Family",REDACTED PERSONAL DATA,1052751,03-Nov-23,548.09,0,180579,UASC LAC Under 18,321100              Social Community Care Supplies & Services - Children,R,2023,8
969,"Children, Schools and Family",REDACTED PERSONAL DATA,1052779,03-Nov-23,648.09,0,180579,Placements Under 18,321100              Social Community Care Supplies & Services - Children,R,2023,8
970,"Children, Schools and Family",REDACTED PERSONAL DATA,1058827,10-Nov-23,548.09,0,180579,UASC LAC Under 18,321100              Social Community Care Supplies & Services - Children,R,2023,8
971,"Children, Schools and Family",REDACTED PERSONAL DATA,1063535,17-Nov-23,548.09,0,180579,UASC LAC Under 18,321100              Social Community Care Supplies & Services - Children,R,2023,8
972,"Children, Schools and Family",REDACTED PERSONAL DATA,1068188,24-Nov-23,648.09,0,180579,UASC LAC Under 18,321100              Social Community Care Supplies & Services - Children,R,2023,8
973,"Children, Schools and Family",REDACTED PERSONAL DATA,1072417,30-Nov-23,1039.58,0,180579,UASC LAC Under 18,321100              Social Community Care Supplies & Services - Children,R,2023,8
974,Community and Housing,SOFTCAT LTD,INVUK1064704,17-Nov-23,671.04,111.84,180603,Libraries Service-Civic Centre,270000              Information Communication Technology,A,2023,8
975,Corporate Services,SOFTCAT LTD,INVUK1064624,17-Nov-23,522.65,87.11,180603,PrintUnit-HighVolPhtcopying,270000              Information Communication Technology,A,2023,8
976,Capital,SOFTCAT LTD,INVUK1075620,30-Nov-23,29382,4897,180603,Planned Replacement Programme,270000              Information Communication Technology,A,2023,8
977,Environment and Regeneration,HMCTS,ECBATCHESNOV23,02-Nov-23,25000,0,180649,Operational Running Costs,350000              Street & Traffic Management,A,2023,8
978,Unassigned,LOVE WIMBLEDON LTD BUS.IMP.DIS,5282,16-Nov-23,2558.06,426.34,180802,Corporate Services,200000              Financial Services,A,2023,8
979,Community and Housing,REDACTED PERSONAL DATA,1053773,08-Nov-23,938.4,0,180804,Learning Disabilities Placemnt,DIRECT PAYMENTS,R,2023,8
980,"Children, Schools and Family",FIVE RIVERS CHILD CARE,107684,22-Nov-23,6421.43,0,180823,Placements Under 18,360000              Passenger Transport                                                                       Confirmed,A,2023,8
981,Community and Housing,REDACTED PERSONAL DATA,1053869,08-Nov-23,2258.16,0,180866,Phys/Sens Placements - East,DIRECT PAYMENTS,R,2023,8
982,Community and Housing,REDACTED PERSONAL DATA,1053973,08-Nov-23,2187.44,0,180889,Older People Placements - East,DIRECT PAYMENTS,R,2023,8
983,Community and Housing,SENAD ECCLESBOURNE LODGE,1065119,22-Nov-23,9810.88,0,180904,Learning Disabilities Placemnt,321017              Nursing & Residential Care Homes,A,2023,8
984,Community and Housing,REDACTED PERSONAL DATA,1054076,08-Nov-23,1170.96,0,180999,Older People Placements - East,DIRECT PAYMENTS,R,2023,8
985,Corporate Services,COLLECTOR SET PRINTERS LTD,101233121,17-Nov-23,947.8,157.97,181021,Printing,190000              Facilities & Management Services,A,2023,8
986,Environment and Regeneration,PREMIER MINICAB SER. UK LTD,268,15-Nov-23,3060,510,181053,Passenger Transport,360000              Passenger Transport,A,2023,8
987,Environment and Regeneration,PREMIER MINICAB SER. UK LTD,287,15-Nov-23,3720,620,181053,Passenger Transport,360000              Passenger Transport,A,2023,8
988,Environment and Regeneration,PREMIER MINICAB SER. UK LTD,303,15-Nov-23,3120,520,181053,Passenger Transport,360000              Passenger Transport,A,2023,8
989,Community and Housing,REDACTED PERSONAL DATA,1053821,08-Nov-23,2883.08,0,181129,Older People Placements - East,DIRECT PAYMENTS,R,2023,8
990,Community and Housing,Community Equipment Services,9100000782,15-Nov-23,830400,138400,181238,Pooled Equipment,410000              Social Community Care Supplies & Services,A,2023,8
991,Community and Housing,REDACTED PERSONAL DATA,1053756,08-Nov-23,1720.4,0,181418,Older People Placements - East,DIRECT PAYMENTS,R,2023,8
992,"Children, Schools and Family",REDACTED PERSONAL DATA,122023 DANIELLA,03-Nov-23,1154.92,0,181587,Placements Over 18,321000              Social Community Care Supplies & Services - Adult,R,2023,8
993,"Children, Schools and Family",Dicky Birds Nurseries Ltd - Pelham Road,P2 23 SENDIF,15-Nov-23,4410,0,181874,EARLY YEARS NURSERY GRANTS,200000              Financial Services,A,2023,8
994,"Children, Schools and Family",Dicky Birds Nurseries Ltd - Pelham Road,P2 23 EYSG,22-Nov-23,760.2,0,181874, Information & Systems Team,200000              Financial Services,A,2023,8
995,"Children, Schools and Family",LOVE LANE DAY NURSERY,P2 23 EYSG,22-Nov-23,2612.4,0,181933, Information & Systems Team,200000              Financial Services,A,2023,8
996,Corporate Services,REDACTED PERSONAL DATA,1264/JN,29-Nov-23,990,165,182247,SLLP - Disbursements,280000              Legal Services                                                                            Confirmed,R,2023,8
997,Community and Housing,REDACTED PERSONAL DATA,1053760,08-Nov-23,5474,0,182348,Older People Placements - East,DIRECT PAYMENTS,R,2023,8
998,Corporate Services,BIRKIN CLEANING SERVICES LTD,31734,03-Nov-23,8688.29,1448.05,182414,Corporate Contracts - FM,130000              Cleaning & Janitorial,A,2023,8
999,Environment and Regeneration,BIRKIN CLEANING SERVICES LTD,31832,08-Nov-23,510.59,85.1,182414,Vestry Hall,130000              Cleaning & Janitorial,A,2023,8
1000,"Children, Schools and Family",BIRKIN CLEANING SERVICES LTD,31747,22-Nov-23,1473.44,245.57,182414,Acacia IGC Building Management,130000              Cleaning & Janitorial,A,2023,8
1001,Community and Housing,BIRKIN CLEANING SERVICES LTD,31751,22-Nov-23,1451.57,241.93,182414,Donald Hope Library,130000              Cleaning & Janitorial,A,2023,8
1002,"Children, Schools and Family",BIRKIN CLEANING SERVICES LTD,31750,22-Nov-23,1438.18,239.7,182414,Brightwell,130000              Cleaning & Janitorial,A,2023,8
1003,Community and Housing,BIRKIN CLEANING SERVICES LTD,31736,22-Nov-23,1066.75,177.79,182414,Wimbledon Library,130000              Cleaning & Janitorial,A,2023,8
1004,Community and Housing,BIRKIN CLEANING SERVICES LTD,31739,22-Nov-23,1049.77,174.96,182414,Raynes Park Library,130000              Cleaning & Janitorial,A,2023,8
1005,Environment and Regeneration,BIRKIN CLEANING SERVICES LTD,31753,22-Nov-23,902.47,150.41,182414,Transport-Contract Hire,130000              Cleaning & Janitorial,A,2023,8
1006,Environment and Regeneration,BIRKIN CLEANING SERVICES LTD,32046,22-Nov-23,902.47,150.41,182414,Transport-Contract Hire,130000              Cleaning & Janitorial,A,2023,8
1007,Community and Housing,BIRKIN CLEANING SERVICES LTD,31744,22-Nov-23,770.33,128.39,182414,Eastway Day Centre,130000              Cleaning & Janitorial,A,2023,8
1008,"Children, Schools and Family",BIRKIN CLEANING SERVICES LTD,31741,22-Nov-23,754.63,125.77,182414,Merton Youth Centres.,130000              Cleaning & Janitorial,A,2023,8
1009,"Children, Schools and Family",BIRKIN CLEANING SERVICES LTD,31742,22-Nov-23,750.68,125.11,182414,Merton Youth Centres.,130000              Cleaning & Janitorial,A,2023,8
1010,Community and Housing,BIRKIN CLEANING SERVICES LTD,31740,22-Nov-23,617.09,102.85,182414,West Barnes Lib,130000              Cleaning & Janitorial,A,2023,8
1011,Community and Housing,BIRKIN CLEANING SERVICES LTD,31737,22-Nov-23,1750.62,291.77,182414,Mitcham Library,130000              Cleaning & Janitorial,A,2023,8
1012,Community and Housing,BIRKIN CLEANING SERVICES LTD,31745,22-Nov-23,1842.22,307.04,182414,Highpath (DayCentre) Leyton Rd,130000              Cleaning & Janitorial,A,2023,8
1013,Community and Housing,BIRKIN CLEANING SERVICES LTD,31738,22-Nov-23,2120.48,353.41,182414,Pollards Hill Library,130000              Cleaning & Janitorial,A,2023,8
1014,Community and Housing,BIRKIN CLEANING SERVICES LTD,31743,22-Nov-23,2143.6,357.27,182414,All Saints Day Centre,130000              Cleaning & Janitorial,A,2023,8
1015,Community and Housing,BIRKIN CLEANING SERVICES LTD,31746,22-Nov-23,2167.12,361.19,182414,JMC  Day Centre,130000              Cleaning & Janitorial,A,2023,8
1016,"Children, Schools and Family",BIRKIN CLEANING SERVICES LTD,31749,22-Nov-23,2465.74,410.96,182414,Steers Mead BuildingManagement,130000              Cleaning & Janitorial,A,2023,8
1017,Community and Housing,BIRKIN CLEANING SERVICES LTD,32044,22-Nov-23,1451.57,241.93,182414,Donald Hope Library,130000              Cleaning & Janitorial,A,2023,8
1018,"Children, Schools and Family",BIRKIN CLEANING SERVICES LTD,32040,23-Nov-23,1473.44,245.57,182414,Acacia IGC Building Management,130000              Cleaning & Janitorial,A,2023,8
1019,"Children, Schools and Family",BIRKIN CLEANING SERVICES LTD,32043,23-Nov-23,1438.18,239.7,182414,Brightwell,130000              Cleaning & Janitorial,A,2023,8
1020,"Children, Schools and Family",BIRKIN CLEANING SERVICES LTD,32041,23-Nov-23,754.75,125.79,182414,Adventure Playground Project,130000              Cleaning & Janitorial,A,2023,8
1021,Community and Housing,BIRKIN CLEANING SERVICES LTD,32039,23-Nov-23,2167.12,361.19,182414,JMC  Day Centre,130000              Cleaning & Janitorial,A,2023,8
1022,"Children, Schools and Family",BIRKIN CLEANING SERVICES LTD,32042,23-Nov-23,2465.74,410.96,182414,Steers Mead BuildingManagement,130000              Cleaning & Janitorial,A,2023,8
1023,Community and Housing,BIRKIN CLEANING SERVICES LTD,32037,23-Nov-23,770.33,128.39,182414,Eastway Day Centre,130000              Cleaning & Janitorial,A,2023,8
1024,"Children, Schools and Family",BIRKIN CLEANING SERVICES LTD,32034,23-Nov-23,754.63,125.77,182414,Merton Youth Centres.,130000              Cleaning & Janitorial,A,2023,8
1025,"Children, Schools and Family",BIRKIN CLEANING SERVICES LTD,32035,23-Nov-23,750.68,125.11,182414,Merton Youth Centres.,130000              Cleaning & Janitorial,A,2023,8
1026,Community and Housing,BIRKIN CLEANING SERVICES LTD,32038,23-Nov-23,1842.22,307.04,182414,Highpath (DayCentre) Leyton Rd,130000              Cleaning & Janitorial,A,2023,8
1027,Community and Housing,BIRKIN CLEANING SERVICES LTD,32036,23-Nov-23,2143.6,357.27,182414,All Saints Day Centre,130000              Cleaning & Janitorial,A,2023,8
1028,Corporate Services,BIRKIN CLEANING SERVICES LTD,32024,23-Nov-23,1448.78,241.46,182414,Corporate Contracts - FM,130000              Cleaning & Janitorial,A,2023,8
1029,Community and Housing,BIRKIN CLEANING SERVICES LTD,32029,23-Nov-23,1066.75,177.79,182414,Wimbledon Library,130000              Cleaning & Janitorial,A,2023,8
1030,Community and Housing,BIRKIN CLEANING SERVICES LTD,32032,23-Nov-23,1049.77,174.96,182414,Raynes Park Library,130000              Cleaning & Janitorial,A,2023,8
1031,Environment and Regeneration,BIRKIN CLEANING SERVICES LTD,32026,23-Nov-23,698.4,116.4,182414,Durnsford industrial estate,130000              Cleaning & Janitorial,A,2023,8
1032,Community and Housing,BIRKIN CLEANING SERVICES LTD,32033,23-Nov-23,617.09,102.85,182414,West Barnes Lib,130000              Cleaning & Janitorial,A,2023,8
1033,Community and Housing,BIRKIN CLEANING SERVICES LTD,32030,23-Nov-23,1750.62,291.77,182414,Mitcham Library,130000              Cleaning & Janitorial,A,2023,8
1034,Community and Housing,BIRKIN CLEANING SERVICES LTD,32011,23-Nov-23,1798.67,299.78,182414,Morden Library,130000              Cleaning & Janitorial,A,2023,8
1035,Community and Housing,BIRKIN CLEANING SERVICES LTD,32031,23-Nov-23,2120.48,353.41,182414,Pollards Hill Library,130000              Cleaning & Janitorial,A,2023,8
1036,Environment and Regeneration,BIRKIN CLEANING SERVICES LTD,32025,23-Nov-23,3196.02,532.67,182414,Vestry Hall,130000              Cleaning & Janitorial,A,2023,8
1037,Corporate Services,BIRKIN CLEANING SERVICES LTD,32027,23-Nov-23,8688.29,1448.05,182414,Corporate Contracts - FM,130000              Cleaning & Janitorial,A,2023,8
1038,Corporate Services,BIRKIN CLEANING SERVICES LTD,32010,27-Nov-23,27305.2,4550.87,182414,Corporate Contracts - FM,130000              Cleaning & Janitorial,A,2023,8
1039,Corporate Services,BIRKIN CLEANING SERVICES LTD,32023,23-Nov-23,2444.05,407.34,182414,Corporate Contracts - FM,130000              Cleaning & Janitorial,A,2023,8
1040,Corporate Services,BIRKIN CLEANING SERVICES LTD,32734,23-Nov-23,1448.78,241.46,182414,Corporate Contracts - FM,130000              Cleaning & Janitorial,A,2023,8
1041,Environment and Regeneration,BIRKIN CLEANING SERVICES LTD,32735,23-Nov-23,3196.02,532.67,182414,Vestry Hall,130000              Cleaning & Janitorial,A,2023,8
1042,Corporate Services,BIRKIN CLEANING SERVICES LTD,32737,23-Nov-23,8688.29,1448.05,182414,Corporate Contracts - FM,130000              Cleaning & Janitorial,A,2023,8
1043,"Children, Schools and Family",BIRKIN CLEANING SERVICES LTD,32750,24-Nov-23,1473.44,245.57,182414,Acacia IGC Building Management,130000              Cleaning & Janitorial,A,2023,8
1044,Community and Housing,BIRKIN CLEANING SERVICES LTD,32739,24-Nov-23,1066.75,177.79,182414,Wimbledon Library,130000              Cleaning & Janitorial,A,2023,8
1045,Community and Housing,BIRKIN CLEANING SERVICES LTD,32742,24-Nov-23,1049.77,174.96,182414,Raynes Park Library,130000              Cleaning & Janitorial,A,2023,8
1046,Community and Housing,BIRKIN CLEANING SERVICES LTD,32747,24-Nov-23,770.33,128.39,182414,Eastway Day Centre,130000              Cleaning & Janitorial,A,2023,8
1047,"Children, Schools and Family",BIRKIN CLEANING SERVICES LTD,32751,24-Nov-23,754.75,125.79,182414,Adventure Playground Project,130000              Cleaning & Janitorial,A,2023,8
1048,"Children, Schools and Family",BIRKIN CLEANING SERVICES LTD,32744,24-Nov-23,754.63,125.77,182414,Merton Youth Centres.,130000              Cleaning & Janitorial,A,2023,8
1049,"Children, Schools and Family",BIRKIN CLEANING SERVICES LTD,32745,24-Nov-23,750.68,125.11,182414,Merton Youth Centres.,130000              Cleaning & Janitorial,A,2023,8
1050,Environment and Regeneration,BIRKIN CLEANING SERVICES LTD,32736,24-Nov-23,698.4,116.4,182414,Durnsford industrial estate,130000              Cleaning & Janitorial,A,2023,8
1051,Community and Housing,BIRKIN CLEANING SERVICES LTD,32743,24-Nov-23,617.09,102.85,182414,West Barnes Lib,130000              Cleaning & Janitorial,A,2023,8
1052,Community and Housing,BIRKIN CLEANING SERVICES LTD,32740,24-Nov-23,1750.62,291.77,182414,Mitcham Library,130000              Cleaning & Janitorial,A,2023,8
1053,Community and Housing,BIRKIN CLEANING SERVICES LTD,32722,24-Nov-23,1798.67,299.78,182414,Morden Library,130000              Cleaning & Janitorial,A,2023,8
1054,Community and Housing,BIRKIN CLEANING SERVICES LTD,32748,24-Nov-23,1842.22,307.04,182414,Highpath (DayCentre) Leyton Rd,130000              Cleaning & Janitorial,A,2023,8
1055,Community and Housing,BIRKIN CLEANING SERVICES LTD,32741,24-Nov-23,2120.48,353.41,182414,Pollards Hill Library,130000              Cleaning & Janitorial,A,2023,8
1056,Community and Housing,BIRKIN CLEANING SERVICES LTD,32746,24-Nov-23,2143.6,357.27,182414,All Saints Day Centre,130000              Cleaning & Janitorial,A,2023,8
1057,Community and Housing,BIRKIN CLEANING SERVICES LTD,32749,24-Nov-23,2167.12,361.19,182414,JMC  Day Centre,130000              Cleaning & Janitorial,A,2023,8
1058,Corporate Services,BIRKIN CLEANING SERVICES LTD,32733,24-Nov-23,2444.05,407.34,182414,Corporate Contracts - FM,130000              Cleaning & Janitorial,A,2023,8
1059,Corporate Services,BIRKIN CLEANING SERVICES LTD,32721,27-Nov-23,27305.2,4550.87,182414,Corporate Contracts - FM,130000              Cleaning & Janitorial,A,2023,8
1060,Community and Housing,BIRKIN CLEANING SERVICES LTD,32754,24-Nov-23,1451.57,241.93,182414,Donald Hope Library,130000              Cleaning & Janitorial,A,2023,8
1061,Environment and Regeneration,BIRKIN CLEANING SERVICES LTD,32756,24-Nov-23,902.47,150.41,182414,Transport-Contract Hire,130000              Cleaning & Janitorial,A,2023,8
1062,"Children, Schools and Family",BIRKIN CLEANING SERVICES LTD,31748,24-Nov-23,754.75,125.79,182414,Adventure Playground Project,130000              Cleaning & Janitorial,A,2023,8
1063,"Children, Schools and Family",BIRKIN CLEANING SERVICES LTD,32752,24-Nov-23,2465.74,410.96,182414,Steers Mead BuildingManagement,130000              Cleaning & Janitorial,A,2023,8
1064,Corporate Services,BIRKIN CLEANING SERVICES LTD,32325,27-Nov-23,1448.78,241.46,182414,Corporate Contracts - FM,130000              Cleaning & Janitorial,A,2023,8
1065,Environment and Regeneration,BIRKIN CLEANING SERVICES LTD,32327,27-Nov-23,698.4,116.4,182414,Durnsford industrial estate,130000              Cleaning & Janitorial,A,2023,8
1066,Community and Housing,BIRKIN CLEANING SERVICES LTD,32312,27-Nov-23,1798.67,299.78,182414,Morden Library,130000              Cleaning & Janitorial,A,2023,8
1067,Corporate Services,BIRKIN CLEANING SERVICES LTD,32324,27-Nov-23,2444.05,407.34,182414,Corporate Contracts - FM,130000              Cleaning & Janitorial,A,2023,8
1068,Corporate Services,BIRKIN CLEANING SERVICES LTD,32311,27-Nov-23,27305.2,4550.87,182414,Corporate Contracts - FM,130000              Cleaning & Janitorial,A,2023,8
1069,"Children, Schools and Family",REDACTED PERSONAL DATA,1054328,06-Nov-23,1731.6,0,182494,Child Disabilities - Placement,DIRECT PAYMENTS,R,2023,8
1070,Community and Housing,REDACTED PERSONAL DATA,1053916,08-Nov-23,2952.04,0,182584,Phys/Sens Placements - East,DIRECT PAYMENTS,R,2023,8
1071,Capital,ENERGY SAVING LIGHTING (UK) LT,5892,09-Nov-23,6196.18,1032.7,182638,Invest to Save schemes,"390000              Works - Construction, Repair & Maintenance",A,2023,8
1072,"Children, Schools and Family",REDACTED PERSONAL DATA,1052706,03-Nov-23,548.09,0,182648,UASC LAC Under 18,321100              Social Community Care Supplies & Services - Children,R,2023,8
1073,"Children, Schools and Family",REDACTED PERSONAL DATA,1052764,03-Nov-23,548.09,0,182648,UASC LAC Under 18,321100              Social Community Care Supplies & Services - Children,R,2023,8
1074,"Children, Schools and Family",REDACTED PERSONAL DATA,1058785,10-Nov-23,548.09,0,182648,UASC LAC Under 18,321100              Social Community Care Supplies & Services - Children,R,2023,8
1075,"Children, Schools and Family",REDACTED PERSONAL DATA,1058840,10-Nov-23,548.09,0,182648,UASC LAC Under 18,321100              Social Community Care Supplies & Services - Children,R,2023,8
1076,"Children, Schools and Family",REDACTED PERSONAL DATA,1063493,17-Nov-23,548.09,0,182648,UASC LAC Under 18,321100              Social Community Care Supplies & Services - Children,R,2023,8
1077,"Children, Schools and Family",REDACTED PERSONAL DATA,1063549,17-Nov-23,548.09,0,182648,UASC LAC Under 18,321100              Social Community Care Supplies & Services - Children,R,2023,8
1078,"Children, Schools and Family",REDACTED PERSONAL DATA,1068145,24-Nov-23,548.09,0,182648,UASC LAC Under 18,321100              Social Community Care Supplies & Services - Children,R,2023,8
1079,"Children, Schools and Family",REDACTED PERSONAL DATA,1068199,24-Nov-23,548.09,0,182648,UASC LAC Under 18,321100              Social Community Care Supplies & Services - Children,R,2023,8
1080,"Children, Schools and Family",REDACTED PERSONAL DATA,1072344,30-Nov-23,648.09,0,182648,UASC LAC Under 18,321100              Social Community Care Supplies & Services - Children,R,2023,8
1081,"Children, Schools and Family",REDACTED PERSONAL DATA,1072399,30-Nov-23,648.09,0,182648,UASC LAC Under 18,321100              Social Community Care Supplies & Services - Children,R,2023,8
1082,"Children, Schools and Family",KINGSWOOD DAYCARE NURSERY LTD,P2 23 HEADCOUNT,14-Nov-23,1513.26,0,182740,EARLY YEARS NURSERY GRANTS,200000              Financial Services,A,2023,8
1083,"Children, Schools and Family",KINGSWOOD DAYCARE NURSERY LTD,P2 23 EYSG,22-Nov-23,3066,0,182740, Information & Systems Team,200000              Financial Services,A,2023,8
1084,Community and Housing,REDACTED PERSONAL DATA,1054129,08-Nov-23,6347.8,0,182894,Learning Disabilities Placemnt,DIRECT PAYMENTS,R,2023,8
1085,Corporate Services,PELLINGS LLP,SI9036977,13-Nov-23,1200,200,182945,SLLP - Disbursements,280000              Legal Services                                                                            Confirmed,A,2023,8
1086,Corporate Services,PELLINGS LLP,SI9036976,13-Nov-23,1200,200,182945,SLLP - Disbursements,280000              Legal Services                                                                            Confirmed,A,2023,8
1087,Community and Housing,REDACTED PERSONAL DATA,1053874,08-Nov-23,5057.2,0,183167,Older People Placements - East,DIRECT PAYMENTS,R,2023,8
1088,Community and Housing,ST ANTONYS CARE HOME,1065258,22-Nov-23,3840,0,183206,Older People Placements - East,321017              Nursing & Residential Care Homes,A,2023,8
1089,Community and Housing,ST ANTONYS CARE HOME,1065286,22-Nov-23,3840,0,183206,Older People Placements - East,321017              Nursing & Residential Care Homes,A,2023,8
1090,Community and Housing,ST ANTONYS CARE HOME,1065299,22-Nov-23,4200,0,183206,Mental Health Placements,321017              Nursing & Residential Care Homes,A,2023,8
1091,Community and Housing,ST ANTONYS CARE HOME,1065516,22-Nov-23,4000,0,183206,Older People Placements - East,321017              Nursing & Residential Care Homes,A,2023,8
1092,"Children, Schools and Family",REDACTED PERSONAL DATA,1054452,06-Nov-23,578.56,0,183239, Childrens Short Breaks,CSF-DIRECT PAYMENTS,R,2023,8
1093,"Children, Schools and Family",REDACTED PERSONAL DATA,1054373,06-Nov-23,625.6,0,183241, Childrens Short Breaks,CSF-DIRECT PAYMENTS,R,2023,8
1094,Community and Housing,TAMWORTH HOUSE MEDICAL CENTRE,IUD-Q1 2023-24TH,15-Nov-23,1675.6,0,183339,PH - Sexual Health,310000              Healthcare,A,2023,8
1095,Community and Housing,REDACTED PERSONAL DATA,1053878,08-Nov-23,1322.92,0,183460,Learning Disabilities Placemnt,DIRECT PAYMENTS,R,2023,8
1096,Community and Housing,REDACTED PERSONAL DATA,1053924,08-Nov-23,1622.64,0,183464,Older People Placements - East,DIRECT PAYMENTS,R,2023,8
1097,"Children, Schools and Family",WIMBLEDON DAY NURSERY 2,P2 23 HEADCOUNT,14-Nov-23,3791.34,0,183490,EARLY YEARS NURSERY GRANTS,200000              Financial Services,A,2023,8
1098,"Children, Schools and Family",WIMBLEDON DAY NURSERY 2,P2 23 EYSG,22-Nov-23,928.2,0,183490, Information & Systems Team,200000              Financial Services,A,2023,8
1099,Community and Housing,CREST MANOR LTD,CM0834,14-Nov-23,6013.38,0,183548,Bed & Breakfast - accomm,250000              Housing Management,A,2023,8
1100,"Children, Schools and Family",REDACTED PERSONAL DATA,1054404,06-Nov-23,1710,0,183558,Child Disabilities - Placement,CSF-DIRECT PAYMENTS,R,2023,8
1101,Community and Housing,Kent House Care Home,1065407,22-Nov-23,2884,0,183560,Older People Placements - East,321017              Nursing & Residential Care Homes,A,2023,8
1102,Community and Housing,REDACTED PERSONAL DATA,2251,01-Dec-23,700,0,183599,Adult Safeguarding,321000              Social Community Care Supplies & Services - Adult                                         Confirmed,R,2023,8
1103,Community and Housing,DICKSONS ESTATE AGENTS,RNW 57 DALTON,20-Nov-23,2400,0,183623,Homelessness Prevention,200000              Financial Services,A,2023,8
1104,Capital,TOTAL COMPUTER NETWORKS,SI911732,22-Nov-23,504,84,183646,Planned Replacement Programme,270000              Information Communication Technology,A,2023,8
1105,Capital,TOTAL COMPUTER NETWORKS,SI910834,13-Nov-23,964.8,160.8,183646,Planned Replacement Programme,270000              Information Communication Technology,A,2023,8
1106,Environment and Regeneration,TOTAL COMPUTER NETWORKS,SI910208,08-Nov-23,504,84,183646,Senior Management & Support,270000              Information Communication Technology,A,2023,8
1107,Community and Housing,REDACTED PERSONAL DATA,1053845,08-Nov-23,664.72,0,183690,Older People Placements - East,DIRECT PAYMENTS,R,2023,8
1108,"Children, Schools and Family",LEXTOX,306040,17-Nov-23,1495.2,249.2,184053,Family Supp SafeGuard - Place,280000              Legal Services,A,2023,8
1109,Corporate Services,LEXTOX,306677,24-Nov-23,691.5,115.25,184053,SLLP - Disbursements,280000              Legal Services,A,2023,8
1110,Community and Housing,REDACTED PERSONAL DATA,1053975,08-Nov-23,3026.76,0,184175,Older People Placements - East,DIRECT PAYMENTS,R,2023,8
1111,Community and Housing,REDACTED PERSONAL DATA,1053954,08-Nov-23,508.32,0,184315,Older People Placements - East,DIRECT PAYMENTS,R,2023,8
1112,Community and Housing,CROWNWISE LTD,1065181,22-Nov-23,5907,0,184360,Mental Health Placements,321000              Social Community Care Supplies & Services - Adult,A,2023,8
1113,Community and Housing,CROWNWISE LTD,MP/167/118,23-Nov-23,1229.6,0,184360,Mental Health Placements,321000              Social Community Care Supplies & Services - Adult,A,2023,8
1114,Community and Housing,MARIAN HOUSE NURSING HOME,1065170,22-Nov-23,2834.56,0,184385,Older People Placements - East,321017              Nursing & Residential Care Homes,A,2023,8
1115,"Children, Schools and Family",REDACTED PERSONAL DATA,1052815,03-Nov-23,582.17,0,184386,Placements Under 18,321100              Social Community Care Supplies & Services - Children,R,2023,8
1116,"Children, Schools and Family",REDACTED PERSONAL DATA,1058887,10-Nov-23,582.17,0,184386,Placements Under 18,321100              Social Community Care Supplies & Services - Children,R,2023,8
1117,"Children, Schools and Family",REDACTED PERSONAL DATA,1063596,17-Nov-23,582.17,0,184386,Placements Under 18,321100              Social Community Care Supplies & Services - Children,R,2023,8
1118,"Children, Schools and Family",REDACTED PERSONAL DATA,1072435,30-Nov-23,563.29,0,184386,Placements Under 18,321100              Social Community Care Supplies & Services - Children,R,2023,8
1119,"Children, Schools and Family",REDACTED PERSONAL DATA,1072447,30-Nov-23,682.17,0,184386,Placements Under 18,321100              Social Community Care Supplies & Services - Children,R,2023,8
1120,Corporate Services,REDACTED PERSONAL DATA,INVMR373,28-Nov-23,2160,360,184437,SLLP - Disbursements,280000              Legal Services                                                                            Confirmed,R,2023,8
1121,Community and Housing,REDACTED PERSONAL DATA,1053995,08-Nov-23,4995,0,184580,Older People Placements - East,DIRECT PAYMENTS,R,2023,8
1122,Unassigned,PENSION TOP-UP FUND (LBM),CAP C NM18****C,17-Nov-23,49047.99,0,184583,Super Fund - New Pension Regs,PENSIONS,A,2023,8
1123,Community and Housing,REDACTED PERSONAL DATA,1053971,08-Nov-23,867.48,0,184608,Older People Placements - East,DIRECT PAYMENTS,R,2023,8
1124,"Children, Schools and Family",FUNKY OWLS NURSERY,P2 23 HEADCOUNT,14-Nov-23,4295.76,0,184637,EARLY YEARS NURSERY GRANTS,200000              Financial Services,A,2023,8
1125,"Children, Schools and Family",FUNKY OWLS NURSERY,P2 23 EYSG,22-Nov-23,1759.8,0,184637, Information & Systems Team,200000              Financial Services,A,2023,8
1126,"Children, Schools and Family",Bright Horizons Family Solutions Ltd,P2 23 HEADCOUNT,14-Nov-23,7873.39,0,184692,EARLY YEARS NURSERY GRANTS,170000              Education,A,2023,8
1127,"Children, Schools and Family",Bright Horizons Family Solutions Ltd,P2 23 EYSG,22-Nov-23,3807,0,184692, Information & Systems Team,170000              Education,A,2023,8
1128,Corporate Services,SEARCHFLOW LTD,INV9411776,23-Nov-23,612.3,102.05,184757,SLLP - Disbursements,190000              Facilities & Management Services,A,2023,8
1129,Community and Housing,SK HOUSING LTD,7226,14-Nov-23,40176,6696,184774,Bed & Breakfast - accomm,321000              Social Community Care Supplies & Services - Adult,A,2023,8
1130,Community and Housing,CROHAM PLACE,1065274,22-Nov-23,9400,0,184807,Mental Health Placements,321017              Nursing & Residential Care Homes,A,2023,8
1131,Community and Housing,CROHAM PLACE,1065275,22-Nov-23,9400,0,184807,Learning Disabilities Placemnt,321017              Nursing & Residential Care Homes,A,2023,8
1132,Community and Housing,CROHAM PLACE,1065312,22-Nov-23,9400,0,184807,Mental Health Placements,321017              Nursing & Residential Care Homes,A,2023,8
1133,Community and Housing,REDACTED PERSONAL DATA,1054110,08-Nov-23,977.04,0,184819,Older People Placements - East,DIRECT PAYMENTS,R,2023,8
1134,"Children, Schools and Family",HIGHER LEVEL CARE (HLC) LTD,15320,09-Nov-23,2435.67,0,184822,Placements Over 18,321100              Social Community Care Supplies & Services - Children Residential,A,2023,8
1135,"Children, Schools and Family",HIGHER LEVEL CARE (HLC) LTD,15322,09-Nov-23,2891.42,0,184822,UASC Care Leavers Over 18,321100              Social Community Care Supplies & Services - Children Residential,A,2023,8
1136,"Children, Schools and Family",HIGHER LEVEL CARE (HLC) LTD,15324,09-Nov-23,1120.45,0,184822,UASC Care Leavers Over 18,321100              Social Community Care Supplies & Services - Children Residential,A,2023,8
1137,"Children, Schools and Family",HIGHER LEVEL CARE (HLC) LTD,15325,09-Nov-23,3764.29,0,184822,UASC LAC Under 18,321100              Social Community Care Supplies & Services - Children Residential,A,2023,8
1138,"Children, Schools and Family",HIGHER LEVEL CARE (HLC) LTD,14225,28-Nov-23,1882.01,0,184822,UASC LAC Under 18,321100              Social Community Care Supplies & Services - Children Residential,A,2023,8
1139,"Children, Schools and Family",COLLINGHAM COLLEGE,18249,24-Nov-23,9987,0,184869,Non-Delegated Statements,170000              Education                                                                                 Confirmed,A,2023,8
1140,Community and Housing,QUARTZ PROPERTIES,LBMGIPN25,02-Nov-23,3750,0,184919,Galpins Road Recovery (CAT),321000              Social Community Care Supplies & Services - Adult,A,2023,8
1141,Community and Housing,QUARTZ PROPERTIES,LBMAC7,06-Nov-23,1200,0,184919,Housing Strategy,321000              Social Community Care Supplies & Services - Adult,A,2023,8
1142,Community and Housing,QUARTZ PROPERTIES,LBMAC6,06-Nov-23,1240,0,184919,Housing Strategy,321000              Social Community Care Supplies & Services - Adult,A,2023,8
1143,Community and Housing,QUARTZ PROPERTIES,LBM121,14-Nov-23,48550.39,0,184919,Bed & Breakfast - accomm,321000              Social Community Care Supplies & Services - Adult,A,2023,8
1144,Community and Housing,QUARTZ PROPERTIES,LBM119,17-Nov-23,40383.39,0,184919,Bed & Breakfast - accomm,321000              Social Community Care Supplies & Services - Adult,A,2023,8
1145,Community and Housing,REDACTED PERSONAL DATA,1054009,08-Nov-23,703.8,0,184950,Phys/Sens Placements - East,DIRECT PAYMENTS,R,2023,8
1146,Community and Housing,HOLDSWORTHS,758047,08-Nov-23,561.71,7.83,185001,Eastway Day Centre,110000              Catering,A,2023,8
1147,Community and Housing,LONDON CARE LTD,016-5238353,29-Nov-23,650.57,0,185026,Older People Placements - East,321000              Social Community Care Supplies & Services - Adult,A,2023,8
1148,Community and Housing,LONDON CARE LTD,165238354,29-Nov-23,963.4,0,185026,Older People Placements - East,321000              Social Community Care Supplies & Services - Adult,A,2023,8
1149,"Children, Schools and Family",FUTURE FOUNDATIONS LTD,FFSW04788,07-Nov-23,3937,0,185138,Placements Under 18,321100              Social Community Care Supplies & Services - Children,A,2023,8
1150,Community and Housing,REDACTED PERSONAL DATA,1053980,08-Nov-23,1459.72,0,185250,Older People Placements - East,DIRECT PAYMENTS,R,2023,8
1151,Community and Housing,ROOMS AND  STUDIOS MANAGEMENT,1293,13-Nov-23,138471.35,23078.56,185280,Bed & Breakfast - accomm,321000              Social Community Care Supplies & Services - Adult,A,2023,8
1152,Community and Housing,ROOMS AND  STUDIOS MANAGEMENT,1294,14-Nov-23,3996,666,185280,Bed & Breakfast - accomm,321000              Social Community Care Supplies & Services - Adult,A,2023,8
1153,Community and Housing,ROOMS AND  STUDIOS MANAGEMENT,1296,30-Nov-23,138471.35,23078.56,185280,Bed & Breakfast - accomm,321000              Social Community Care Supplies & Services - Adult,A,2023,8
1154,Community and Housing,REDACTED PERSONAL DATA,1053790,08-Nov-23,1605.44,0,185353,Mental Health Placements,DIRECT PAYMENTS,R,2023,8
1155,Corporate Services,INFORM CPI LTD,AL66488,17-Nov-23,4747.5,791.25,185356,Local Taxation Services,270000              Information Communication Technology,A,2023,8
1156,Corporate Services,REDACTED PERSONAL DATA,INV/JDO102,28-Nov-23,1200,200,185360,SLLP - Disbursements,280000              Legal Services                                                                            Confirmed,R,2023,8
1157,Community and Housing,WISDOM SUPPORT SERVICES LTD,12585,01-Dec-23,1313.92,0,185366,Learning Disabilities Placemnt,321000              Social Community Care Supplies & Services - Adult,A,2023,8
1158,Community and Housing,WISDOM SUPPORT SERVICES LTD,12587,01-Dec-23,2217.24,0,185366,Older People Placements - East,321000              Social Community Care Supplies & Services - Adult,A,2023,8
1159,Community and Housing,WISDOM SUPPORT SERVICES LTD,12596,01-Dec-23,6366,0,185366,Mental Health Placements,321000              Social Community Care Supplies & Services - Adult,A,2023,8
